Organisation Name,Organisation Code,Effective Date,Directorate Where Expenditure Occurred,Supplier Name,Payment Date,Transaction Number,Gross Amount,Purpose of Spend,Merchant Category,Card Transactions
WALSALL COUNCIL,http://opendatacommunities.org/id/metropolitan-district-council/walsall ,30/06/2021,CHILDRENS SERVICES,IKEA LTD SHOP ONLINE,01/04/2021,H59620210407AHBPXSLOQ-1,125.00,E19-PURCHASE OF FURNITURE & EQUIPM,"EQUIPMENT, FURNITURE, AND HOME FURNISHINGS STORES ",GPC
WALSALL COUNCIL,http://opendatacommunities.org/id/metropolitan-district-council/walsall ,30/06/2021,RESOURCES AND TRANSFORMATION,CHICKEN JOES LTD,01/04/2021,H59620210407APYCWKTEA-1,79.30,CATERING - SCHOOLS-FOOD & DRINK SUPPLIES,CATERERS,GPC
WALSALL COUNCIL,http://opendatacommunities.org/id/metropolitan-district-council/walsall ,30/06/2021,ECONOMY & ENVIRONMENT,WWW.STA.CO.UK,01/04/2021,H59620210407AYXRQIOUJ-1,40.00,BLOXWICH ACTIVE LIVING CENTRE-FEES & LICENCES,OTHER RECREATION SERVICES,GPC
WALSALL COUNCIL,http://opendatacommunities.org/id/metropolitan-district-council/walsall ,30/06/2021,ECONOMY & ENVIRONMENT,AMZNMKTPLACE,01/04/2021,H59620210407BHKHOTKGG-1,18.99,WALSALL ARENA AND ARTS CENTRE-STATIONERY & GENERAL OFFICE SU,MISCELLANEOUS AND SPECIALTY RETAIL STORES,GPC
WALSALL COUNCIL,http://opendatacommunities.org/id/metropolitan-district-council/walsall ,30/06/2021,RESOURCES AND TRANSFORMATION,CHICKEN JOES LTD,01/04/2021,H59620210407BHLBVYXRV-1,28.64,CATERING - SCHOOLS-FOOD & DRINK SUPPLIES,CATERERS,GPC
WALSALL COUNCIL,http://opendatacommunities.org/id/metropolitan-district-council/walsall ,30/06/2021,CHILDRENS SERVICES,WALSALL COUNCIL,01/04/2021,H59620210407BRJSHCUEO-1,42.22,ADMINISTRATIVE SUPPLIES-STATIONERY & GENERAL OFFICE SU,GOVERNMENT SERVICES,GPC
WALSALL COUNCIL,http://opendatacommunities.org/id/metropolitan-district-council/walsall ,30/06/2021,CHILDRENS SERVICES,BEVERLEY HOTEL LTD - T,01/04/2021,H59620210407BXWEETEEK-1,159.00,BED & BREAKFAST PAYMENTS-HOTEL ACCOMMODATION-EMPLOYEES,"HOTELS, MOTELS, RESORTS",GPC
WALSALL COUNCIL,http://opendatacommunities.org/id/metropolitan-district-council/walsall ,30/06/2021,RESOURCES AND TRANSFORMATION,CHICKEN JOES LTD,01/04/2021,H59620210407CZRQHCQLD-1,75.75,CATERING - SCHOOLS-FOOD & DRINK SUPPLIES,CATERERS,GPC
WALSALL COUNCIL,http://opendatacommunities.org/id/metropolitan-district-council/walsall ,30/06/2021,CHILDRENS SERVICES,WALSALL COUNCIL,01/04/2021,H59620210407DFYUKENLT-1,42.22,ST FRANCIS OF ASSISI CATHOLIC -FEES & LICENCES,GOVERNMENT SERVICES,GPC
WALSALL COUNCIL,http://opendatacommunities.org/id/metropolitan-district-council/walsall ,30/06/2021,RESOURCES AND TRANSFORMATION,CHICKEN JOES LTD,01/04/2021,H59620210407DKXVORVWU-1,50.05,CATERING - SCHOOLS-FOOD & DRINK SUPPLIES,CATERERS,GPC
WALSALL COUNCIL,http://opendatacommunities.org/id/metropolitan-district-council/walsall ,30/06/2021,CHILDRENS SERVICES,AMZNMKTPLACE,01/04/2021,H59620210407ENCPYYSQO-1,35.89,ICT LEARNING RESOURCES-MATERIALS,MISCELLANEOUS AND SPECIALTY RETAIL STORES,GPC
WALSALL COUNCIL,http://opendatacommunities.org/id/metropolitan-district-council/walsall ,30/06/2021,CHILDRENS SERVICES,FLICK LEARNING LIMITED,01/04/2021,H59620210407EPSJXBCGF-1,73.08,LEIGHSWOOD PRIMARY SCHOOL-EXTERNAL TRAINING,COMPUTER SOFTWARE STORES,GPC
WALSALL COUNCIL,http://opendatacommunities.org/id/metropolitan-district-council/walsall ,30/06/2021,CHILDRENS SERVICES,EDGY PRODUCTIONS LTD,01/04/2021,H59620210407EVSTFKHCC-1,30.00,E19-MATERIALS,BOOK STORES,GPC
WALSALL COUNCIL,http://opendatacommunities.org/id/metropolitan-district-council/walsall ,30/06/2021,CHILDRENS SERVICES,EDGY PRODUCTIONS LTD,01/04/2021,H59620210407EVSTFKHCC-2,46.29,E19-MATERIALS,BOOK STORES,GPC
WALSALL COUNCIL,http://opendatacommunities.org/id/metropolitan-district-council/walsall ,30/06/2021,ECONOMY & ENVIRONMENT,WWW.STA.CO.UK,01/04/2021,H59620210407FHLYPVYNY-1,40.00,BLOXWICH ACTIVE LIVING CENTRE-FEES & LICENCES,OTHER RECREATION SERVICES,GPC
WALSALL COUNCIL,http://opendatacommunities.org/id/metropolitan-district-council/walsall ,30/06/2021,RESOURCES AND TRANSFORMATION,CHICKEN JOES LTD,01/04/2021,H59620210407FIASPBGKP-1,82.19,CATERING - SCHOOLS-FOOD & DRINK SUPPLIES,CATERERS,GPC
WALSALL COUNCIL,http://opendatacommunities.org/id/metropolitan-district-council/walsall ,30/06/2021,RESOURCES AND TRANSFORMATION,CHICKEN JOES LTD,01/04/2021,H59620210407FVMMCQKCE-1,146.44,CATERING - SCHOOLS-FOOD & DRINK SUPPLIES,CATERERS,GPC
WALSALL COUNCIL,http://opendatacommunities.org/id/metropolitan-district-council/walsall ,30/06/2021,CHILDRENS SERVICES,ASDA,01/04/2021,H59620210407GMFRGFLHT-1,26.00,WALSALL CRISIS SUPPORT SCHEME-FOOD & DRINK SUPPLIES,GROCERY STORES AND SUPERMARKETS,GPC
WALSALL COUNCIL,http://opendatacommunities.org/id/metropolitan-district-council/walsall ,30/06/2021,RESOURCES AND TRANSFORMATION,CHICKEN JOES LTD,01/04/2021,H59620210407HIWQBGGFS-1,70.32,CATERING - SCHOOLS-FOOD & DRINK SUPPLIES,CATERERS,GPC
WALSALL COUNCIL,http://opendatacommunities.org/id/metropolitan-district-council/walsall ,30/06/2021,CHILDRENS SERVICES,WWW.BRIGADE.UK.COM,01/04/2021,H59620210407HTTFPTDSN-1,36.73,PUPIL PREMIUM-MATERIALS,"SPORTS APPAREL, RIDING APPAREL STORES",GPC
WALSALL COUNCIL,http://opendatacommunities.org/id/metropolitan-district-council/walsall ,30/06/2021,RESOURCES AND TRANSFORMATION,NOBISCO LIMITED,01/04/2021,H59620210407IBADGELVV-1,161.23,CATERING - SCHOOLS-FOOD & DRINK SUPPLIES,OTHER INDUSTRIAL SUPPLIES,GPC
WALSALL COUNCIL,http://opendatacommunities.org/id/metropolitan-district-council/walsall ,30/06/2021,CHILDRENS SERVICES,METRO WALSALL,01/04/2021,H59620210407IEWKONMYW-1,304.00,ACCOMMODATION SERVICES MANAGEM-BED & BREAKFAST PAYMENTS,"HOTELS, MOTELS, RESORTS",GPC
WALSALL COUNCIL,http://opendatacommunities.org/id/metropolitan-district-council/walsall ,30/06/2021,RESOURCES AND TRANSFORMATION,NOBISCO LIMITED,01/04/2021,H59620210407IEWMNPMPV-1,64.43,CATERING - SCHOOLS-FOOD & DRINK SUPPLIES,OTHER INDUSTRIAL SUPPLIES,GPC
WALSALL COUNCIL,http://opendatacommunities.org/id/metropolitan-district-council/walsall ,30/06/2021,RESOURCES AND TRANSFORMATION,CHICKEN JOES LTD,01/04/2021,H59620210407IHYQNODWI-1,21.41,CATERING - SCHOOLS-FOOD & DRINK SUPPLIES,CATERERS,GPC
WALSALL COUNCIL,http://opendatacommunities.org/id/metropolitan-district-council/walsall ,30/06/2021,RESOURCES AND TRANSFORMATION,CHICKEN JOES LTD,01/04/2021,H59620210407IJWWKHRTL-1,57.89,CATERING - SCHOOLS-FOOD & DRINK SUPPLIES,CATERERS,GPC
WALSALL COUNCIL,http://opendatacommunities.org/id/metropolitan-district-council/walsall ,30/06/2021,RESOURCES AND TRANSFORMATION,CHICKEN JOES LTD,01/04/2021,H59620210407IKCQPJGHK-1,56.04,CATERING - SCHOOLS-FOOD & DRINK SUPPLIES,CATERERS,GPC
WALSALL COUNCIL,http://opendatacommunities.org/id/metropolitan-district-council/walsall ,30/06/2021,CHILDRENS SERVICES,247 CARS WILLENHALL LTD,01/04/2021,H59620210407IORQUKMTN-1,15.60,INITIAL RESPONSE SERVICE-TAXI FARES,TAXI SERVICES,GPC
WALSALL COUNCIL,http://opendatacommunities.org/id/metropolitan-district-council/walsall ,30/06/2021,CHILDRENS SERVICES,WWW.WMCA.ORG.UK,01/04/2021,H59620210407IPNFIILWP-1,108.00,NEW LEAF PUPIL REFERAL UNIT-OTHER TRAVEL ALLOWANCES,LOCAL AND SUBURBAN COMMUTER TRANSPORTATION,GPC
WALSALL COUNCIL,http://opendatacommunities.org/id/metropolitan-district-council/walsall ,30/06/2021,RESOURCES AND TRANSFORMATION,NOBISCO LIMITED,01/04/2021,H59620210407JGUXXPUQU-1,63.20,CATERING - SCHOOLS-FOOD & DRINK SUPPLIES,OTHER INDUSTRIAL SUPPLIES,GPC
WALSALL COUNCIL,http://opendatacommunities.org/id/metropolitan-district-council/walsall ,30/06/2021,RESOURCES AND TRANSFORMATION,NOBISCO LIMITED,01/04/2021,H59620210407JPEWJBIWY-1,73.49,CATERING - SCHOOLS-FOOD & DRINK SUPPLIES,OTHER INDUSTRIAL SUPPLIES,GPC
WALSALL COUNCIL,http://opendatacommunities.org/id/metropolitan-district-council/walsall ,30/06/2021,RESOURCES AND TRANSFORMATION,CHICKEN JOES LTD,01/04/2021,H59620210407JWKUFRRGK-1,28.88,CATERING - SCHOOLS-FOOD & DRINK SUPPLIES,CATERERS,GPC
WALSALL COUNCIL,http://opendatacommunities.org/id/metropolitan-district-council/walsall ,30/06/2021,CHILDRENS SERVICES,AMAZON.CO.UK*MU3FA9KW4 AM,01/04/2021,H59620210407JXBVZTZVA-1,80.37,LIBRARY-MATERIALS,MISCELLANEOUS AND SPECIALTY RETAIL STORES,GPC
WALSALL COUNCIL,http://opendatacommunities.org/id/metropolitan-district-council/walsall ,30/06/2021,CHILDRENS SERVICES,ASDA SUPERSTORE,01/04/2021,H59620210407KKTCJGOXZ-1,2.00,WALSALL CRISIS SUPPORT SCHEME-CRISIS SUPPORT PAYMENTS,GROCERY STORES AND SUPERMARKETS,GPC
WALSALL COUNCIL,http://opendatacommunities.org/id/metropolitan-district-council/walsall ,30/06/2021,CHILDRENS SERVICES,TRAINLINE,01/04/2021,H59620210407KMVTQCVTY-1,50.54,SAFEGUARDING & FAMILY SUPPORT-OFFICERS & STAFF PUBLIC TRANSP,PASSENGER RAILWAYS,GPC
WALSALL COUNCIL,http://opendatacommunities.org/id/metropolitan-district-council/walsall ,30/06/2021,CHILDRENS SERVICES,ALDI 772 129,01/04/2021,H59620210407KSNTELNFX-1,10.71,"43A HILTON ROAD, WILLENHALL-FOOD & DRINK SUPPLIES",GROCERY STORES AND SUPERMARKETS,GPC
WALSALL COUNCIL,http://opendatacommunities.org/id/metropolitan-district-council/walsall ,30/06/2021,CHILDRENS SERVICES,SPS RATE MARK LTD,01/04/2021,H59620210407LKVWBBTQU-1,40.00,TENANCY SERVICE-FOOD & DRINK SUPPLIES,MISCELLANEOUS FOOD STORES & CONVENIENCE STORES,GPC
WALSALL COUNCIL,http://opendatacommunities.org/id/metropolitan-district-council/walsall ,30/06/2021,ECONOMY & ENVIRONMENT,TOOLSTATION LTD,01/04/2021,H59620210407LTZXDSHGH-1,3.30,INFRASTRUCTURE MAINTENANCE-MATERIALS,LUMBER & BUILDING MATERIALS STORES,GPC
WALSALL COUNCIL,http://opendatacommunities.org/id/metropolitan-district-council/walsall ,30/06/2021,RESOURCES AND TRANSFORMATION,CHICKEN JOES LTD,01/04/2021,H59620210407MBQKPPICO-1,67.14,CATERING - SCHOOLS-FOOD & DRINK SUPPLIES,CATERERS,GPC
WALSALL COUNCIL,http://opendatacommunities.org/id/metropolitan-district-council/walsall ,30/06/2021,CHILDRENS SERVICES,AMAZON.CO.UK*MU63L12M4,01/04/2021,H59620210407MBQRYXEHW-1,5.00,LITERATURE-MATERIALS,OTHER DIRECT MARKETING-OTHER DIRECT MARKETERS,GPC
WALSALL COUNCIL,http://opendatacommunities.org/id/metropolitan-district-council/walsall ,30/06/2021,CHILDRENS SERVICES,TRAVIS PERKINS TRADING,01/04/2021,H59620210407MCWCQHVDC-1,130.70,OAKWOOD SCHOOL-OPERATIONAL MAINTENANCE,LUMBER & BUILDING MATERIALS STORES,GPC
WALSALL COUNCIL,http://opendatacommunities.org/id/metropolitan-district-council/walsall ,30/06/2021,RESOURCES AND TRANSFORMATION,CHICKEN JOES LTD,01/04/2021,H59620210407MGYFIQLTY-1,51.94,CATERING - SCHOOLS-FOOD & DRINK SUPPLIES,CATERERS,GPC
WALSALL COUNCIL,http://opendatacommunities.org/id/metropolitan-district-council/walsall ,30/06/2021,RESOURCES AND TRANSFORMATION,CHICKEN JOES LTD,01/04/2021,H59620210407MJJEMDPYD-1,42.82,CATERING - SCHOOLS-FOOD & DRINK SUPPLIES,CATERERS,GPC
WALSALL COUNCIL,http://opendatacommunities.org/id/metropolitan-district-council/walsall ,30/06/2021,RESOURCES AND TRANSFORMATION,CHICKEN JOES LTD,01/04/2021,H59620210407NSTYDEHBI-1,12.16,CATERING - SCHOOLS-FOOD & DRINK SUPPLIES,CATERERS,GPC
WALSALL COUNCIL,http://opendatacommunities.org/id/metropolitan-district-council/walsall ,30/06/2021,CHILDRENS SERVICES,123 REG LTD,01/04/2021,H59620210407NTRYICPLG-1,11.99,ADMINISTRATIVE SUPPLIES-STATIONERY & GENERAL OFFICE SU,DIRECT MARKETING CONTINUITY SUBSCRIPTION MERCHANTS,GPC
WALSALL COUNCIL,http://opendatacommunities.org/id/metropolitan-district-council/walsall ,30/06/2021,RESOURCES AND TRANSFORMATION,SAINSBURYS S/MKTS,01/04/2021,H59620210407NXGBDCUKZ-1,4.29,CATERING - MANAGEMENT-FOOD & DRINK SUPPLIES,GROCERY STORES AND SUPERMARKETS,GPC
WALSALL COUNCIL,http://opendatacommunities.org/id/metropolitan-district-council/walsall ,30/06/2021,CHILDRENS SERVICES,NEWITTS.COM,01/04/2021,H59620210407OHJSCIPLD-1,79.90,E19-MATERIALS,"SPORTS APPAREL, RIDING APPAREL STORES",GPC
WALSALL COUNCIL,http://opendatacommunities.org/id/metropolitan-district-council/walsall ,30/06/2021,RESOURCES AND TRANSFORMATION,NOBISCO LIMITED,01/04/2021,H59620210407OJWIANVJS-1,182.23,CATERING - SCHOOLS-FOOD & DRINK SUPPLIES,OTHER INDUSTRIAL SUPPLIES,GPC
WALSALL COUNCIL,http://opendatacommunities.org/id/metropolitan-district-council/walsall ,30/06/2021,RESOURCES AND TRANSFORMATION,CHICKEN JOES LTD,01/04/2021,H59620210407PGICMMBRE-1,54.98,CATERING - SCHOOLS-FOOD & DRINK SUPPLIES,CATERERS,GPC
WALSALL COUNCIL,http://opendatacommunities.org/id/metropolitan-district-council/walsall ,30/06/2021,CHILDRENS SERVICES,CURRYS ONLINE,01/04/2021,H59620210407PNHEQKWOI-1,329.00,VIRTUAL SCHOOL - CENTRAL PUPIL-COMPUTER EQUIPMENT,ELECTRONIC SALES,GPC
WALSALL COUNCIL,http://opendatacommunities.org/id/metropolitan-district-council/walsall ,30/06/2021,CHILDRENS SERVICES,W M MORRISONS.COM,01/04/2021,H59620210407PWXJZTGGW-1,29.28,BLUEBELLS-FOOD & DRINK SUPPLIES,GROCERY STORES AND SUPERMARKETS,GPC
WALSALL COUNCIL,http://opendatacommunities.org/id/metropolitan-district-council/walsall ,30/06/2021,CHILDRENS SERVICES,W M MORRISONS.COM,01/04/2021,H59620210407PWXJZTGGW-2,94.25,BLUEBELLS-FOOD & DRINK SUPPLIES,GROCERY STORES AND SUPERMARKETS,GPC
WALSALL COUNCIL,http://opendatacommunities.org/id/metropolitan-district-council/walsall ,30/06/2021,RESOURCES AND TRANSFORMATION,CHICKEN JOES LTD,01/04/2021,H59620210407QAZPWMHTS-1,67.14,CATERING - SCHOOLS-FOOD & DRINK SUPPLIES,CATERERS,GPC
WALSALL COUNCIL,http://opendatacommunities.org/id/metropolitan-district-council/walsall ,30/06/2021,RESOURCES AND TRANSFORMATION,CHICKEN JOES LTD,01/04/2021,H59620210407QKEJZKSPY-1,81.46,CATERING - SCHOOLS-FOOD & DRINK SUPPLIES,CATERERS,GPC
WALSALL COUNCIL,http://opendatacommunities.org/id/metropolitan-district-council/walsall ,30/06/2021,CHILDRENS SERVICES,AMAZON.CO.UK*MU21O82T4,01/04/2021,H59620210407QLTTDMASR-1,8.58,TRADED WORKFORCE DEVELOPMENT-STATIONERY & GENERAL OFFICE SU,OTHER DIRECT MARKETING-OTHER DIRECT MARKETERS,GPC
WALSALL COUNCIL,http://opendatacommunities.org/id/metropolitan-district-council/walsall ,30/06/2021,CHILDRENS SERVICES,POST OFFICE COUNTER,01/04/2021,H59620210407QOGNJTJUW-1,9.10,LOOKED AFTER CHILDRENS SOCIAL -POSTAGES & COURIER SERVICES,POSTAL SERVICES - GOVERNMENT ONLY,GPC
WALSALL COUNCIL,http://opendatacommunities.org/id/metropolitan-district-council/walsall ,30/06/2021,RESOURCES AND TRANSFORMATION,MYFONTS INC,01/04/2021,H59620210407QPIYTSRVM-1,1284.00,APPLICATIONS-COMPUTER EQUIPMENT,"COMPUTERS, COMPUTER PERIPHERAL EQUIPMENT, SOFTWARE",GPC
WALSALL COUNCIL,http://opendatacommunities.org/id/metropolitan-district-council/walsall ,30/06/2021,ECONOMY & ENVIRONMENT,W M MORRISON STORE,01/04/2021,H59620210407QWOGKYVYR-1,14.75,COMMUNITY LIASON-FOOD & DRINK SUPPLIES,GROCERY STORES AND SUPERMARKETS,GPC
WALSALL COUNCIL,http://opendatacommunities.org/id/metropolitan-district-council/walsall ,30/06/2021,CHILDRENS SERVICES,TRAINLINE,01/04/2021,H59620210407SDNICNBQU-1,21.71,SAFEGUARDING & FAMILY SUPPORT-OFFICERS & STAFF PUBLIC TRANSP,PASSENGER RAILWAYS,GPC
WALSALL COUNCIL,http://opendatacommunities.org/id/metropolitan-district-council/walsall ,30/06/2021,CHILDRENS SERVICES,POST OFFICE COUNTER,01/04/2021,H59620210407SLMSJDFYG-1,82.68,LOOKED AFTER CHILDRENS SOCIAL -POSTAGES & COURIER SERVICES,POSTAL SERVICES - GOVERNMENT ONLY,GPC
WALSALL COUNCIL,http://opendatacommunities.org/id/metropolitan-district-council/walsall ,30/06/2021,CHILDRENS SERVICES,AMZNMKTPLACE AMAZON.CO.UK,01/04/2021,H59620210407SPHCLJMRN-1,19.98,"43A HILTON ROAD, WILLENHALL-CLEANING MATERIALS",MISCELLANEOUS AND SPECIALTY RETAIL STORES,GPC
WALSALL COUNCIL,http://opendatacommunities.org/id/metropolitan-district-council/walsall ,30/06/2021,ECONOMY & ENVIRONMENT,WWW.STA.CO.UK,01/04/2021,H59620210407TFNOECDNT-1,12.50,BLOXWICH ACTIVE LIVING CENTRE-EXTERNAL TRAINING,OTHER RECREATION SERVICES,GPC
WALSALL COUNCIL,http://opendatacommunities.org/id/metropolitan-district-council/walsall ,30/06/2021,ECONOMY & ENVIRONMENT,WWW.STA.CO.UK,01/04/2021,H59620210407TFNOECDNT-2,12.50,DARLASTON SWIMMING AND FITNESS-EXTERNAL TRAINING,OTHER RECREATION SERVICES,GPC
WALSALL COUNCIL,http://opendatacommunities.org/id/metropolitan-district-council/walsall ,30/06/2021,ECONOMY & ENVIRONMENT,WWW.STA.CO.UK,01/04/2021,H59620210407TFNOECDNT-3,12.50,OAK PARK ACTIVE LIVING CENTRE-EXTERNAL TRAINING,OTHER RECREATION SERVICES,GPC
WALSALL COUNCIL,http://opendatacommunities.org/id/metropolitan-district-council/walsall ,30/06/2021,ECONOMY & ENVIRONMENT,WWW.STA.CO.UK,01/04/2021,H59620210407TFNOECDNT-4,12.50,WALSALL GALA SWIMMING AND FITN-EXTERNAL TRAINING,OTHER RECREATION SERVICES,GPC
WALSALL COUNCIL,http://opendatacommunities.org/id/metropolitan-district-council/walsall ,30/06/2021,ECONOMY & ENVIRONMENT,WWW.STA.CO.UK,01/04/2021,H59620210407TGTAHMJJL-1,7.50,BLOXWICH ACTIVE LIVING CENTRE-EXTERNAL TRAINING,OTHER RECREATION SERVICES,GPC
WALSALL COUNCIL,http://opendatacommunities.org/id/metropolitan-district-council/walsall ,30/06/2021,ECONOMY & ENVIRONMENT,WWW.STA.CO.UK,01/04/2021,H59620210407TGTAHMJJL-2,7.50,DARLASTON SWIMMING AND FITNESS-EXTERNAL TRAINING,OTHER RECREATION SERVICES,GPC
WALSALL COUNCIL,http://opendatacommunities.org/id/metropolitan-district-council/walsall ,30/06/2021,ECONOMY & ENVIRONMENT,WWW.STA.CO.UK,01/04/2021,H59620210407TGTAHMJJL-3,7.50,OAK PARK ACTIVE LIVING CENTRE-EXTERNAL TRAINING,OTHER RECREATION SERVICES,GPC
WALSALL COUNCIL,http://opendatacommunities.org/id/metropolitan-district-council/walsall ,30/06/2021,ECONOMY & ENVIRONMENT,WWW.STA.CO.UK,01/04/2021,H59620210407TGTAHMJJL-4,7.50,WALSALL GALA SWIMMING AND FITN-EXTERNAL TRAINING,OTHER RECREATION SERVICES,GPC
WALSALL COUNCIL,http://opendatacommunities.org/id/metropolitan-district-council/walsall ,30/06/2021,CHILDRENS SERVICES,AMZ*NICE2HAVE,01/04/2021,H59620210407TIWKIENHU-1,-8.00,NEW LEAF PUPIL REFERAL UNIT-STATIONERY & GENERAL OFFICE SU,MISCELLANEOUS AND SPECIALTY RETAIL STORES,GPC
WALSALL COUNCIL,http://opendatacommunities.org/id/metropolitan-district-council/walsall ,30/06/2021,CHILDRENS SERVICES,AMZNMKTPLACE,01/04/2021,H59620210407TMWCXDNQT-1,249.99,TRANSITION AND LEAVING CARE PL-PURCHASE OF FURNITURE & EQUIPM,MISCELLANEOUS AND SPECIALTY RETAIL STORES,GPC
WALSALL COUNCIL,http://opendatacommunities.org/id/metropolitan-district-council/walsall ,30/06/2021,ECONOMY & ENVIRONMENT,WWW.STA.CO.UK,01/04/2021,H59620210407TRPXKLEEW-1,5.00,BLOXWICH ACTIVE LIVING CENTRE-EXTERNAL TRAINING,OTHER RECREATION SERVICES,GPC
WALSALL COUNCIL,http://opendatacommunities.org/id/metropolitan-district-council/walsall ,30/06/2021,ECONOMY & ENVIRONMENT,WWW.STA.CO.UK,01/04/2021,H59620210407TRPXKLEEW-2,5.00,DARLASTON SWIMMING AND FITNESS-EXTERNAL TRAINING,OTHER RECREATION SERVICES,GPC
WALSALL COUNCIL,http://opendatacommunities.org/id/metropolitan-district-council/walsall ,30/06/2021,ECONOMY & ENVIRONMENT,WWW.STA.CO.UK,01/04/2021,H59620210407TRPXKLEEW-3,5.00,OAK PARK ACTIVE LIVING CENTRE-EXTERNAL TRAINING,OTHER RECREATION SERVICES,GPC
WALSALL COUNCIL,http://opendatacommunities.org/id/metropolitan-district-council/walsall ,30/06/2021,ECONOMY & ENVIRONMENT,WWW.STA.CO.UK,01/04/2021,H59620210407TRPXKLEEW-4,5.00,WALSALL GALA SWIMMING AND FITN-EXTERNAL TRAINING,OTHER RECREATION SERVICES,GPC
WALSALL COUNCIL,http://opendatacommunities.org/id/metropolitan-district-council/walsall ,30/06/2021,RESOURCES AND TRANSFORMATION,CHICKEN JOES LTD,01/04/2021,H59620210407TSKQOFWYP-1,60.05,CATERING - SCHOOLS-FOOD & DRINK SUPPLIES,CATERERS,GPC
WALSALL COUNCIL,http://opendatacommunities.org/id/metropolitan-district-council/walsall ,30/06/2021,RESOURCES AND TRANSFORMATION,CHICKEN JOES LTD,01/04/2021,H59620210407TXLRHQCVL-1,66.55,CATERING - SCHOOLS-FOOD & DRINK SUPPLIES,CATERERS,GPC
WALSALL COUNCIL,http://opendatacommunities.org/id/metropolitan-district-council/walsall ,30/06/2021,CHILDRENS SERVICES,KFC,01/04/2021,H59620210407UMKWTTKJF-1,6.76,ADOLESCENT SERVICE-FOOD & DRINK SUPPLIES,QUICK PAYMENT SERVICE-FAST-FOOD RESTAURANTS,GPC
WALSALL COUNCIL,http://opendatacommunities.org/id/metropolitan-district-council/walsall ,30/06/2021,RESOURCES AND TRANSFORMATION,CHICKEN JOES LTD,01/04/2021,H59620210407UYCTDPYCZ-1,48.64,CATERING - SCHOOLS-FOOD & DRINK SUPPLIES,CATERERS,GPC
WALSALL COUNCIL,http://opendatacommunities.org/id/metropolitan-district-council/walsall ,30/06/2021,RESOURCES AND TRANSFORMATION,CHICKEN JOES LTD,01/04/2021,H59620210407VPRNVJKOU-1,50.05,CATERING - SCHOOLS-FOOD & DRINK SUPPLIES,CATERERS,GPC
WALSALL COUNCIL,http://opendatacommunities.org/id/metropolitan-district-council/walsall ,30/06/2021,RESOURCES AND TRANSFORMATION,CHICKEN JOES LTD,01/04/2021,H59620210407VQBXMSNOS-1,57.89,CATERING - SCHOOLS-FOOD & DRINK SUPPLIES,CATERERS,GPC
WALSALL COUNCIL,http://opendatacommunities.org/id/metropolitan-district-council/walsall ,30/06/2021,ECONOMY & ENVIRONMENT,J2 EFAX PLUS SERVICE,01/04/2021,H59620210407VWCLGUMEO-1,19.20,REGISTRAR-COMPUTER EQUIPMENT,DIRECT MARKETING CONTINUITY SUBSCRIPTION MERCHANTS,GPC
WALSALL COUNCIL,http://opendatacommunities.org/id/metropolitan-district-council/walsall ,30/06/2021,RESOURCES AND TRANSFORMATION,CHICKEN JOES LTD,01/04/2021,H59620210407WGPGUHKAW-1,81.46,CATERING - SCHOOLS-FOOD & DRINK SUPPLIES,CATERERS,GPC
WALSALL COUNCIL,http://opendatacommunities.org/id/metropolitan-district-council/walsall ,30/06/2021,RESOURCES AND TRANSFORMATION,ARTHUR BRETT CATER,01/04/2021,H59620210407WHIMCSOGL-1,23.60,CATERING - SCHOOLS-FOOD & DRINK SUPPLIES,MISCELLANEOUS FOOD STORES & CONVENIENCE STORES,GPC
WALSALL COUNCIL,http://opendatacommunities.org/id/metropolitan-district-council/walsall ,30/06/2021,CHILDRENS SERVICES,ARGOS LTD,01/04/2021,H59620210407WRJGNOMJZ-1,34.99,TRANSITION AND LEAVING CARE PL-CARE LEAVERS MTCE PAYMENTS,DISCOUNT STORES,GPC
WALSALL COUNCIL,http://opendatacommunities.org/id/metropolitan-district-council/walsall ,30/06/2021,RESOURCES AND TRANSFORMATION,CHICKEN JOES LTD,01/04/2021,H59620210407WSLXJTZTJ-1,24.32,CATERING - SCHOOLS-FOOD & DRINK SUPPLIES,CATERERS,GPC
WALSALL COUNCIL,http://opendatacommunities.org/id/metropolitan-district-council/walsall ,30/06/2021,ECONOMY & ENVIRONMENT,WETRANSFER,01/04/2021,H59620210407WZFESEFKH-1,8.53,NAG - ART GALLERY MARKETING-OUTWORK PRINT & DESIGN,"COMPUTER PROGRAM, SYSTEM DESIGN",GPC
WALSALL COUNCIL,http://opendatacommunities.org/id/metropolitan-district-council/walsall ,30/06/2021,CHILDRENS SERVICES,METRO WALSALL,01/04/2021,H59620210407XCGGETWCP-1,532.00,ROUGH SLEEPING INITIATIVE GRAN-BED & BREAKFAST PAYMENTS,"HOTELS, MOTELS, RESORTS",GPC
WALSALL COUNCIL,http://opendatacommunities.org/id/metropolitan-district-council/walsall ,30/06/2021,ECONOMY & ENVIRONMENT,WWW.STA.CO.UK,01/04/2021,H59620210407XGVRQBYQB-1,60.00,BLOXWICH ACTIVE LIVING CENTRE-FEES & LICENCES,OTHER RECREATION SERVICES,GPC
WALSALL COUNCIL,http://opendatacommunities.org/id/metropolitan-district-council/walsall ,30/06/2021,CHILDRENS SERVICES,DOMINO S PIZZA,01/04/2021,H59620210407XTQXNRIJS-1,38.98,NEW LEAF PUPIL REFERAL UNIT-MATERIALS,"EATING PLACES, RESTAURANTS",GPC
WALSALL COUNCIL,http://opendatacommunities.org/id/metropolitan-district-council/walsall ,30/06/2021,CHILDRENS SERVICES,POST OFFICE COUNTER,01/04/2021,H59620210407YHHVZXRXH-1,3.23,LOOKED AFTER CHILDRENS SOCIAL -POSTAGES & COURIER SERVICES,POSTAL SERVICES - GOVERNMENT ONLY,GPC
WALSALL COUNCIL,http://opendatacommunities.org/id/metropolitan-district-council/walsall ,30/06/2021,RESOURCES AND TRANSFORMATION,CHICKEN JOES LTD,01/04/2021,H59620210407YWJNZWDBJ-1,98.88,CATERING - SCHOOLS-FOOD & DRINK SUPPLIES,CATERERS,GPC
WALSALL COUNCIL,http://opendatacommunities.org/id/metropolitan-district-council/walsall ,30/06/2021,RESOURCES AND TRANSFORMATION,NOBISCO LIMITED,01/04/2021,H59620210407ZEYQLXJIU-1,75.61,CATERING - SCHOOLS-FOOD & DRINK SUPPLIES,OTHER INDUSTRIAL SUPPLIES,GPC
WALSALL COUNCIL,http://opendatacommunities.org/id/metropolitan-district-council/walsall ,30/06/2021,CHILDRENS SERVICES,POST OFFICE COUNTER,01/04/2021,H59620210407ZMFFYFBEZ-1,55.68,ADOLESCENT SERVICE-POSTAGES & COURIER SERVICES,POSTAL SERVICES - GOVERNMENT ONLY,GPC
WALSALL COUNCIL,http://opendatacommunities.org/id/metropolitan-district-council/walsall ,30/06/2021,CHILDRENS SERVICES,CITY OF WOLVERHAMPTON,01/04/2021,H59620210407ZPNHXWDWE-1,16.00,GENERAL MANAGEMENT SUPPORT (IN-FEES & LICENCES,GOVERNMENT SERVICES,GPC
WALSALL COUNCIL,http://opendatacommunities.org/id/metropolitan-district-council/walsall ,30/06/2021,CHILDRENS SERVICES,APP CARZ LIMITED,01/04/2021,H59620210407ZPOEVWFWU-1,9.00,ADOLESCENT SERVICE-TAXI FARES,TAXI SERVICES,GPC
WALSALL COUNCIL,http://opendatacommunities.org/id/metropolitan-district-council/walsall ,30/06/2021,RESOURCES AND TRANSFORMATION,CHICKEN JOES LTD,01/04/2021,H59620210407ZQJNDJECE-1,170.76,CATERING - SCHOOLS-FOOD & DRINK SUPPLIES,CATERERS,GPC
WALSALL COUNCIL,http://opendatacommunities.org/id/metropolitan-district-council/walsall ,30/06/2021,CHILDRENS SERVICES,CURRYS ONLINE,01/04/2021,H59620210429UROCFBKMW-1,-329.00,VIRTUAL SCHOOL - CENTRAL PUPIL-PURCHASE OF FURNITURE & EQUIPM,ELECTRONIC SALES,GPC
WALSALL COUNCIL,http://opendatacommunities.org/id/metropolitan-district-council/walsall ,30/06/2021,ECONOMY & ENVIRONMENT,CALDMORE TIMBER 09 LTD,02/04/2021,H59620210407AXOVWTPNV-1,50.00,WALSALL ARENA AND ARTS CENTRE-PURCHASE OF FURNITURE & EQUIPM,OTHER INDUSTRIAL SUPPLIES,GPC
WALSALL COUNCIL,http://opendatacommunities.org/id/metropolitan-district-council/walsall ,30/06/2021,ECONOMY & ENVIRONMENT,CALDMORE TIMBER 09 LTD,02/04/2021,H59620210407AXOVWTPNV-2,8.50,WALSALL ARENA AND ARTS CENTRE-POSTAGES & COURIER SERVICES,OTHER INDUSTRIAL SUPPLIES,GPC
WALSALL COUNCIL,http://opendatacommunities.org/id/metropolitan-district-council/walsall ,30/06/2021,CHILDRENS SERVICES,BEVERLEY HOTEL LTD - T,02/04/2021,H59620210407BHKHKSKJF-1,283.50,BED & BREAKFAST PAYMENTS-BED & BREAKFAST PAYMENTS,"HOTELS, MOTELS, RESORTS",GPC
WALSALL COUNCIL,http://opendatacommunities.org/id/metropolitan-district-council/walsall ,30/06/2021,CHILDRENS SERVICES,ADOBE ACROPRO SUBS,02/04/2021,H59620210407EGCOCITIP-1,15.17,ADMINISTRATIVE SUPPLIES-MATERIALS,COMPUTER SOFTWARE STORES,GPC
WALSALL COUNCIL,http://opendatacommunities.org/id/metropolitan-district-council/walsall ,30/06/2021,CHILDRENS SERVICES,AMZNMKTPLACE,02/04/2021,H59620210407EVUNZZCLT-1,87.93,ADOLESCENT SERVICE-STATIONERY & GENERAL OFFICE SU,MISCELLANEOUS AND SPECIALTY RETAIL STORES,GPC
WALSALL COUNCIL,http://opendatacommunities.org/id/metropolitan-district-council/walsall ,30/06/2021,CHILDRENS SERVICES,AMZNMKTPLACE,02/04/2021,H59620210407FRXDAOWYG-1,221.84,ICT LEARNING RESOURCES-MATERIALS,MISCELLANEOUS AND SPECIALTY RETAIL STORES,GPC
WALSALL COUNCIL,http://opendatacommunities.org/id/metropolitan-district-council/walsall ,30/06/2021,CHILDRENS SERVICES,GOOGLE GSUITE_CADMUSSCHO,02/04/2021,H59620210407FVLIYTRDK-1,6.94,ICT LEARNING RESOURCES-SUBSCRIPTIONS,DIGITAL GOODS - APPLICATIONS (EXCLUDES GAMES),GPC
WALSALL COUNCIL,http://opendatacommunities.org/id/metropolitan-district-council/walsall ,30/06/2021,CHILDRENS SERVICES,CS* TESCO STORES GC,02/04/2021,H59620210407GKJRXNARV-1,12.00,SPECIAL FACILITIES-MATERIALS,OTHER BUSINESS SERVICES,GPC
WALSALL COUNCIL,http://opendatacommunities.org/id/metropolitan-district-council/walsall ,30/06/2021,RESOURCES AND TRANSFORMATION,ARTHUR BRETT CATER,02/04/2021,H59620210407GVLIRMJCV-1,81.52,CATERING - SCHOOLS-FOOD & DRINK SUPPLIES,MISCELLANEOUS FOOD STORES & CONVENIENCE STORES,GPC
WALSALL COUNCIL,http://opendatacommunities.org/id/metropolitan-district-council/walsall ,30/06/2021,CHILDRENS SERVICES,BEVERLEY HOTEL LTD - T,02/04/2021,H59620210407JMTZLQNDB-1,283.50,BED & BREAKFAST PAYMENTS-BED & BREAKFAST PAYMENTS,"HOTELS, MOTELS, RESORTS",GPC
WALSALL COUNCIL,http://opendatacommunities.org/id/metropolitan-district-council/walsall ,30/06/2021,CHILDRENS SERVICES,CS* TESCO STORES GC,02/04/2021,H59620210407KDRXQLNJE-1,24.00,SPECIAL FACILITIES-MATERIALS,OTHER BUSINESS SERVICES,GPC
WALSALL COUNCIL,http://opendatacommunities.org/id/metropolitan-district-council/walsall ,30/06/2021,CHILDRENS SERVICES,WWW.GAME.CO.UK,02/04/2021,H59620210407KNQOFRDWT-1,5.00,REDRUTH ROAD-RESIDENTS PERSONAL EXPENSES-AL,"GAME, TOY, AND HOBBY SHOPS",GPC
WALSALL COUNCIL,http://opendatacommunities.org/id/metropolitan-district-council/walsall ,30/06/2021,CHILDRENS SERVICES,GOOGLE GSUITE_ALUMWELLJU,02/04/2021,H59620210407RJBMTEPPU-1,6.00,ADMINISTRATIVE SUPPLIES-MATERIALS,DIGITAL GOODS - APPLICATIONS (EXCLUDES GAMES),GPC
WALSALL COUNCIL,http://opendatacommunities.org/id/metropolitan-district-council/walsall ,30/06/2021,RESOURCES AND TRANSFORMATION,ARTHUR BRETT CATER,02/04/2021,H59620210501VRXVJKBEC-1,-81.52,CATERING - SCHOOLS-FOOD & DRINK SUPPLIES,MISCELLANEOUS FOOD STORES & CONVENIENCE STORES,GPC
WALSALL COUNCIL,http://opendatacommunities.org/id/metropolitan-district-council/walsall ,30/06/2021,ECONOMY & ENVIRONMENT,AMZNMKTPLACE AMAZON.CO.UK,03/04/2021,H59620210407BWNDMXBDH-1,41.90,WALSALL GALA SWIMMING AND FITN-MATERIALS,MISCELLANEOUS AND SPECIALTY RETAIL STORES,GPC
WALSALL COUNCIL,http://opendatacommunities.org/id/metropolitan-district-council/walsall ,30/06/2021,CHILDRENS SERVICES,AMZNMKTPLACE,03/04/2021,H59620210407CNVDUAJEQ-1,15.98,E19-MATERIALS,MISCELLANEOUS AND SPECIALTY RETAIL STORES,GPC
WALSALL COUNCIL,http://opendatacommunities.org/id/metropolitan-district-council/walsall ,30/06/2021,CHILDRENS SERVICES,AMZNMKTPLACE,03/04/2021,H59620210407CNVDUAJEQ-2,37.14,E19-MATERIALS,MISCELLANEOUS AND SPECIALTY RETAIL STORES,GPC
WALSALL COUNCIL,http://opendatacommunities.org/id/metropolitan-district-council/walsall ,30/06/2021,RESOURCES AND TRANSFORMATION,WP ENGINE,03/04/2021,H59620210407GDPBBUXKJ-1,252.08,APPLICATIONS-COMPUTER EQUIPMENT,"COMPUTER PROGRAM, SYSTEM DESIGN",GPC
WALSALL COUNCIL,http://opendatacommunities.org/id/metropolitan-district-council/walsall ,30/06/2021,CHILDRENS SERVICES,AMAZON.CO.UK*MU3Y77IO4,04/04/2021,H59620210407AUYMBBIQI-1,85.80,TRADED WORKFORCE DEVELOPMENT-STATIONERY & GENERAL OFFICE SU,OTHER DIRECT MARKETING-OTHER DIRECT MARKETERS,GPC
WALSALL COUNCIL,http://opendatacommunities.org/id/metropolitan-district-council/walsall ,30/06/2021,CHILDRENS SERVICES,AMAZON.CO.UK*MU9YC0I34,04/04/2021,H59620210407EXLJUGMBK-1,65.60,TRADED WORKFORCE DEVELOPMENT-STATIONERY & GENERAL OFFICE SU,OTHER DIRECT MARKETING-OTHER DIRECT MARKETERS,GPC
WALSALL COUNCIL,http://opendatacommunities.org/id/metropolitan-district-council/walsall ,30/06/2021,CHILDRENS SERVICES,AMZNMKTPLACE,04/04/2021,H59620210407GDTMGSVVE-1,19.04,"43A HILTON ROAD, WILLENHALL-RESIDENTS PERSONAL EXPENSES-AL",MISCELLANEOUS AND SPECIALTY RETAIL STORES,GPC
WALSALL COUNCIL,http://opendatacommunities.org/id/metropolitan-district-council/walsall ,30/06/2021,CHILDRENS SERVICES,AMZNMKTPLACE,04/04/2021,H59620210407KJIBVNMJS-1,33.59,RUSHALL PRIMARY SCHOOL-OPERATIONAL MAINTENANCE,MISCELLANEOUS AND SPECIALTY RETAIL STORES,GPC
WALSALL COUNCIL,http://opendatacommunities.org/id/metropolitan-district-council/walsall ,30/06/2021,CHILDRENS SERVICES,AMZNMKTPLACE,04/04/2021,H59620210407LXXKMJWSD-1,12.99,"43A HILTON ROAD, WILLENHALL-RESIDENTS PERSONAL EXPENSES-AL",MISCELLANEOUS AND SPECIALTY RETAIL STORES,GPC
WALSALL COUNCIL,http://opendatacommunities.org/id/metropolitan-district-council/walsall ,30/06/2021,CHILDRENS SERVICES,THE QUEEN VICTORIA HOTEL,04/04/2021,H59620210407PMIVMVHEV-1,120.00,BED & BREAKFAST PAYMENTS-BED & BREAKFAST PAYMENTS,"HOTELS, MOTELS, RESORTS",GPC
WALSALL COUNCIL,http://opendatacommunities.org/id/metropolitan-district-council/walsall ,30/06/2021,CHILDRENS SERVICES,AMZNMKTPLACE,04/04/2021,H59620210407POGIGQECQ-1,41.76,"43A HILTON ROAD, WILLENHALL-PURCHASE OF FURNITURE & EQUIPM",MISCELLANEOUS AND SPECIALTY RETAIL STORES,GPC
WALSALL COUNCIL,http://opendatacommunities.org/id/metropolitan-district-council/walsall ,30/06/2021,CHILDRENS SERVICES,AMAZON.CO.UK*MU5QE7IE4,04/04/2021,H59620210407PYZEQJTWM-1,75.99,TRADED WORKFORCE DEVELOPMENT-STATIONERY & GENERAL OFFICE SU,OTHER DIRECT MARKETING-OTHER DIRECT MARKETERS,GPC
WALSALL COUNCIL,http://opendatacommunities.org/id/metropolitan-district-council/walsall ,30/06/2021,CHILDRENS SERVICES,AMZNMKTPLACE,04/04/2021,H59620210407TTNGTXDWD-1,22.22,OAKWOOD SCHOOL-OPERATIONAL MAINTENANCE,MISCELLANEOUS AND SPECIALTY RETAIL STORES,GPC
WALSALL COUNCIL,http://opendatacommunities.org/id/metropolitan-district-council/walsall ,30/06/2021,CHILDRENS SERVICES,AMZNMKTPLACE,04/04/2021,H59620210407TUFIUFJEK-1,12.00,"43A HILTON ROAD, WILLENHALL-CLEANING MATERIALS",MISCELLANEOUS AND SPECIALTY RETAIL STORES,GPC
WALSALL COUNCIL,http://opendatacommunities.org/id/metropolitan-district-council/walsall ,30/06/2021,CHILDRENS SERVICES,AMZNMKTPLACE,04/04/2021,H59620210407ULDPXKUSQ-1,43.98,"43A HILTON ROAD, WILLENHALL-PURCHASE OF FURNITURE & EQUIPM",MISCELLANEOUS AND SPECIALTY RETAIL STORES,GPC
WALSALL COUNCIL,http://opendatacommunities.org/id/metropolitan-district-council/walsall ,30/06/2021,CHILDRENS SERVICES,AMAZON.CO.UK*MU8E87R84,05/04/2021,H59620210407GCULKYRSX-1,56.63,NEW LEAF PUPIL REFERAL UNIT-LIBRARY BOOKS,OTHER DIRECT MARKETING-OTHER DIRECT MARKETERS,GPC
WALSALL COUNCIL,http://opendatacommunities.org/id/metropolitan-district-council/walsall ,30/06/2021,CHILDRENS SERVICES,AMAZON.CO.UK*MU3MJ2WS4,05/04/2021,H59620210407MEPWPSFRX-1,37.98,WATLING STREET PRIMARY SCHOOL-PERSONAL REQUISITES-MATERIALS,OTHER DIRECT MARKETING-OTHER DIRECT MARKETERS,GPC
WALSALL COUNCIL,http://opendatacommunities.org/id/metropolitan-district-council/walsall ,30/06/2021,ADULT SOCIAL CARE,HALFORDS ON LINE,05/04/2021,H59620210407SNXEFHFVQ-1,159.98,GOSCOTE-MATERIALS,BICYCLE SHOPS-SALES AND SERVICE,GPC
WALSALL COUNCIL,http://opendatacommunities.org/id/metropolitan-district-council/walsall ,30/06/2021,ECONOMY & ENVIRONMENT,FOREIGN EXCHANGE FEE,06/04/2021,H59620210407EJJGDJBEY-1,0.23,NAG - ART GALLERY MARKETING-OUTWORK PRINT & DESIGN,,GPC
WALSALL COUNCIL,http://opendatacommunities.org/id/metropolitan-district-council/walsall ,30/06/2021,RESOURCES AND TRANSFORMATION,FOREIGN EXCHANGE FEE,06/04/2021,H59620210407VKYNSLPVH-1,6.93,APPLICATIONS-COMPUTER EQUIPMENT,,GPC
WALSALL COUNCIL,http://opendatacommunities.org/id/metropolitan-district-council/walsall ,30/06/2021,CHILDRENS SERVICES,THETRAINLINE.COM,06/04/2021,H59620210408AFNWLHWBU-1,55.32,LOOKED AFTER CHILDRENS SOCIAL -SECTION 34 (CONTACT),PASSENGER RAILWAYS,GPC
WALSALL COUNCIL,http://opendatacommunities.org/id/metropolitan-district-council/walsall ,30/06/2021,RESOURCES AND TRANSFORMATION,BLAKEMORE FOODSERVICE,06/04/2021,H59620210408BQBMWSYYT-1,567.42,CATERING - SCHOOLS-FOOD & DRINK SUPPLIES,CATERERS,GPC
WALSALL COUNCIL,http://opendatacommunities.org/id/metropolitan-district-council/walsall ,30/06/2021,RESOURCES AND TRANSFORMATION,BLAKEMORE FOODSERVICE,06/04/2021,H59620210408BQBMWSYYT-2,71.50,CATERING - SCHOOLS-FOOD & DRINK SUPPLIES,CATERERS,GPC
WALSALL COUNCIL,http://opendatacommunities.org/id/metropolitan-district-council/walsall ,30/06/2021,RESOURCES AND TRANSFORMATION,BLAKEMORE FOODSERVICE,06/04/2021,H59620210408CHTYFERQO-1,3.65,CATERING - SCHOOLS-FOOD & DRINK SUPPLIES,CATERERS,GPC
WALSALL COUNCIL,http://opendatacommunities.org/id/metropolitan-district-council/walsall ,30/06/2021,CHILDRENS SERVICES,AMAZON.CO.UK*MU7FY4YO4 AM,06/04/2021,H59620210408CTEFFUUYR-1,53.12,E19-MATERIALS,MISCELLANEOUS AND SPECIALTY RETAIL STORES,GPC
WALSALL COUNCIL,http://opendatacommunities.org/id/metropolitan-district-council/walsall ,30/06/2021,RESOURCES AND TRANSFORMATION,BLAKEMORE FOODSERVICE,06/04/2021,H59620210408DCIGXWMMB-1,32.38,CATERING - SCHOOLS-FOOD & DRINK SUPPLIES,CATERERS,GPC
WALSALL COUNCIL,http://opendatacommunities.org/id/metropolitan-district-council/walsall ,30/06/2021,CHILDRENS SERVICES,GOOGLE YOUTUBEPREMIUM,06/04/2021,H59620210408EKHCJJFWC-1,11.99,ADMINISTRATIVE SUPPLIES-STATIONERY & GENERAL OFFICE SU,DIGITAL GOODS - APPLICATIONS (EXCLUDES GAMES),GPC
WALSALL COUNCIL,http://opendatacommunities.org/id/metropolitan-district-council/walsall ,30/06/2021,RESOURCES AND TRANSFORMATION,BLAKEMORE FOODSERVICE,06/04/2021,H59620210408EMSESGQBR-1,50.08,CATERING - SCHOOLS-FOOD & DRINK SUPPLIES,CATERERS,GPC
WALSALL COUNCIL,http://opendatacommunities.org/id/metropolitan-district-council/walsall ,30/06/2021,CHILDRENS SERVICES,MCDONALDS,06/04/2021,H59620210408FKNCDJCLG-1,7.52,"43A HILTON ROAD, WILLENHALL-RESIDENTS PERSONAL EXPENSES-AL",QUICK PAYMENT SERVICE-FAST-FOOD RESTAURANTS,GPC
WALSALL COUNCIL,http://opendatacommunities.org/id/metropolitan-district-council/walsall ,30/06/2021,CHILDRENS SERVICES,MCDONALDS,06/04/2021,H59620210408FKNCDJCLG-2,3.29,"43A HILTON ROAD, WILLENHALL-RESIDENTS PERSONAL EXPENSES-AL",QUICK PAYMENT SERVICE-FAST-FOOD RESTAURANTS,GPC
WALSALL COUNCIL,http://opendatacommunities.org/id/metropolitan-district-council/walsall ,30/06/2021,RESOURCES AND TRANSFORMATION,BLAKEMORE FOODSERVICE,06/04/2021,H59620210408FMEXWZIYI-1,-33.62,CATERING - SCHOOLS-FOOD & DRINK SUPPLIES,CATERERS,GPC
WALSALL COUNCIL,http://opendatacommunities.org/id/metropolitan-district-council/walsall ,30/06/2021,CHILDRENS SERVICES,METRO WALSALL,06/04/2021,H59620210408GUDPEXIBR-1,114.00,ACCOMMODATION SERVICES MANAGEM-BED & BREAKFAST PAYMENTS,"HOTELS, MOTELS, RESORTS",GPC
WALSALL COUNCIL,http://opendatacommunities.org/id/metropolitan-district-council/walsall ,30/06/2021,RESOURCES AND TRANSFORMATION,BLAKEMORE FOODSERVICE,06/04/2021,H59620210408GXOXEGSAF-1,-13.06,CATERING - SCHOOLS-FOOD & DRINK SUPPLIES,CATERERS,GPC
WALSALL COUNCIL,http://opendatacommunities.org/id/metropolitan-district-council/walsall ,30/06/2021,CHILDRENS SERVICES,ALDI 772 129,06/04/2021,H59620210408GZGAWIEPM-1,1.15,"43A HILTON ROAD, WILLENHALL-FOOD & DRINK SUPPLIES",GROCERY STORES AND SUPERMARKETS,GPC
WALSALL COUNCIL,http://opendatacommunities.org/id/metropolitan-district-council/walsall ,30/06/2021,CHILDRENS SERVICES,ALDI 772 129,06/04/2021,H59620210408GZGAWIEPM-2,5.56,"43A HILTON ROAD, WILLENHALL-FOOD & DRINK SUPPLIES",GROCERY STORES AND SUPERMARKETS,GPC
WALSALL COUNCIL,http://opendatacommunities.org/id/metropolitan-district-council/walsall ,30/06/2021,CHILDRENS SERVICES,AMZNMKTPLACE,06/04/2021,H59620210408HBBZTFDOP-1,46.75,SALISBURY PRIMARY SCHOOL-OPERATIONAL MAINTENANCE,MISCELLANEOUS AND SPECIALTY RETAIL STORES,GPC
WALSALL COUNCIL,http://opendatacommunities.org/id/metropolitan-district-council/walsall ,30/06/2021,ECONOMY & ENVIRONMENT,TOTAL ACCESS (UK),06/04/2021,H59620210408HDDDPLRWM-1,511.20,STRUCTURES & GEOTECHNICS-SUBSCRIPTIONS,OTHER BUSINESS SERVICES,GPC
WALSALL COUNCIL,http://opendatacommunities.org/id/metropolitan-district-council/walsall ,30/06/2021,CHILDRENS SERVICES,NEST.COM,06/04/2021,H59620210408HDGUHOVKM-1,40.00,ST FRANCIS OF ASSISI CATHOLIC -OPERATIONAL MAINTENANCE,ELECTRICAL PARTS AND EQUIPMENT,GPC
WALSALL COUNCIL,http://opendatacommunities.org/id/metropolitan-district-council/walsall ,30/06/2021,RESOURCES AND TRANSFORMATION,BLAKEMORE FOODSERVICE,06/04/2021,H59620210408HMOFZIXAJ-1,-0.84,CATERING - SCHOOLS-FOOD & DRINK SUPPLIES,CATERERS,GPC
WALSALL COUNCIL,http://opendatacommunities.org/id/metropolitan-district-council/walsall ,30/06/2021,ECONOMY & ENVIRONMENT,ASDA SUPERSTORE,06/04/2021,H59620210408HTAPYPTVK-1,16.00,BLOXWICH ACTIVE LIVING CENTRE-FOOD & DRINK SUPPLIES,GROCERY STORES AND SUPERMARKETS,GPC
WALSALL COUNCIL,http://opendatacommunities.org/id/metropolitan-district-council/walsall ,30/06/2021,ECONOMY & ENVIRONMENT,ASDA SUPERSTORE,06/04/2021,H59620210408HTAPYPTVK-2,0.60,BLOXWICH ACTIVE LIVING CENTRE-FOOD & DRINK SUPPLIES,GROCERY STORES AND SUPERMARKETS,GPC
WALSALL COUNCIL,http://opendatacommunities.org/id/metropolitan-district-council/walsall ,30/06/2021,RESOURCES AND TRANSFORMATION,BLAKEMORE FOODSERVICE,06/04/2021,H59620210408INEUHPYQT-1,59.42,CATERING - SCHOOLS-FOOD & DRINK SUPPLIES,CATERERS,GPC
WALSALL COUNCIL,http://opendatacommunities.org/id/metropolitan-district-council/walsall ,30/06/2021,RESOURCES AND TRANSFORMATION,NOBISCO LIMITED,06/04/2021,H59620210408JAGLJXXNV-1,55.51,CATERING - SCHOOLS-FOOD & DRINK SUPPLIES,OTHER INDUSTRIAL SUPPLIES,GPC
WALSALL COUNCIL,http://opendatacommunities.org/id/metropolitan-district-council/walsall ,30/06/2021,CHILDRENS SERVICES,MARTEN WALSH CHERER LT,06/04/2021,H59620210408JCFWYGIXQ-1,104.45,GENERAL MANAGEMENT SUPPORT (IN-PROFESSIONAL FEES & SERVICES,OTHER BUSINESS SERVICES,GPC
WALSALL COUNCIL,http://opendatacommunities.org/id/metropolitan-district-council/walsall ,30/06/2021,CHILDRENS SERVICES,POST OFFICE COUNTER,06/04/2021,H59620210408JCOXQTNGM-1,12.95,LOOKED AFTER CHILDRENS SOCIAL -POSTAGES & COURIER SERVICES,POSTAL SERVICES - GOVERNMENT ONLY,GPC
WALSALL COUNCIL,http://opendatacommunities.org/id/metropolitan-district-council/walsall ,30/06/2021,RESOURCES AND TRANSFORMATION,BLAKEMORE FOODSERVICE,06/04/2021,H59620210408LJVYLLRIJ-1,249.16,CATERING - SCHOOLS-FOOD & DRINK SUPPLIES,CATERERS,GPC
WALSALL COUNCIL,http://opendatacommunities.org/id/metropolitan-district-council/walsall ,30/06/2021,RESOURCES AND TRANSFORMATION,BLAKEMORE FOODSERVICE,06/04/2021,H59620210408LJVYLLRIJ-2,9.92,CATERING - SCHOOLS-FOOD & DRINK SUPPLIES,CATERERS,GPC
WALSALL COUNCIL,http://opendatacommunities.org/id/metropolitan-district-council/walsall ,30/06/2021,RESOURCES AND TRANSFORMATION,BLAKEMORE FOODSERVICE,06/04/2021,H59620210408LQIVIYFTS-1,150.26,CATERING - SCHOOLS-FOOD & DRINK SUPPLIES,CATERERS,GPC
WALSALL COUNCIL,http://opendatacommunities.org/id/metropolitan-district-council/walsall ,30/06/2021,RESOURCES AND TRANSFORMATION,BLAKEMORE FOODSERVICE,06/04/2021,H59620210408LSFDCLDFO-1,186.51,CATERING - SCHOOLS-FOOD & DRINK SUPPLIES,CATERERS,GPC
WALSALL COUNCIL,http://opendatacommunities.org/id/metropolitan-district-council/walsall ,30/06/2021,CHILDRENS SERVICES,ASDA GROCERIES ONLINE,06/04/2021,H59620210408MDYLPEKRM-1,140.69,KING CHARLES PRIMARY SCHOOL-MATERIALS,GROCERY STORES AND SUPERMARKETS,GPC
WALSALL COUNCIL,http://opendatacommunities.org/id/metropolitan-district-council/walsall ,30/06/2021,CHILDRENS SERVICES,WM MORRISONS STORE,06/04/2021,H59620210408MLNPNSVPL-1,8.00,TRANSITION AND LEAVING CARE PL-FOOD & DRINK SUPPLIES,GROCERY STORES AND SUPERMARKETS,GPC
WALSALL COUNCIL,http://opendatacommunities.org/id/metropolitan-district-council/walsall ,30/06/2021,CHILDRENS SERVICES,INSPIRATION BOOKS LTD,06/04/2021,H59620210408MRETTELOM-1,18.50,EDUCATIONAL PSYCHOLOGISTS-STATIONERY & GENERAL OFFICE SU,"BOOKS, PERIODICALS AND NEWSPAPERS",GPC
WALSALL COUNCIL,http://opendatacommunities.org/id/metropolitan-district-council/walsall ,30/06/2021,RESOURCES AND TRANSFORMATION,BLAKEMORE FOODSERVICE,06/04/2021,H59620210408MVKGNUEWR-1,341.88,CATERING - SCHOOLS-FOOD & DRINK SUPPLIES,CATERERS,GPC
WALSALL COUNCIL,http://opendatacommunities.org/id/metropolitan-district-council/walsall ,30/06/2021,RESOURCES AND TRANSFORMATION,BLAKEMORE FOODSERVICE,06/04/2021,H59620210408MVKGNUEWR-2,75.36,CATERING - SCHOOLS-FOOD & DRINK SUPPLIES,CATERERS,GPC
WALSALL COUNCIL,http://opendatacommunities.org/id/metropolitan-district-council/walsall ,30/06/2021,CHILDRENS SERVICES,BEVERLEY HOTEL LTD - T,06/04/2021,H59620210408NUVLORLED-1,38.00,ACCOMMODATION SERVICES MANAGEM-BED & BREAKFAST PAYMENTS,"HOTELS, MOTELS, RESORTS",GPC
WALSALL COUNCIL,http://opendatacommunities.org/id/metropolitan-district-council/walsall ,30/06/2021,RESOURCES AND TRANSFORMATION,BLAKEMORE FOODSERVICE,06/04/2021,H59620210408ODGXPPHGK-1,407.11,CATERING - SCHOOLS-FOOD & DRINK SUPPLIES,CATERERS,GPC
WALSALL COUNCIL,http://opendatacommunities.org/id/metropolitan-district-council/walsall ,30/06/2021,RESOURCES AND TRANSFORMATION,BLAKEMORE FOODSERVICE,06/04/2021,H59620210408OJFHSXEKW-1,213.36,CATERING - SCHOOLS-FOOD & DRINK SUPPLIES,CATERERS,GPC
WALSALL COUNCIL,http://opendatacommunities.org/id/metropolitan-district-council/walsall ,30/06/2021,RESOURCES AND TRANSFORMATION,BLAKEMORE FOODSERVICE,06/04/2021,H59620210408OJFHSXEKW-2,27.62,CATERING - SCHOOLS-FOOD & DRINK SUPPLIES,CATERERS,GPC
WALSALL COUNCIL,http://opendatacommunities.org/id/metropolitan-district-council/walsall ,30/06/2021,CHILDRENS SERVICES,GEN REGISTER OFFICE,06/04/2021,H59620210408PLQKWSGGE-1,42.00,SAFEGUARDING & FAMILY SUPPORT-SECTION 1/17CHILD CARE ACT 198,GOVERNMENT SERVICES,GPC
WALSALL COUNCIL,http://opendatacommunities.org/id/metropolitan-district-council/walsall ,30/06/2021,CHILDRENS SERVICES,WEST MIDLANDS TRAV,06/04/2021,H59620210408PMHOAOOJH-1,236.75,YOUTH JUSTICE SERVICE-VOLUNTEERS & OTHERS PUBLIC TRA,BUS LINES,GPC
WALSALL COUNCIL,http://opendatacommunities.org/id/metropolitan-district-council/walsall ,30/06/2021,CHILDRENS SERVICES,ALDI 42 772,06/04/2021,H59620210408QHIBNBKWH-1,5.14,REDRUTH ROAD-FOOD & DRINK SUPPLIES,GROCERY STORES AND SUPERMARKETS,GPC
WALSALL COUNCIL,http://opendatacommunities.org/id/metropolitan-district-council/walsall ,30/06/2021,CHILDRENS SERVICES,ALDI 42 772,06/04/2021,H59620210408QHIBNBKWH-2,91.77,REDRUTH ROAD-FOOD & DRINK SUPPLIES,GROCERY STORES AND SUPERMARKETS,GPC
WALSALL COUNCIL,http://opendatacommunities.org/id/metropolitan-district-council/walsall ,30/06/2021,RESOURCES AND TRANSFORMATION,BLAKEMORE FOODSERVICE,06/04/2021,H59620210408QSEZTHNPC-1,-44.74,CATERING - SCHOOLS-FOOD & DRINK SUPPLIES,CATERERS,GPC
WALSALL COUNCIL,http://opendatacommunities.org/id/metropolitan-district-council/walsall ,30/06/2021,RESOURCES AND TRANSFORMATION,FACEBK *9RSZ3Z6X82,06/04/2021,H59620210408QZKOGFOFW-1,14.34,RES-WALSALL WORKS-PUBLICITY & ADVERTISING (NON S,ADVERTISING SERVICES,GPC
WALSALL COUNCIL,http://opendatacommunities.org/id/metropolitan-district-council/walsall ,30/06/2021,RESOURCES AND TRANSFORMATION,BLAKEMORE FOODSERVICE,06/04/2021,H59620210408RMGBLQNSJ-1,193.91,CATERING - SCHOOLS-FOOD & DRINK SUPPLIES,CATERERS,GPC
WALSALL COUNCIL,http://opendatacommunities.org/id/metropolitan-district-council/walsall ,30/06/2021,RESOURCES AND TRANSFORMATION,BLAKEMORE FOODSERVICE,06/04/2021,H59620210408RMGBLQNSJ-2,29.77,CATERING - SCHOOLS-FOOD & DRINK SUPPLIES,CATERERS,GPC
WALSALL COUNCIL,http://opendatacommunities.org/id/metropolitan-district-council/walsall ,30/06/2021,RESOURCES AND TRANSFORMATION,BLAKEMORE FOODSERVICE,06/04/2021,H59620210408RTSVGYDWD-1,98.56,CATERING - SCHOOLS-FOOD & DRINK SUPPLIES,CATERERS,GPC
WALSALL COUNCIL,http://opendatacommunities.org/id/metropolitan-district-council/walsall ,30/06/2021,CHILDRENS SERVICES,UTILITA ENERGY LTD,06/04/2021,H59620210408SYXBMOKCB-1,50.00,WALSALL CRISIS SUPPORT SCHEME-OTHER ENERGY COSTS,"UTILITIES - ELECTRIC, GAS, SANITARY & WATER",GPC
WALSALL COUNCIL,http://opendatacommunities.org/id/metropolitan-district-council/walsall ,30/06/2021,RESOURCES AND TRANSFORMATION,NOBISCO LIMITED,06/04/2021,H59620210408UFODLVUWS-1,-74.04,CATERING - SCHOOLS-FOOD & DRINK SUPPLIES,OTHER INDUSTRIAL SUPPLIES,GPC
WALSALL COUNCIL,http://opendatacommunities.org/id/metropolitan-district-council/walsall ,30/06/2021,ECONOMY & ENVIRONMENT,B & Q 1276,06/04/2021,H59620210408VPPHFFBNB-1,12.47,INFRASTRUCTURE MAINTENANCE-MATERIALS,HOME SUPPLY WAREHOUSE STORES,GPC
WALSALL COUNCIL,http://opendatacommunities.org/id/metropolitan-district-council/walsall ,30/06/2021,RESOURCES AND TRANSFORMATION,BLAKEMORE FOODSERVICE,06/04/2021,H59620210408WIYSDDTSU-1,281.87,CATERING - SCHOOLS-FOOD & DRINK SUPPLIES,CATERERS,GPC
WALSALL COUNCIL,http://opendatacommunities.org/id/metropolitan-district-council/walsall ,30/06/2021,RESOURCES AND TRANSFORMATION,BLAKEMORE FOODSERVICE,06/04/2021,H59620210408WIYSDDTSU-2,9.92,CATERING - SCHOOLS-FOOD & DRINK SUPPLIES,CATERERS,GPC
WALSALL COUNCIL,http://opendatacommunities.org/id/metropolitan-district-council/walsall ,30/06/2021,RESOURCES AND TRANSFORMATION,WWW.BANNERUK.COM,06/04/2021,H59620210408XCCJRZFFC-1,-55.75,CENTRALISED STATIONARY-STATIONERY & GENERAL OFFICE SU,"STATIONERY, OFFICE SUPPLIES AND WRITING PAPER",GPC
WALSALL COUNCIL,http://opendatacommunities.org/id/metropolitan-district-council/walsall ,30/06/2021,RESOURCES AND TRANSFORMATION,BLAKEMORE FOODSERVICE,06/04/2021,H59620210408XFKMOYUNE-1,290.99,CATERING - SCHOOLS-FOOD & DRINK SUPPLIES,CATERERS,GPC
WALSALL COUNCIL,http://opendatacommunities.org/id/metropolitan-district-council/walsall ,30/06/2021,RESOURCES AND TRANSFORMATION,BLAKEMORE FOODSERVICE,06/04/2021,H59620210408XFKMOYUNE-2,19.84,CATERING - SCHOOLS-FOOD & DRINK SUPPLIES,CATERERS,GPC
WALSALL COUNCIL,http://opendatacommunities.org/id/metropolitan-district-council/walsall ,30/06/2021,CHILDRENS SERVICES,ASDA SUPERSTORE,06/04/2021,H59620210408YQPYDEQAD-1,17.35,REDRUTH ROAD-FOOD & DRINK SUPPLIES,GROCERY STORES AND SUPERMARKETS,GPC
WALSALL COUNCIL,http://opendatacommunities.org/id/metropolitan-district-council/walsall ,30/06/2021,RESOURCES AND TRANSFORMATION,BLAKEMORE FOODSERVICE,06/04/2021,H59620210408YVCVRQJWP-1,444.83,CATERING - SCHOOLS-FOOD & DRINK SUPPLIES,CATERERS,GPC
WALSALL COUNCIL,http://opendatacommunities.org/id/metropolitan-district-council/walsall ,30/06/2021,RESOURCES AND TRANSFORMATION,BLAKEMORE FOODSERVICE,06/04/2021,H59620210408YVCVRQJWP-2,9.92,CATERING - SCHOOLS-FOOD & DRINK SUPPLIES,CATERERS,GPC
WALSALL COUNCIL,http://opendatacommunities.org/id/metropolitan-district-council/walsall ,30/06/2021,RESOURCES AND TRANSFORMATION,BLAKEMORE FOODSERVICE,06/04/2021,H59620210408ZSNLNSCVI-1,589.72,CATERING - SCHOOLS-FOOD & DRINK SUPPLIES,CATERERS,GPC
WALSALL COUNCIL,http://opendatacommunities.org/id/metropolitan-district-council/walsall ,30/06/2021,RESOURCES AND TRANSFORMATION,BLAKEMORE FOODSERVICE,06/04/2021,H59620210408ZSNLNSCVI-2,19.84,CATERING - SCHOOLS-FOOD & DRINK SUPPLIES,CATERERS,GPC
WALSALL COUNCIL,http://opendatacommunities.org/id/metropolitan-district-council/walsall ,30/06/2021,RESOURCES AND TRANSFORMATION,BLAKEMORE FOODSERVICE,06/04/2021,H59620210408ZVSBNFTOA-1,24.37,CATERING - SCHOOLS-FOOD & DRINK SUPPLIES,CATERERS,GPC
WALSALL COUNCIL,http://opendatacommunities.org/id/metropolitan-district-council/walsall ,30/06/2021,CHILDRENS SERVICES,WWW.MYPOSTSHOP.COM,06/04/2021,H59620210409HPWFCNFBI-1,431.00,CHILDREN'S COMMISSIONING-STATIONERY & GENERAL OFFICE SU,"STATIONERY, OFFICE SUPPLIES AND WRITING PAPER",GPC
WALSALL COUNCIL,http://opendatacommunities.org/id/metropolitan-district-council/walsall ,30/06/2021,CHILDRENS SERVICES,WWW.MYPOSTSHOP.COM,06/04/2021,H59620210409HPWFCNFBI-2,3.49,CHILDREN'S COMMISSIONING-STATIONERY & GENERAL OFFICE SU,"STATIONERY, OFFICE SUPPLIES AND WRITING PAPER",GPC
WALSALL COUNCIL,http://opendatacommunities.org/id/metropolitan-district-council/walsall ,30/06/2021,CHILDRENS SERVICES,247 CARS WILLENHALL LTD,06/04/2021,H59620210409KLUJIEPEP-1,6.10,LOCALITY FAMILY SUPPORT-WEST-TAXI FARES,TAXI SERVICES,GPC
WALSALL COUNCIL,http://opendatacommunities.org/id/metropolitan-district-council/walsall ,30/06/2021,CHILDRENS SERVICES,247 CARS WILLENHALL LTD,06/04/2021,H59620210409NEMZNQETQ-1,6.10,LOCALITY FAMILY SUPPORT-WEST-TAXI FARES,TAXI SERVICES,GPC
WALSALL COUNCIL,http://opendatacommunities.org/id/metropolitan-district-council/walsall ,30/06/2021,CHILDRENS SERVICES,TESCO PFS 5278,06/04/2021,H59620210409PQWUKSJGF-1,4.60,"43A HILTON ROAD, WILLENHALL-RESIDENTS PERSONAL EXPENSES-AL",SERVICE STATIONS,GPC
WALSALL COUNCIL,http://opendatacommunities.org/id/metropolitan-district-council/walsall ,30/06/2021,CHILDRENS SERVICES,TESCO PFS 5278,06/04/2021,H59620210409PQWUKSJGF-2,10.00,"43A HILTON ROAD, WILLENHALL-RESIDENTS PERSONAL EXPENSES-AL",SERVICE STATIONS,GPC
WALSALL COUNCIL,http://opendatacommunities.org/id/metropolitan-district-council/walsall ,30/06/2021,RESOURCES AND TRANSFORMATION,BLAKEMORE FOODSERVICE,06/04/2021,H59620210409PYSIWIYQJ-1,-9.92,CATERING - SCHOOLS-FOOD & DRINK SUPPLIES,CATERERS,GPC
WALSALL COUNCIL,http://opendatacommunities.org/id/metropolitan-district-council/walsall ,30/06/2021,ECONOMY & ENVIRONMENT,WIX.COM*919501013,06/04/2021,H59620210413NMKVALHQW-1,100.08,INTEGRATED COMMUNITIES PROGRAM-COMPUTER EQUIPMENT,DIGITAL GOODS - APPLICATIONS (EXCLUDES GAMES),GPC
WALSALL COUNCIL,http://opendatacommunities.org/id/metropolitan-district-council/walsall ,30/06/2021,CHILDRENS SERVICES,WWW.WMCA.ORG.UK,07/04/2021,H59620210409AGNXGUSSS-1,108.00,REDRUTH ROAD-RESIDENTS PERSONAL EXPENSES-AL,LOCAL AND SUBURBAN COMMUTER TRANSPORTATION,GPC
WALSALL COUNCIL,http://opendatacommunities.org/id/metropolitan-district-council/walsall ,30/06/2021,CHILDRENS SERVICES,AMZNMKTPLACE,07/04/2021,H59620210409BRFSEJKMB-1,4.44,BLUEBELLS-PURCHASE OF FURNITURE & EQUIPM,MISCELLANEOUS AND SPECIALTY RETAIL STORES,GPC
WALSALL COUNCIL,http://opendatacommunities.org/id/metropolitan-district-council/walsall ,30/06/2021,CHILDRENS SERVICES,HOME BARGAINS,07/04/2021,H59620210409CPXJFUGTW-1,38.20,"43A HILTON ROAD, WILLENHALL-RESIDENTS PERSONAL EXPENSES-AL",HARDWARE STORES,GPC
WALSALL COUNCIL,http://opendatacommunities.org/id/metropolitan-district-council/walsall ,30/06/2021,ECONOMY & ENVIRONMENT,AMZNMKTPLACE,07/04/2021,H59620210409CVQOPGSEL-1,30.97,FLEET-MATERIALS,MISCELLANEOUS AND SPECIALTY RETAIL STORES,GPC
WALSALL COUNCIL,http://opendatacommunities.org/id/metropolitan-district-council/walsall ,30/06/2021,ECONOMY & ENVIRONMENT,WILKO RETAIL LIMITED,07/04/2021,H59620210409DVJRXQVYP-1,4.00,STREETLY LIBRARY-MATERIALS,MISCELLANEOUS GENERAL MERCHANDISE,GPC
WALSALL COUNCIL,http://opendatacommunities.org/id/metropolitan-district-council/walsall ,30/06/2021,CHILDRENS SERVICES,ASDA,07/04/2021,H59620210409EPGETYCGV-1,50.00,ACCOMMODATION SERVICES MANAGEM-FOOD & DRINK SUPPLIES,GROCERY STORES AND SUPERMARKETS,GPC
WALSALL COUNCIL,http://opendatacommunities.org/id/metropolitan-district-council/walsall ,30/06/2021,ECONOMY & ENVIRONMENT,AMAZON.CO.UK*M40GT9OG4 AM,07/04/2021,H59620210409EUILLNWTS-1,16.88,ALDRIDGE LIBRARY-PURCHASE OF FURNITURE & EQUIPM,MISCELLANEOUS AND SPECIALTY RETAIL STORES,GPC
WALSALL COUNCIL,http://opendatacommunities.org/id/metropolitan-district-council/walsall ,30/06/2021,CHILDRENS SERVICES,AMAZON.CO.UK*M49PJ8O44,07/04/2021,H59620210409FKZXGCEHI-1,19.23,ADVICE & GUIDANCE SERVICE-OTHER EMPLOYEES FEES & EXPENSE,OTHER DIRECT MARKETING-OTHER DIRECT MARKETERS,GPC
WALSALL COUNCIL,http://opendatacommunities.org/id/metropolitan-district-council/walsall ,30/06/2021,CHILDRENS SERVICES,AMZNMKTPLACE,07/04/2021,H59620210409FPRILLCVR-1,6.39,GENERAL-MATERIALS,MISCELLANEOUS AND SPECIALTY RETAIL STORES,GPC
WALSALL COUNCIL,http://opendatacommunities.org/id/metropolitan-district-council/walsall ,30/06/2021,ECONOMY & ENVIRONMENT,DEANNE CROOKS,07/04/2021,H59620210409FQOXVYFCP-1,2.00,NEW ART GALLERY - ADMIN-STATIONERY & GENERAL OFFICE SU,ART DEALERS AND GALLERIES,GPC
WALSALL COUNCIL,http://opendatacommunities.org/id/metropolitan-district-council/walsall ,30/06/2021,CHILDRENS SERVICES,SAINSBURYS S/MKT,07/04/2021,H59620210409FROHGYJLC-1,2.75,"43A HILTON ROAD, WILLENHALL-RESIDENTS PERSONAL EXPENSES-AL",GROCERY STORES AND SUPERMARKETS,GPC
WALSALL COUNCIL,http://opendatacommunities.org/id/metropolitan-district-council/walsall ,30/06/2021,CHILDRENS SERVICES,ASDA,07/04/2021,H59620210409GKICHUFVC-1,199.30,ACCOMMODATION SERVICES MANAGEM-PURCHASE OF FURNITURE & EQUIPM,GROCERY STORES AND SUPERMARKETS,GPC
WALSALL COUNCIL,http://opendatacommunities.org/id/metropolitan-district-council/walsall ,30/06/2021,ECONOMY & ENVIRONMENT,AMAZON.CO.UK*M42YN7OR4 AM,07/04/2021,H59620210409HGFZKRCJS-1,16.12,ALDRIDGE LIBRARY-PURCHASE OF FURNITURE & EQUIPM,MISCELLANEOUS AND SPECIALTY RETAIL STORES,GPC
WALSALL COUNCIL,http://opendatacommunities.org/id/metropolitan-district-council/walsall ,30/06/2021,CHILDRENS SERVICES,WWW.INFORMA.COM,07/04/2021,H59620210409IFYRFDUKH-1,153.57,EDUCATIONAL PSYCHOLOGISTS-MATERIALS,MISCELLANEOUS PUBLISHING AND PRINTING,GPC
WALSALL COUNCIL,http://opendatacommunities.org/id/metropolitan-district-council/walsall ,30/06/2021,CHILDRENS SERVICES,GEN REGISTER OFFICE,07/04/2021,H59620210409IICMEJZFX-1,33.00,SAFEGUARDING & FAMILY SUPPORT-FEES & LICENCES,GOVERNMENT SERVICES,GPC
WALSALL COUNCIL,http://opendatacommunities.org/id/metropolitan-district-council/walsall ,30/06/2021,CHILDRENS SERVICES,POST OFFICE COUNTER,07/04/2021,H59620210409KXULQUGRE-1,8.95,SAFEGUARDING & FAMILY SUPPORT-POSTAGES & COURIER SERVICES,POSTAL SERVICES - GOVERNMENT ONLY,GPC
WALSALL COUNCIL,http://opendatacommunities.org/id/metropolitan-district-council/walsall ,30/06/2021,ECONOMY & ENVIRONMENT,MIDLANDNEWS.COM,07/04/2021,H59620210409MBBGCQSVW-1,333.12,DEVELOPMENT MANAGEMENT-SUBSCRIPTIONS,NEWS DEALERS AND NEWSSTANDS,GPC
WALSALL COUNCIL,http://opendatacommunities.org/id/metropolitan-district-council/walsall ,30/06/2021,CHILDRENS SERVICES,AMAZON.CO.UK*M44087O44 AM,07/04/2021,H59620210409MRQJUBYXY-1,32.95,"43A HILTON ROAD, WILLENHALL-PURCHASE OF FURNITURE & EQUIPM",MISCELLANEOUS AND SPECIALTY RETAIL STORES,GPC
WALSALL COUNCIL,http://opendatacommunities.org/id/metropolitan-district-council/walsall ,30/06/2021,CHILDRENS SERVICES,AMZNMKTPLACE,07/04/2021,H59620210409NWCRJQUGC-1,12.96,"43A HILTON ROAD, WILLENHALL-PURCHASE OF FURNITURE & EQUIPM",MISCELLANEOUS AND SPECIALTY RETAIL STORES,GPC
WALSALL COUNCIL,http://opendatacommunities.org/id/metropolitan-district-council/walsall ,30/06/2021,CHILDRENS SERVICES,POST OFFICE COUNTER,07/04/2021,H59620210409QRUBTSLXY-1,151.00,CHILDREN'S COMMISSIONING-POSTAGES & COURIER SERVICES,POSTAL SERVICES - GOVERNMENT ONLY,GPC
WALSALL COUNCIL,http://opendatacommunities.org/id/metropolitan-district-council/walsall ,30/06/2021,CHILDRENS SERVICES,WWW.WMCA.ORG.UK,07/04/2021,H59620210409SJKODLCKV-1,108.00,REDRUTH ROAD-RESIDENTS PERSONAL EXPENSES-AL,LOCAL AND SUBURBAN COMMUTER TRANSPORTATION,GPC
WALSALL COUNCIL,http://opendatacommunities.org/id/metropolitan-district-council/walsall ,30/06/2021,CHILDRENS SERVICES,NISA LOCAL,07/04/2021,H59620210409SLJSQTHTY-1,4.46,REDRUTH ROAD-FOOD & DRINK SUPPLIES,MISCELLANEOUS FOOD STORES & CONVENIENCE STORES,GPC
WALSALL COUNCIL,http://opendatacommunities.org/id/metropolitan-district-council/walsall ,30/06/2021,CHILDRENS SERVICES,HOME BARGAINS,07/04/2021,H59620210409SLRCNDXYJ-1,2.57,ADOLESCENT SERVICE-FOOD & DRINK SUPPLIES,HARDWARE STORES,GPC
WALSALL COUNCIL,http://opendatacommunities.org/id/metropolitan-district-council/walsall ,30/06/2021,CHILDRENS SERVICES,WWW.GAME.CO.UK,07/04/2021,H59620210409SMIFQHVXU-1,5.00,REDRUTH ROAD-RESIDENTS PERSONAL EXPENSES-AL,"GAME, TOY, AND HOBBY SHOPS",GPC
WALSALL COUNCIL,http://opendatacommunities.org/id/metropolitan-district-council/walsall ,30/06/2021,ADULT SOCIAL CARE,AMZNMKTPLACE AMAZON.CO.UK,07/04/2021,H59620210409SWUYQMFQL-1,69.99,INTEGRATED BUSINESS SUPPORT-STATIONERY & GENERAL OFFICE SU,MISCELLANEOUS AND SPECIALTY RETAIL STORES,GPC
WALSALL COUNCIL,http://opendatacommunities.org/id/metropolitan-district-council/walsall ,30/06/2021,CHILDRENS SERVICES,AMAZON.CO.UK*M480L4OX4 AM,07/04/2021,H59620210409TESRNMFLS-1,32.95,"43A HILTON ROAD, WILLENHALL-PURCHASE OF FURNITURE & EQUIPM",MISCELLANEOUS AND SPECIALTY RETAIL STORES,GPC
WALSALL COUNCIL,http://opendatacommunities.org/id/metropolitan-district-council/walsall ,30/06/2021,CHILDRENS SERVICES,BUZZ NETWORKS TA VIRTUAL,07/04/2021,H59620210409VXEGLMCAQ-1,12.96,ADMINISTRATIVE SUPPLIES-LANDLINE PHONES,TELECOMMUNICATION SERVICES,GPC
WALSALL COUNCIL,http://opendatacommunities.org/id/metropolitan-district-council/walsall ,30/06/2021,ECONOMY & ENVIRONMENT,L & S ENGINEERS LTD,07/04/2021,H59620210409VXJTVZXUN-1,9.13,INFRASTRUCTURE MAINTENANCE-MATERIALS,HARDWARE STORES,GPC
WALSALL COUNCIL,http://opendatacommunities.org/id/metropolitan-district-council/walsall ,30/06/2021,CHILDRENS SERVICES,WWW.WMCA.ORG.UK,07/04/2021,H59620210409WRYKUHLFX-1,108.00,REDRUTH ROAD-RESIDENTS PERSONAL EXPENSES-AL,LOCAL AND SUBURBAN COMMUTER TRANSPORTATION,GPC
WALSALL COUNCIL,http://opendatacommunities.org/id/metropolitan-district-council/walsall ,30/06/2021,CHILDRENS SERVICES,METRO WALSALL,07/04/2021,H59620210409XYXRFDHLD-1,38.00,YOUNG PERSONS HOMELESS SERVICE-BED & BREAKFAST PAYMENTS,"HOTELS, MOTELS, RESORTS",GPC
WALSALL COUNCIL,http://opendatacommunities.org/id/metropolitan-district-council/walsall ,30/06/2021,ADULT SOCIAL CARE,SMARTY CO UK,07/04/2021,H59620210409YMZMMVZRU-1,7.00,EMERGENCY DUTY TEAM-MOBILE PHONES,TELECOMMUNICATION SERVICES,GPC
WALSALL COUNCIL,http://opendatacommunities.org/id/metropolitan-district-council/walsall ,30/06/2021,CHILDRENS SERVICES,ARGOS LTD,07/04/2021,H59620210409YTBCBWQFT-1,63.95,SAFEGUARDING & FAMILY SUPPORT-PURCHASE OF FURNITURE & EQUIPM,DISCOUNT STORES,GPC
WALSALL COUNCIL,http://opendatacommunities.org/id/metropolitan-district-council/walsall ,30/06/2021,ECONOMY & ENVIRONMENT,WALSALL COUNCIL,08/04/2021,H59620210410BGEHVIYSI-1,11.00,EH DIV GENERAL COSTS-FEES & LICENCES,GOVERNMENT SERVICES,GPC
WALSALL COUNCIL,http://opendatacommunities.org/id/metropolitan-district-council/walsall ,30/06/2021,ECONOMY & ENVIRONMENT,WWW.UK.INSIGHT.COM,08/04/2021,H59620210410BIMLVVDLG-1,6071.88,RESOURCE MANAGEMENT-COMPUTER EQUIPMENT,DIRECT MARKETING CATALOG MERCHANTS,GPC
WALSALL COUNCIL,http://opendatacommunities.org/id/metropolitan-district-council/walsall ,30/06/2021,CHILDRENS SERVICES,AIRBNB * HMYM45H38C,08/04/2021,H59620210410BWRWTLKMJ-1,78.35,LOOKED AFTER CHILDRENS SOCIAL -HOTEL ACCOMMODATION-EMPLOYEES,"HOTELS, MOTELS, RESORTS",GPC
WALSALL COUNCIL,http://opendatacommunities.org/id/metropolitan-district-council/walsall ,30/06/2021,CHILDRENS SERVICES,AMZNMKTPLACE,08/04/2021,H59620210410CRRIQVLYF-1,44.90,SALISBURY PRIMARY SCHOOL-OPERATIONAL MAINTENANCE,MISCELLANEOUS AND SPECIALTY RETAIL STORES,GPC
WALSALL COUNCIL,http://opendatacommunities.org/id/metropolitan-district-council/walsall ,30/06/2021,CHILDRENS SERVICES,WICKES BUILDING,08/04/2021,H59620210410DKBUNGETC-1,-11.00,WALSALL WOOD PRIMARY SCHOOL-OPERATIONAL MAINTENANCE,LUMBER & BUILDING MATERIALS STORES,GPC
WALSALL COUNCIL,http://opendatacommunities.org/id/metropolitan-district-council/walsall ,30/06/2021,CHILDRENS SERVICES,POST OFFICE COUNTER,08/04/2021,H59620210410DRJDINSTW-1,35.20,FAMILY PLACEMENTS-POSTAGES & COURIER SERVICES,POSTAL SERVICES - GOVERNMENT ONLY,GPC
WALSALL COUNCIL,http://opendatacommunities.org/id/metropolitan-district-council/walsall ,30/06/2021,CHILDRENS SERVICES,MCDONALDS,08/04/2021,H59620210410DUKWGBNBV-1,8.82,"43A HILTON ROAD, WILLENHALL-RESIDENTS PERSONAL EXPENSES-AL",QUICK PAYMENT SERVICE-FAST-FOOD RESTAURANTS,GPC
WALSALL COUNCIL,http://opendatacommunities.org/id/metropolitan-district-council/walsall ,30/06/2021,CHILDRENS SERVICES,MCDONALDS,08/04/2021,H59620210410DUKWGBNBV-2,1.43,"43A HILTON ROAD, WILLENHALL-RESIDENTS PERSONAL EXPENSES-AL",QUICK PAYMENT SERVICE-FAST-FOOD RESTAURANTS,GPC
WALSALL COUNCIL,http://opendatacommunities.org/id/metropolitan-district-council/walsall ,30/06/2021,CHILDRENS SERVICES,MCDONALDS,08/04/2021,H59620210410DUKWGBNBV-3,1.03,"43A HILTON ROAD, WILLENHALL-RESIDENTS PERSONAL EXPENSES-AL",QUICK PAYMENT SERVICE-FAST-FOOD RESTAURANTS,GPC
WALSALL COUNCIL,http://opendatacommunities.org/id/metropolitan-district-council/walsall ,30/06/2021,CHILDRENS SERVICES,AMZNMKTPLACE,08/04/2021,H59620210410IGXKPTABS-1,16.99,NEW LEAF PUPIL REFERAL UNIT-STATIONERY & GENERAL OFFICE SU,MISCELLANEOUS AND SPECIALTY RETAIL STORES,GPC
WALSALL COUNCIL,http://opendatacommunities.org/id/metropolitan-district-council/walsall ,30/06/2021,CHILDRENS SERVICES,WICKES BUILDING,08/04/2021,H59620210410INAOUNRGI-1,44.00,WALSALL WOOD PRIMARY SCHOOL-OPERATIONAL MAINTENANCE,LUMBER & BUILDING MATERIALS STORES,GPC
WALSALL COUNCIL,http://opendatacommunities.org/id/metropolitan-district-council/walsall ,30/06/2021,CHILDRENS SERVICES,WM MORRISONS STORE,08/04/2021,H59620210410MFAJFWCYD-1,15.98,"43A HILTON ROAD, WILLENHALL-FOOD & DRINK SUPPLIES",GROCERY STORES AND SUPERMARKETS,GPC
WALSALL COUNCIL,http://opendatacommunities.org/id/metropolitan-district-council/walsall ,30/06/2021,CHILDRENS SERVICES,WM MORRISONS STORE,08/04/2021,H59620210410MFAJFWCYD-2,53.97,"43A HILTON ROAD, WILLENHALL-FOOD & DRINK SUPPLIES",GROCERY STORES AND SUPERMARKETS,GPC
WALSALL COUNCIL,http://opendatacommunities.org/id/metropolitan-district-council/walsall ,30/06/2021,RESOURCES AND TRANSFORMATION,FACEBK RZNL8ZS942,08/04/2021,H59620210410MZPLOYYKX-1,8.50,YEI ESF FUNDING-PUBLICITY & ADVERTISING (NON S,ADVERTISING SERVICES,GPC
WALSALL COUNCIL,http://opendatacommunities.org/id/metropolitan-district-council/walsall ,30/06/2021,RESOURCES AND TRANSFORMATION,FACEBK RZNL8ZS942,08/04/2021,H59620210410MZPLOYYKX-2,8.50,YEI (IMPACT) PROGRAMME-PUBLICITY & ADVERTISING (NON S,ADVERTISING SERVICES,GPC
WALSALL COUNCIL,http://opendatacommunities.org/id/metropolitan-district-council/walsall ,30/06/2021,ECONOMY & ENVIRONMENT,WWW.BANNERUK.COM,08/04/2021,H59620210410NDJFFOJPI-1,153.40,LOCAL HISTORY CENTRE-STATIONERY & GENERAL OFFICE SU,"STATIONERY, OFFICE SUPPLIES AND WRITING PAPER",GPC
WALSALL COUNCIL,http://opendatacommunities.org/id/metropolitan-district-council/walsall ,30/06/2021,ECONOMY & ENVIRONMENT,WWW.BANNERUK.COM,08/04/2021,H59620210410NHPYQUXWP-1,150.52,LIBRARY OPERATIONS CENTRAL-STATIONERY & GENERAL OFFICE SU,"STATIONERY, OFFICE SUPPLIES AND WRITING PAPER",GPC
WALSALL COUNCIL,http://opendatacommunities.org/id/metropolitan-district-council/walsall ,30/06/2021,ECONOMY & ENVIRONMENT,L & S ENGINEERS LTD,08/04/2021,H59620210410OTBOLCCDQ-1,20.32,INFRASTRUCTURE MAINTENANCE-MATERIALS,HARDWARE STORES,GPC
WALSALL COUNCIL,http://opendatacommunities.org/id/metropolitan-district-council/walsall ,30/06/2021,ECONOMY & ENVIRONMENT,WALSALL COUNCIL,08/04/2021,H59620210410PAIQIVRSN-1,11.00,EH DIV GENERAL COSTS-FEES & LICENCES,GOVERNMENT SERVICES,GPC
WALSALL COUNCIL,http://opendatacommunities.org/id/metropolitan-district-council/walsall ,30/06/2021,CHILDRENS SERVICES,WWW.UTILITA.CO.UK,08/04/2021,H59620210410QQOPHOOXS-1,10.00,TENANCY SERVICE-OTHER ENERGY COSTS,"UTILITIES - ELECTRIC, GAS, SANITARY & WATER",GPC
WALSALL COUNCIL,http://opendatacommunities.org/id/metropolitan-district-council/walsall ,30/06/2021,ECONOMY & ENVIRONMENT,AMAZON.CO.UK*M43YT4464 AM,08/04/2021,H59620210410SPJKPGKDW-1,15.98,ALDRIDGE LIBRARY-CLEANING MATERIALS,MISCELLANEOUS AND SPECIALTY RETAIL STORES,GPC
WALSALL COUNCIL,http://opendatacommunities.org/id/metropolitan-district-council/walsall ,30/06/2021,CHILDRENS SERVICES,METRO WALSALL,08/04/2021,H59620210410SWKLKIROR-1,38.00,YOUNG PERSONS HOMELESS SERVICE-BED & BREAKFAST PAYMENTS,"HOTELS, MOTELS, RESORTS",GPC
WALSALL COUNCIL,http://opendatacommunities.org/id/metropolitan-district-council/walsall ,30/06/2021,CHILDRENS SERVICES,ROCK UP BIRMINGHAM,08/04/2021,H59620210410UBXDOSUZK-1,41.85,REDRUTH ROAD-RESIDENTS PERSONAL EXPENSES-AL,OTHER RECREATION SERVICES,GPC
WALSALL COUNCIL,http://opendatacommunities.org/id/metropolitan-district-council/walsall ,30/06/2021,CHILDRENS SERVICES,WWW.WMCA.ORG.UK,08/04/2021,H59620210410ULQCVLQPK-1,108.00,REDRUTH ROAD-RESIDENTS PERSONAL EXPENSES-AL,LOCAL AND SUBURBAN COMMUTER TRANSPORTATION,GPC
WALSALL COUNCIL,http://opendatacommunities.org/id/metropolitan-district-council/walsall ,30/06/2021,CHILDRENS SERVICES,ASDA SUPERSTORE,08/04/2021,H59620210410VIPMCQPDS-1,46.29,REDRUTH ROAD-FOOD & DRINK SUPPLIES,GROCERY STORES AND SUPERMARKETS,GPC
WALSALL COUNCIL,http://opendatacommunities.org/id/metropolitan-district-council/walsall ,30/06/2021,ECONOMY & ENVIRONMENT,RTPI,08/04/2021,H59620210410VSHQHVTVH-1,238.80,DEVELOPMENT MANAGEMENT-EXTERNAL TRAINING,"CLUBS COUNTRY CLUBS, MEMBERSHIP",GPC
WALSALL COUNCIL,http://opendatacommunities.org/id/metropolitan-district-council/walsall ,30/06/2021,ECONOMY & ENVIRONMENT CAPITAL,THE COAL AUTHORITY,08/04/2021,H59620210410WSWMDOZLX-1,291.04,CFR 1483 TRANSIT SITE-CONSULTANTS FEES,GOVERNMENT SERVICES,GPC
WALSALL COUNCIL,http://opendatacommunities.org/id/metropolitan-district-council/walsall ,30/06/2021,CHILDRENS SERVICES,HOTEL ON BOOKING.COM,08/04/2021,H59620210410XQYQQKRYP-1,567.00,BED & BREAKFAST PAYMENTS-BED & BREAKFAST PAYMENTS,"HOTELS, MOTELS, RESORTS",GPC
WALSALL COUNCIL,http://opendatacommunities.org/id/metropolitan-district-council/walsall ,30/06/2021,ECONOMY & ENVIRONMENT,AMZNMKTPLACE,08/04/2021,H59620210410YDLMADOLD-1,70.95,BLOXWICH ACTIVE LIVING CENTRE-CHEMICALS & SCIENTIFIC MATERIA,MISCELLANEOUS AND SPECIALTY RETAIL STORES,GPC
WALSALL COUNCIL,http://opendatacommunities.org/id/metropolitan-district-council/walsall ,30/06/2021,CHILDRENS SERVICES,247 CARS WILLENHALL LTD,08/04/2021,H59620210413BEMWBMYLD-1,14.60,SAFEGUARDING & FAMILY SUPPORT-TAXI FARES,TAXI SERVICES,GPC
WALSALL COUNCIL,http://opendatacommunities.org/id/metropolitan-district-council/walsall ,30/06/2021,CHILDRENS SERVICES,247 CARS WILLENHALL LTD,08/04/2021,H59620210413IPKPIWYKW-1,6.10,SAFEGUARDING & FAMILY SUPPORT-TAXI FARES,TAXI SERVICES,GPC
WALSALL COUNCIL,http://opendatacommunities.org/id/metropolitan-district-council/walsall ,30/06/2021,CHILDRENS SERVICES,247 CARS WILLENHALL LTD,08/04/2021,H59620210413IUZJLXXKI-1,36.30,SAFEGUARDING & FAMILY SUPPORT-TAXI FARES,TAXI SERVICES,GPC
WALSALL COUNCIL,http://opendatacommunities.org/id/metropolitan-district-council/walsall ,30/06/2021,CHILDRENS SERVICES,247 CARS WILLENHALL LTD,08/04/2021,H59620210413NOQRFIWUH-1,5.90,LOCALITY FAMILY SUPPORT-WEST-TAXI FARES,TAXI SERVICES,GPC
WALSALL COUNCIL,http://opendatacommunities.org/id/metropolitan-district-council/walsall ,30/06/2021,CHILDRENS SERVICES,PREMIER INN44533745,08/04/2021,H59620210413NPTFUQHZT-1,29.00,BED & BREAKFAST PAYMENTS-BED & BREAKFAST PAYMENTS,PREMIER INN,GPC
WALSALL COUNCIL,http://opendatacommunities.org/id/metropolitan-district-council/walsall ,30/06/2021,CHILDRENS SERVICES,247 CARS WILLENHALL LTD,08/04/2021,H59620210413SENYTSIXD-1,5.80,SAFEGUARDING & FAMILY SUPPORT-TAXI FARES,TAXI SERVICES,GPC
WALSALL COUNCIL,http://opendatacommunities.org/id/metropolitan-district-council/walsall ,30/06/2021,CHILDRENS SERVICES,247 CARS WILLENHALL LTD,08/04/2021,H59620210413VJGLZMJEG-1,5.80,LOCALITY FAMILY SUPPORT-WEST-TAXI FARES,TAXI SERVICES,GPC
WALSALL COUNCIL,http://opendatacommunities.org/id/metropolitan-district-council/walsall ,30/06/2021,ECONOMY & ENVIRONMENT,L & S ENGINEERS LTD,08/04/2021,H59620210413VYEFRLBDS-1,-3.54,INFRASTRUCTURE MAINTENANCE-MATERIALS,HARDWARE STORES,GPC
WALSALL COUNCIL,http://opendatacommunities.org/id/metropolitan-district-council/walsall ,30/06/2021,ECONOMY & ENVIRONMENT,RS COMPONENTS,08/04/2021,H59620210413YNYDIPVMC-1,210.49,FLEET-PURCHASE OF FURNITURE & EQUIPM,ELECTRICAL PARTS AND EQUIPMENT,GPC
WALSALL COUNCIL,http://opendatacommunities.org/id/metropolitan-district-council/walsall ,30/06/2021,RESOURCES AND TRANSFORMATION,WWW.SCC.COM,08/04/2021,H59620210414OWGZVWUYU-1,42.65,RECHARGEABLE EQUIPMENT-COMPUTER EQUIPMENT,"COMPUTERS, COMPUTER PERIPHERAL EQUIPMENT, SOFTWARE",GPC
WALSALL COUNCIL,http://opendatacommunities.org/id/metropolitan-district-council/walsall ,30/06/2021,RESOURCES AND TRANSFORMATION,JOHAL DAIRIES LTD,09/04/2021,H59620210413BJGDBCBQV-1,99.90,CATERING - SCHOOLS-FOOD & DRINK SUPPLIES,OTHER NONDURABLE GOODS,GPC
WALSALL COUNCIL,http://opendatacommunities.org/id/metropolitan-district-council/walsall ,30/06/2021,CHILDRENS SERVICES,POST OFFICE COUNTER,09/04/2021,H59620210413BLNREHVVJ-1,3.85,FAMILY PLACEMENTS-POSTAGES & COURIER SERVICES,POSTAL SERVICES - GOVERNMENT ONLY,GPC
WALSALL COUNCIL,http://opendatacommunities.org/id/metropolitan-district-council/walsall ,30/06/2021,RESOURCES AND TRANSFORMATION,JOHAL DAIRIES LTD,09/04/2021,H59620210413BRMVXIWST-1,128.94,CATERING - SCHOOLS-FOOD & DRINK SUPPLIES,OTHER NONDURABLE GOODS,GPC
WALSALL COUNCIL,http://opendatacommunities.org/id/metropolitan-district-council/walsall ,30/06/2021,RESOURCES AND TRANSFORMATION,JOHAL DAIRIES LTD,09/04/2021,H59620210413CDBOGHMWI-1,3.80,CATERING - SCHOOLS-FOOD & DRINK SUPPLIES,OTHER NONDURABLE GOODS,GPC
WALSALL COUNCIL,http://opendatacommunities.org/id/metropolitan-district-council/walsall ,30/06/2021,CHILDRENS SERVICES,HOBBYCRAFT TRADING LIMITE,09/04/2021,H59620210413CMGNAYWMR-1,75.00,E19-MATERIALS,"ARTIST SUPPLY STORES, CRAFT SHOPS",GPC
WALSALL COUNCIL,http://opendatacommunities.org/id/metropolitan-district-council/walsall ,30/06/2021,CHILDRENS SERVICES,LOCAL TOILET HIRE R/T,09/04/2021,H59620210413DFRYUCHGA-1,67.20,ST FRANCIS OF ASSISI CATHOLIC -OPERATIONAL MAINTENANCE,DIRECT MARKETING CONTINUITY SUBSCRIPTION MERCHANTS,GPC
WALSALL COUNCIL,http://opendatacommunities.org/id/metropolitan-district-council/walsall ,30/06/2021,RESOURCES AND TRANSFORMATION,JOHAL DAIRIES LTD,09/04/2021,H59620210413DJJWMTHPV-1,92.70,CATERING - SCHOOLS-FOOD & DRINK SUPPLIES,OTHER NONDURABLE GOODS,GPC
WALSALL COUNCIL,http://opendatacommunities.org/id/metropolitan-district-council/walsall ,30/06/2021,CHILDRENS SERVICES,B&M 419 - HS REEDSWOOD,09/04/2021,H59620210413DULIWXWMC-1,49.52,REDRUTH ROAD-OPERATIONAL MAINTENANCE,MISCELLANEOUS GENERAL MERCHANDISE,GPC
WALSALL COUNCIL,http://opendatacommunities.org/id/metropolitan-district-council/walsall ,30/06/2021,RESOURCES AND TRANSFORMATION,JOHAL DAIRIES LTD,09/04/2021,H59620210413ERCXKLGHK-1,39.60,CATERING - SCHOOLS-FOOD & DRINK SUPPLIES,OTHER NONDURABLE GOODS,GPC
WALSALL COUNCIL,http://opendatacommunities.org/id/metropolitan-district-council/walsall ,30/06/2021,RESOURCES AND TRANSFORMATION,JOHAL DAIRIES LTD,09/04/2021,H59620210413EVLNVNMBX-1,46.50,CATERING - SCHOOLS-FOOD & DRINK SUPPLIES,OTHER NONDURABLE GOODS,GPC
WALSALL COUNCIL,http://opendatacommunities.org/id/metropolitan-district-council/walsall ,30/06/2021,RESOURCES AND TRANSFORMATION,JOHAL DAIRIES LTD,09/04/2021,H59620210413FBGHNJRSR-1,41.59,CATERING - SCHOOLS-FOOD & DRINK SUPPLIES,OTHER NONDURABLE GOODS,GPC
WALSALL COUNCIL,http://opendatacommunities.org/id/metropolitan-district-council/walsall ,30/06/2021,RESOURCES AND TRANSFORMATION,JOHAL DAIRIES LTD,09/04/2021,H59620210413FFOQVLORQ-1,8.87,CATERING - SCHOOLS-FOOD & DRINK SUPPLIES,OTHER NONDURABLE GOODS,GPC
WALSALL COUNCIL,http://opendatacommunities.org/id/metropolitan-district-council/walsall ,30/06/2021,RESOURCES AND TRANSFORMATION,JOHAL DAIRIES LTD,09/04/2021,H59620210413GCXHOVCRX-1,29.25,CATERING - SCHOOLS-FOOD & DRINK SUPPLIES,OTHER NONDURABLE GOODS,GPC
WALSALL COUNCIL,http://opendatacommunities.org/id/metropolitan-district-council/walsall ,30/06/2021,CHILDRENS SERVICES,METRO WALSALL,09/04/2021,H59620210413GDIYTGNRJ-1,152.00,ACCOMMODATION SERVICES MANAGEM-BED & BREAKFAST PAYMENTS,"HOTELS, MOTELS, RESORTS",GPC
WALSALL COUNCIL,http://opendatacommunities.org/id/metropolitan-district-council/walsall ,30/06/2021,CHILDRENS SERVICES,AMZNMKTPLACE,09/04/2021,H59620210413GNIQYYNML-1,60.00,NEW LEAF PUPIL REFERAL UNIT-MATERIALS,MISCELLANEOUS AND SPECIALTY RETAIL STORES,GPC
WALSALL COUNCIL,http://opendatacommunities.org/id/metropolitan-district-council/walsall ,30/06/2021,RESOURCES AND TRANSFORMATION,JOHAL DAIRIES LTD,09/04/2021,H59620210413GNVPEMCMA-1,43.38,CATERING - SCHOOLS-FOOD & DRINK SUPPLIES,OTHER NONDURABLE GOODS,GPC
WALSALL COUNCIL,http://opendatacommunities.org/id/metropolitan-district-council/walsall ,30/06/2021,RESOURCES AND TRANSFORMATION,JOHAL DAIRIES LTD,09/04/2021,H59620210413HIVGVHKLC-1,31.70,CATERING - SCHOOLS-FOOD & DRINK SUPPLIES,OTHER NONDURABLE GOODS,GPC
WALSALL COUNCIL,http://opendatacommunities.org/id/metropolitan-district-council/walsall ,30/06/2021,CHILDRENS SERVICES,GEN REGISTER OFFICE,09/04/2021,H59620210413HSTSWUXYV-1,11.00,LOOKED AFTER CHILDRENS SOCIAL -FEES & LICENCES,GOVERNMENT SERVICES,GPC
WALSALL COUNCIL,http://opendatacommunities.org/id/metropolitan-district-council/walsall ,30/06/2021,RESOURCES AND TRANSFORMATION,JOHAL DAIRIES LTD,09/04/2021,H59620210413IBWOWIKXW-1,23.76,CATERING - SCHOOLS-FOOD & DRINK SUPPLIES,OTHER NONDURABLE GOODS,GPC
WALSALL COUNCIL,http://opendatacommunities.org/id/metropolitan-district-council/walsall ,30/06/2021,ADULT SOCIAL CARE,WWW.BANNERUK.COM,09/04/2021,H59620210413JBJDHMUTY-1,63.55,PRINTING SERVICES-STATIONERY & GENERAL OFFICE SU,"STATIONERY, OFFICE SUPPLIES AND WRITING PAPER",GPC
WALSALL COUNCIL,http://opendatacommunities.org/id/metropolitan-district-council/walsall ,30/06/2021,RESOURCES AND TRANSFORMATION,JOHAL DAIRIES LTD,09/04/2021,H59620210413KBCBFVNKX-1,18.00,CATERING - SCHOOLS-FOOD & DRINK SUPPLIES,OTHER NONDURABLE GOODS,GPC
WALSALL COUNCIL,http://opendatacommunities.org/id/metropolitan-district-council/walsall ,30/06/2021,RESOURCES AND TRANSFORMATION,JOHAL DAIRIES LTD,09/04/2021,H59620210413KNDBXYGIH-1,47.95,CATERING - SCHOOLS-FOOD & DRINK SUPPLIES,OTHER NONDURABLE GOODS,GPC
WALSALL COUNCIL,http://opendatacommunities.org/id/metropolitan-district-council/walsall ,30/06/2021,RESOURCES AND TRANSFORMATION,JOHAL DAIRIES LTD,09/04/2021,H59620210413KRKHHEGKL-1,34.20,CATERING - SCHOOLS-FOOD & DRINK SUPPLIES,OTHER NONDURABLE GOODS,GPC
WALSALL COUNCIL,http://opendatacommunities.org/id/metropolitan-district-council/walsall ,30/06/2021,RESOURCES AND TRANSFORMATION,JOHAL DAIRIES LTD,09/04/2021,H59620210413LVFJUXEJE-1,0.95,CATERING - SCHOOLS-FOOD & DRINK SUPPLIES,OTHER NONDURABLE GOODS,GPC
WALSALL COUNCIL,http://opendatacommunities.org/id/metropolitan-district-council/walsall ,30/06/2021,RESOURCES AND TRANSFORMATION,JOHAL DAIRIES LTD,09/04/2021,H59620210413LVSCJNBFA-1,10.85,CATERING - SCHOOLS-FOOD & DRINK SUPPLIES,OTHER NONDURABLE GOODS,GPC
WALSALL COUNCIL,http://opendatacommunities.org/id/metropolitan-district-council/walsall ,30/06/2021,CHILDRENS SERVICES,HM PASSPORT OFFICE,09/04/2021,H59620210413LYPEKYLQW-1,49.00,LOOKED AFTER CHILDRENS SOCIAL -FEES & LICENCES,GOVERNMENT SERVICES,GPC
WALSALL COUNCIL,http://opendatacommunities.org/id/metropolitan-district-council/walsall ,30/06/2021,CHILDRENS SERVICES,METRO WALSALL,09/04/2021,H59620210413MAMIQKNYH-1,114.00,ACCOMMODATION SERVICES MANAGEM-BED & BREAKFAST PAYMENTS,"HOTELS, MOTELS, RESORTS",GPC
WALSALL COUNCIL,http://opendatacommunities.org/id/metropolitan-district-council/walsall ,30/06/2021,RESOURCES AND TRANSFORMATION,JOHAL DAIRIES LTD,09/04/2021,H59620210413MFRRJJIRS-1,10.76,CATERING - SCHOOLS-FOOD & DRINK SUPPLIES,OTHER NONDURABLE GOODS,GPC
WALSALL COUNCIL,http://opendatacommunities.org/id/metropolitan-district-council/walsall ,30/06/2021,RESOURCES AND TRANSFORMATION,JOHAL DAIRIES LTD,09/04/2021,H59620210413MGUJCWFRM-1,14.00,CATERING - SCHOOLS-FOOD & DRINK SUPPLIES,OTHER NONDURABLE GOODS,GPC
WALSALL COUNCIL,http://opendatacommunities.org/id/metropolitan-district-council/walsall ,30/06/2021,ECONOMY & ENVIRONMENT,AMZNMKTPLACE,09/04/2021,H59620210413MITJUOFFJ-1,19.98,EMERGENCY PLANNING-STATIONERY & GENERAL OFFICE SU,MISCELLANEOUS AND SPECIALTY RETAIL STORES,GPC
WALSALL COUNCIL,http://opendatacommunities.org/id/metropolitan-district-council/walsall ,30/06/2021,RESOURCES AND TRANSFORMATION,JOHAL DAIRIES LTD,09/04/2021,H59620210413MMQVKMZWN-1,51.60,CATERING - SCHOOLS-FOOD & DRINK SUPPLIES,OTHER NONDURABLE GOODS,GPC
WALSALL COUNCIL,http://opendatacommunities.org/id/metropolitan-district-council/walsall ,30/06/2021,RESOURCES AND TRANSFORMATION,JOHAL DAIRIES LTD,09/04/2021,H59620210413MNHPVKLYD-1,25.92,CATERING - SCHOOLS-FOOD & DRINK SUPPLIES,OTHER NONDURABLE GOODS,GPC
WALSALL COUNCIL,http://opendatacommunities.org/id/metropolitan-district-council/walsall ,30/06/2021,RESOURCES AND TRANSFORMATION,JOHAL DAIRIES LTD,09/04/2021,H59620210413MNVBTSCYJ-1,56.49,CATERING - SCHOOLS-FOOD & DRINK SUPPLIES,OTHER NONDURABLE GOODS,GPC
WALSALL COUNCIL,http://opendatacommunities.org/id/metropolitan-district-council/walsall ,30/06/2021,CHILDRENS SERVICES,PREMIER INN44533745,09/04/2021,H59620210413MQEUWPIWU-1,87.00,BED & BREAKFAST PAYMENTS-BED & BREAKFAST PAYMENTS,PREMIER INN,GPC
WALSALL COUNCIL,http://opendatacommunities.org/id/metropolitan-district-council/walsall ,30/06/2021,RESOURCES AND TRANSFORMATION,JOHAL DAIRIES LTD,09/04/2021,H59620210413MVUUJBPXH-1,27.12,CATERING - SCHOOLS-FOOD & DRINK SUPPLIES,OTHER NONDURABLE GOODS,GPC
WALSALL COUNCIL,http://opendatacommunities.org/id/metropolitan-district-council/walsall ,30/06/2021,RESOURCES AND TRANSFORMATION,JOHAL DAIRIES LTD,09/04/2021,H59620210413NOUDNRSDP-1,19.90,CATERING - SCHOOLS-FOOD & DRINK SUPPLIES,OTHER NONDURABLE GOODS,GPC
WALSALL COUNCIL,http://opendatacommunities.org/id/metropolitan-district-council/walsall ,30/06/2021,CHILDRENS SERVICES,W M MORRISONS.COM,09/04/2021,H59620210413PBDIWDQZO-1,21.06,BLUEBELLS-FOOD & DRINK SUPPLIES,GROCERY STORES AND SUPERMARKETS,GPC
WALSALL COUNCIL,http://opendatacommunities.org/id/metropolitan-district-council/walsall ,30/06/2021,CHILDRENS SERVICES,W M MORRISONS.COM,09/04/2021,H59620210413PBDIWDQZO-2,85.96,BLUEBELLS-FOOD & DRINK SUPPLIES,GROCERY STORES AND SUPERMARKETS,GPC
WALSALL COUNCIL,http://opendatacommunities.org/id/metropolitan-district-council/walsall ,30/06/2021,ECONOMY & ENVIRONMENT,ARGOS LTD,09/04/2021,H59620210413PSJFSYGVY-1,20.00,ALDRIDGE LIBRARY-PURCHASE OF FURNITURE & EQUIPM,DISCOUNT STORES,GPC
WALSALL COUNCIL,http://opendatacommunities.org/id/metropolitan-district-council/walsall ,30/06/2021,CHILDRENS SERVICES,TESCO STORES 6161,09/04/2021,H59620210413PWMSNWUOJ-1,33.98,WALSALL CRISIS SUPPORT SCHEME-MOBILE PHONES,GROCERY STORES AND SUPERMARKETS,GPC
WALSALL COUNCIL,http://opendatacommunities.org/id/metropolitan-district-council/walsall ,30/06/2021,CHILDRENS SERVICES,WWW.BRIGADE.UK.COM,09/04/2021,H59620210413QPUSKLZYX-1,-43.14,E19-MATERIALS,"SPORTS APPAREL, RIDING APPAREL STORES",GPC
WALSALL COUNCIL,http://opendatacommunities.org/id/metropolitan-district-council/walsall ,30/06/2021,RESOURCES AND TRANSFORMATION,JOHAL DAIRIES LTD,09/04/2021,H59620210413RFIPXXNOV-1,27.93,CATERING - SCHOOLS-FOOD & DRINK SUPPLIES,OTHER NONDURABLE GOODS,GPC
WALSALL COUNCIL,http://opendatacommunities.org/id/metropolitan-district-council/walsall ,30/06/2021,RESOURCES AND TRANSFORMATION,JOHAL DAIRIES LTD,09/04/2021,H59620210413RJOEQLSRM-1,5.94,CATERING - SCHOOLS-FOOD & DRINK SUPPLIES,OTHER NONDURABLE GOODS,GPC
WALSALL COUNCIL,http://opendatacommunities.org/id/metropolitan-district-council/walsall ,30/06/2021,RESOURCES AND TRANSFORMATION,JOHAL DAIRIES LTD,09/04/2021,H59620210413RKBOAFWQG-1,18.29,CATERING - SCHOOLS-FOOD & DRINK SUPPLIES,OTHER NONDURABLE GOODS,GPC
WALSALL COUNCIL,http://opendatacommunities.org/id/metropolitan-district-council/walsall ,30/06/2021,RESOURCES AND TRANSFORMATION,JOHAL DAIRIES LTD,09/04/2021,H59620210413SKKRNBYMW-1,-10.08,CATERING - SCHOOLS-FOOD & DRINK SUPPLIES,OTHER NONDURABLE GOODS,GPC
WALSALL COUNCIL,http://opendatacommunities.org/id/metropolitan-district-council/walsall ,30/06/2021,ECONOMY & ENVIRONMENT,SCREWFIX DIR LTD,09/04/2021,H59620210413SRFXFBWGM-1,1.99,ALDRIDGE LIBRARY-PURCHASE OF FURNITURE & EQUIPM,LUMBER & BUILDING MATERIALS STORES,GPC
WALSALL COUNCIL,http://opendatacommunities.org/id/metropolitan-district-council/walsall ,30/06/2021,CHILDRENS SERVICES,HOLIDAY INN EXPRESS OLDBU,09/04/2021,H59620210413SWEVHNOUJ-1,159.97,INITIAL RESPONSE SERVICE-HOTEL ACCOMMODATION-EMPLOYEES,HOLIDAY INNS,GPC
WALSALL COUNCIL,http://opendatacommunities.org/id/metropolitan-district-council/walsall ,30/06/2021,RESOURCES AND TRANSFORMATION,WWW.BANNERUK.COM,09/04/2021,H59620210413TDBJKUSRI-1,11.66,ELECTORAL SERVICES-STATIONERY & GENERAL OFFICE SU,"STATIONERY, OFFICE SUPPLIES AND WRITING PAPER",GPC
WALSALL COUNCIL,http://opendatacommunities.org/id/metropolitan-district-council/walsall ,30/06/2021,CHILDRENS SERVICES,WWW.BANNERUK.COM,09/04/2021,H59620210413TUPRXUION-1,56.45,REDRUTH ROAD-STATIONERY & GENERAL OFFICE SU,"STATIONERY, OFFICE SUPPLIES AND WRITING PAPER",GPC
WALSALL COUNCIL,http://opendatacommunities.org/id/metropolitan-district-council/walsall ,30/06/2021,ECONOMY & ENVIRONMENT,FACEBK *7FFKB2B932,09/04/2021,H59620210413UNWXIUKYW-1,21.73,INTEGRATED COMMUNITIES PROGRAM-PUBLICITY & ADVERTISING (NON S,ADVERTISING SERVICES,GPC
WALSALL COUNCIL,http://opendatacommunities.org/id/metropolitan-district-council/walsall ,30/06/2021,RESOURCES AND TRANSFORMATION,JOHAL DAIRIES LTD,09/04/2021,H59620210413VTUGLPOKD-1,18.99,CATERING - SCHOOLS-FOOD & DRINK SUPPLIES,OTHER NONDURABLE GOODS,GPC
WALSALL COUNCIL,http://opendatacommunities.org/id/metropolitan-district-council/walsall ,30/06/2021,CHILDRENS SERVICES,WALSALL COUNCIL,09/04/2021,H59620210413VXKITTAFE-1,17.00,LOOKED AFTER CHILDRENS SOCIAL -FEES & LICENCES,GOVERNMENT SERVICES,GPC
WALSALL COUNCIL,http://opendatacommunities.org/id/metropolitan-district-council/walsall ,30/06/2021,RESOURCES AND TRANSFORMATION,JOHAL DAIRIES LTD,09/04/2021,H59620210413WUVNNXNGX-1,37.80,CATERING - SCHOOLS-FOOD & DRINK SUPPLIES,OTHER NONDURABLE GOODS,GPC
WALSALL COUNCIL,http://opendatacommunities.org/id/metropolitan-district-council/walsall ,30/06/2021,RESOURCES AND TRANSFORMATION,JOHAL DAIRIES LTD,09/04/2021,H59620210413XMNNQXKDB-1,9.95,CATERING - SCHOOLS-FOOD & DRINK SUPPLIES,OTHER NONDURABLE GOODS,GPC
WALSALL COUNCIL,http://opendatacommunities.org/id/metropolitan-district-council/walsall ,30/06/2021,RESOURCES AND TRANSFORMATION,WWW.ASOS.COM,09/04/2021,H59620210413XXHFIJHFY-1,10.74,YEI ESF FUNDING-CLOTHING & LAUNDRY,CLOTHING STORES,GPC
WALSALL COUNCIL,http://opendatacommunities.org/id/metropolitan-district-council/walsall ,30/06/2021,RESOURCES AND TRANSFORMATION,WWW.ASOS.COM,09/04/2021,H59620210413XXHFIJHFY-2,10.74,YEI (IMPACT) PROGRAMME-CLOTHING & LAUNDRY,CLOTHING STORES,GPC
WALSALL COUNCIL,http://opendatacommunities.org/id/metropolitan-district-council/walsall ,30/06/2021,RESOURCES AND TRANSFORMATION,WWW.ASOS.COM,09/04/2021,H59620210413XXHFIJHFY-3,21.47,YEI (IMPACT) PROGRAMME-CLOTHING & LAUNDRY,CLOTHING STORES,GPC
WALSALL COUNCIL,http://opendatacommunities.org/id/metropolitan-district-council/walsall ,30/06/2021,RESOURCES AND TRANSFORMATION,JOHAL DAIRIES LTD,09/04/2021,H59620210413XYMHTMBSR-1,66.36,CATERING - SCHOOLS-FOOD & DRINK SUPPLIES,OTHER NONDURABLE GOODS,GPC
WALSALL COUNCIL,http://opendatacommunities.org/id/metropolitan-district-council/walsall ,30/06/2021,CHILDRENS SERVICES,TESCO STORES 6161,09/04/2021,H59620210413YPGCMCIRW-1,16.99,WALSALL CRISIS SUPPORT SCHEME-MOBILE PHONES,GROCERY STORES AND SUPERMARKETS,GPC
WALSALL COUNCIL,http://opendatacommunities.org/id/metropolitan-district-council/walsall ,30/06/2021,ECONOMY & ENVIRONMENT,AMZNMKTPLACE,10/04/2021,H59620210413AIGZTOVQX-1,38.90,EMERGENCY PLANNING-STATIONERY & GENERAL OFFICE SU,MISCELLANEOUS AND SPECIALTY RETAIL STORES,GPC
WALSALL COUNCIL,http://opendatacommunities.org/id/metropolitan-district-council/walsall ,30/06/2021,RESOURCES AND TRANSFORMATION,AMAZON.CO.UK*M44X503J4 AM,10/04/2021,H59620210413HSJECJWMU-1,10.00,YEI ESF FUNDING-CLOTHING & LAUNDRY,MISCELLANEOUS AND SPECIALTY RETAIL STORES,GPC
WALSALL COUNCIL,http://opendatacommunities.org/id/metropolitan-district-council/walsall ,30/06/2021,RESOURCES AND TRANSFORMATION,AMAZON.CO.UK*M44X503J4 AM,10/04/2021,H59620210413HSJECJWMU-2,10.00,YEI (IMPACT) PROGRAMME-CLOTHING & LAUNDRY,MISCELLANEOUS AND SPECIALTY RETAIL STORES,GPC
WALSALL COUNCIL,http://opendatacommunities.org/id/metropolitan-district-council/walsall ,30/06/2021,ECONOMY & ENVIRONMENT,AMAZON.CO.UK*M41P383K4 AM,10/04/2021,H59620210413MNFCCLXNY-1,18.97,BLOXWICH ACTIVE LIVING CENTRE-PURCHASE OF FURNITURE & EQUIPM,MISCELLANEOUS AND SPECIALTY RETAIL STORES,GPC
WALSALL COUNCIL,http://opendatacommunities.org/id/metropolitan-district-council/walsall ,30/06/2021,CHILDRENS SERVICES,EDSHED,10/04/2021,H59620210413OIJCRLUIY-1,180.00,ICT LEARNING RESOURCES-LICENCES FOR EQUIPMENT,COMPUTER SOFTWARE STORES,GPC
WALSALL COUNCIL,http://opendatacommunities.org/id/metropolitan-district-council/walsall ,30/06/2021,ECONOMY & ENVIRONMENT,B&M 333 - AN BENTLEY BRID,10/04/2021,H59620210413QRJPEXUQJ-1,2.50,DEPOT-MATERIALS,MISCELLANEOUS GENERAL MERCHANDISE,GPC
WALSALL COUNCIL,http://opendatacommunities.org/id/metropolitan-district-council/walsall ,30/06/2021,CHILDRENS SERVICES,TESCO STORES 6161,10/04/2021,H59620210413WIVWPFBVK-1,11.00,LOOKED AFTER CHILDRENS SOCIAL -OTHER EXPENSES,GROCERY STORES AND SUPERMARKETS,GPC
WALSALL COUNCIL,http://opendatacommunities.org/id/metropolitan-district-council/walsall ,30/06/2021,RESOURCES AND TRANSFORMATION,CHICKEN JOES LTD,11/04/2021,H59620210413BUREHMJQN-1,46.69,CATERING - SCHOOLS-FOOD & DRINK SUPPLIES,CATERERS,GPC
WALSALL COUNCIL,http://opendatacommunities.org/id/metropolitan-district-council/walsall ,30/06/2021,RESOURCES AND TRANSFORMATION,CHICKEN JOES LTD,11/04/2021,H59620210413CINIJDLFD-1,45.73,CATERING - SCHOOLS-FOOD & DRINK SUPPLIES,CATERERS,GPC
WALSALL COUNCIL,http://opendatacommunities.org/id/metropolitan-district-council/walsall ,30/06/2021,RESOURCES AND TRANSFORMATION,CHICKEN JOES LTD,11/04/2021,H59620210413DCSXGUUVW-1,111.25,CATERING - SCHOOLS-FOOD & DRINK SUPPLIES,CATERERS,GPC
WALSALL COUNCIL,http://opendatacommunities.org/id/metropolitan-district-council/walsall ,30/06/2021,RESOURCES AND TRANSFORMATION,CHICKEN JOES LTD,11/04/2021,H59620210413DSWUPFPNL-1,59.17,CATERING - SCHOOLS-FOOD & DRINK SUPPLIES,CATERERS,GPC
WALSALL COUNCIL,http://opendatacommunities.org/id/metropolitan-district-council/walsall ,30/06/2021,RESOURCES AND TRANSFORMATION,CHICKEN JOES LTD,11/04/2021,H59620210413EUHMSEHRB-1,247.02,CATERING - SCHOOLS-FOOD & DRINK SUPPLIES,CATERERS,GPC
WALSALL COUNCIL,http://opendatacommunities.org/id/metropolitan-district-council/walsall ,30/06/2021,RESOURCES AND TRANSFORMATION,CHICKEN JOES LTD,11/04/2021,H59620210413EZCHUHSHR-1,44.39,CATERING - SCHOOLS-FOOD & DRINK SUPPLIES,CATERERS,GPC
WALSALL COUNCIL,http://opendatacommunities.org/id/metropolitan-district-council/walsall ,30/06/2021,RESOURCES AND TRANSFORMATION,CHICKEN JOES LTD,11/04/2021,H59620210413JPWQGNLNL-1,77.52,CATERING - SCHOOLS-FOOD & DRINK SUPPLIES,CATERERS,GPC
WALSALL COUNCIL,http://opendatacommunities.org/id/metropolitan-district-council/walsall ,30/06/2021,RESOURCES AND TRANSFORMATION,CHICKEN JOES LTD,11/04/2021,H59620210413LNYDFGWBD-1,78.50,CATERING - SCHOOLS-FOOD & DRINK SUPPLIES,CATERERS,GPC
WALSALL COUNCIL,http://opendatacommunities.org/id/metropolitan-district-council/walsall ,30/06/2021,RESOURCES AND TRANSFORMATION,CHICKEN JOES LTD,11/04/2021,H59620210413QCGXHNKAS-1,120.10,CATERING - SCHOOLS-FOOD & DRINK SUPPLIES,CATERERS,GPC
WALSALL COUNCIL,http://opendatacommunities.org/id/metropolitan-district-council/walsall ,30/06/2021,RESOURCES AND TRANSFORMATION,CHICKEN JOES LTD,11/04/2021,H59620210413QPQWFLLQX-1,90.15,CATERING - SCHOOLS-FOOD & DRINK SUPPLIES,CATERERS,GPC
WALSALL COUNCIL,http://opendatacommunities.org/id/metropolitan-district-council/walsall ,30/06/2021,RESOURCES AND TRANSFORMATION,CHICKEN JOES LTD,11/04/2021,H59620210413SQHIWLICV-1,80.66,CATERING - SCHOOLS-FOOD & DRINK SUPPLIES,CATERERS,GPC
WALSALL COUNCIL,http://opendatacommunities.org/id/metropolitan-district-council/walsall ,30/06/2021,RESOURCES AND TRANSFORMATION,CHICKEN JOES LTD,11/04/2021,H59620210413UQFPQUOMO-1,59.41,CATERING - SCHOOLS-FOOD & DRINK SUPPLIES,CATERERS,GPC
WALSALL COUNCIL,http://opendatacommunities.org/id/metropolitan-district-council/walsall ,30/06/2021,RESOURCES AND TRANSFORMATION,CHICKEN JOES LTD,11/04/2021,H59620210413XHCOQNEPG-1,63.89,CATERING - SCHOOLS-FOOD & DRINK SUPPLIES,CATERERS,GPC
WALSALL COUNCIL,http://opendatacommunities.org/id/metropolitan-district-council/walsall ,30/06/2021,ECONOMY & ENVIRONMENT,AMAZON.CO.UK*M41AL7T24 AM,11/04/2021,H59620210414LRNNLTBOR-1,28.73,BLOXWICH ACTIVE LIVING CENTRE-PURCHASE OF FURNITURE & EQUIPM,MISCELLANEOUS AND SPECIALTY RETAIL STORES,GPC
WALSALL COUNCIL,http://opendatacommunities.org/id/metropolitan-district-council/walsall ,30/06/2021,RESOURCES AND TRANSFORMATION,BLAKEMORE FOODSERVICE,12/04/2021,H59620210414ATTYWIKXK-1,40.44,CATERING - SCHOOLS-FOOD & DRINK SUPPLIES,CATERERS,GPC
WALSALL COUNCIL,http://opendatacommunities.org/id/metropolitan-district-council/walsall ,30/06/2021,CHILDRENS SERVICES,CARD FACTORY,12/04/2021,H59620210414BISDHNRJJ-1,4.02,"43A HILTON ROAD, WILLENHALL-RESIDENTS PERSONAL EXPENSES-AL","CARD, GIFT, NOVELTY, AND SOUVENIR SHOPS",GPC
WALSALL COUNCIL,http://opendatacommunities.org/id/metropolitan-district-council/walsall ,30/06/2021,CHILDRENS SERVICES,HPI INSTANT INK UK,12/04/2021,H59620210414BMHODSUBW-1,9.99,ADMINISTRATIVE SUPPLIES-STATIONERY & GENERAL OFFICE SU,ELECTRONIC SALES,GPC
WALSALL COUNCIL,http://opendatacommunities.org/id/metropolitan-district-council/walsall ,30/06/2021,CHILDRENS SERVICES,NISA LOCAL,12/04/2021,H59620210414EZGRCQMIO-1,4.64,REDRUTH ROAD-FOOD & DRINK SUPPLIES,MISCELLANEOUS FOOD STORES & CONVENIENCE STORES,GPC
WALSALL COUNCIL,http://opendatacommunities.org/id/metropolitan-district-council/walsall ,30/06/2021,CHILDRENS SERVICES,POST OFFICE COUNTER,12/04/2021,H59620210414GSTGXQCVV-1,6.05,CHILDRENS ADMIN-POSTAGES & COURIER SERVICES,POSTAL SERVICES - GOVERNMENT ONLY,GPC
WALSALL COUNCIL,http://opendatacommunities.org/id/metropolitan-district-council/walsall ,30/06/2021,CHILDRENS SERVICES,ASDA STORE 4761,12/04/2021,H59620210414JHMUHJBWH-1,40.00,WINTER GRANT DWP-OTHER EXPENSES,GROCERY STORES AND SUPERMARKETS,GPC
WALSALL COUNCIL,http://opendatacommunities.org/id/metropolitan-district-council/walsall ,30/06/2021,CHILDRENS SERVICES,WALSALL COUNCIL,12/04/2021,H59620210414KVNFXKZDY-1,17.00,SAFEGUARDING & FAMILY SUPPORT-FEES & LICENCES,GOVERNMENT SERVICES,GPC
WALSALL COUNCIL,http://opendatacommunities.org/id/metropolitan-district-council/walsall ,30/06/2021,CHILDRENS SERVICES,WEST MIDLAND CARD,12/04/2021,H59620210414LGCDXBPUL-1,3.00,TRANSITION AND LEAVING CARE PL-OFFICERS & STAFF PUBLIC TRANSP,BUS LINES,GPC
WALSALL COUNCIL,http://opendatacommunities.org/id/metropolitan-district-council/walsall ,30/06/2021,RESOURCES AND TRANSFORMATION,BLAKEMORE FOODSERVICE,12/04/2021,H59620210414MABJWNLEK-1,547.04,CATERING - SCHOOLS-FOOD & DRINK SUPPLIES,CATERERS,GPC
WALSALL COUNCIL,http://opendatacommunities.org/id/metropolitan-district-council/walsall ,30/06/2021,ECONOMY & ENVIRONMENT,J2 EFAX PLUS SERVICE,12/04/2021,H59620210414MEIPEWYHE-1,7.20,REGISTRAR-COMPUTER EQUIPMENT,DIRECT MARKETING CONTINUITY SUBSCRIPTION MERCHANTS,GPC
WALSALL COUNCIL,http://opendatacommunities.org/id/metropolitan-district-council/walsall ,30/06/2021,ECONOMY & ENVIRONMENT,AMAZON.CO.UK*M40VD6EK4,12/04/2021,H59620210414OQZSHLSGE-1,39.67,RESOURCE MANAGEMENT-STATIONERY & GENERAL OFFICE SU,OTHER DIRECT MARKETING-OTHER DIRECT MARKETERS,GPC
WALSALL COUNCIL,http://opendatacommunities.org/id/metropolitan-district-council/walsall ,30/06/2021,CHILDRENS SERVICES,AMAZON.CO.UK*M40VM2EO4,12/04/2021,H59620210414OZERQUKYH-1,20.59,REDRUTH ROAD-STATIONERY & GENERAL OFFICE SU,OTHER DIRECT MARKETING-OTHER DIRECT MARKETERS,GPC
WALSALL COUNCIL,http://opendatacommunities.org/id/metropolitan-district-council/walsall ,30/06/2021,ECONOMY & ENVIRONMENT,SECURITY INDUSTRY,12/04/2021,H59620210414PCKVKAPFO-1,95.00,PHOTOGRAPHY EXHIBITION NO. 4-FEES & LICENCES,"DETECTIVE AGENCIES, PROTECTIVE AGENCIES, SECURITY ",GPC
WALSALL COUNCIL,http://opendatacommunities.org/id/metropolitan-district-council/walsall ,30/06/2021,CHILDRENS SERVICES,HOME BARGAINS,12/04/2021,H59620210414PWPWMWGPZ-1,8.99,"43A HILTON ROAD, WILLENHALL-MATERIALS",HARDWARE STORES,GPC
WALSALL COUNCIL,http://opendatacommunities.org/id/metropolitan-district-council/walsall ,30/06/2021,RESOURCES AND TRANSFORMATION,BLAKEMORE FOODSERVICE,12/04/2021,H59620210414QUIHLHMOM-1,-547.04,CATERING - SCHOOLS-FOOD & DRINK SUPPLIES,CATERERS,GPC
WALSALL COUNCIL,http://opendatacommunities.org/id/metropolitan-district-council/walsall ,30/06/2021,CHILDRENS SERVICES,POST OFFICE COUNTER,12/04/2021,H59620210414SMAKRGXST-1,8.55,FAMILY PLACEMENTS-POSTAGES & COURIER SERVICES,POSTAL SERVICES - GOVERNMENT ONLY,GPC
WALSALL COUNCIL,http://opendatacommunities.org/id/metropolitan-district-council/walsall ,30/06/2021,CHILDRENS SERVICES,METRO WALSALL,12/04/2021,H59620210414TSIMTKQOS-1,38.00,ACCOMMODATION SERVICES MANAGEM-BED & BREAKFAST PAYMENTS,"HOTELS, MOTELS, RESORTS",GPC
WALSALL COUNCIL,http://opendatacommunities.org/id/metropolitan-district-council/walsall ,30/06/2021,CHILDRENS SERVICES,AMZNMKTPLACE,12/04/2021,H59620210414TULIWOBRY-1,34.97,LOOKED AFTER CHILDRENS SOCIAL -EVENTS & VISUAL ARTS,MISCELLANEOUS AND SPECIALTY RETAIL STORES,GPC
WALSALL COUNCIL,http://opendatacommunities.org/id/metropolitan-district-council/walsall ,30/06/2021,ECONOMY & ENVIRONMENT,PP*GLMS,12/04/2021,H59620210414TXQLFBMYC-1,150.00,"NAG - MAINTENANCE-LEASING, HIRE & RENTAL OF EQUI","AUTOMOTIVE PARTS, ACCESSORIES STORES",GPC
WALSALL COUNCIL,http://opendatacommunities.org/id/metropolitan-district-council/walsall ,30/06/2021,CHILDRENS SERVICES,POST OFFICE COUNTER,12/04/2021,H59620210414UKMOOQMSP-1,198.00,CHILDREN'S COMMISSIONING-POSTAGES & COURIER SERVICES,POSTAL SERVICES - GOVERNMENT ONLY,GPC
WALSALL COUNCIL,http://opendatacommunities.org/id/metropolitan-district-council/walsall ,30/06/2021,RESOURCES AND TRANSFORMATION,BLAKEMORE FOODSERVICE,12/04/2021,H59620210414UNGQCNUII-1,10.11,CATERING - SCHOOLS-FOOD & DRINK SUPPLIES,CATERERS,GPC
WALSALL COUNCIL,http://opendatacommunities.org/id/metropolitan-district-council/walsall ,30/06/2021,ECONOMY & ENVIRONMENT,ASDA SUPERSTORE,12/04/2021,H59620210414VHHXFDETZ-1,16.77,BLOXWICH ACTIVE LIVING CENTRE-FOOD & DRINK SUPPLIES,GROCERY STORES AND SUPERMARKETS,GPC
WALSALL COUNCIL,http://opendatacommunities.org/id/metropolitan-district-council/walsall ,30/06/2021,ADULT SOCIAL CARE,HMCOURTS-SERVICE.G,12/04/2021,H59620210414VQPEXLOPG-1,75.00,AMPH SERVICE-EXTERNAL LEGAL FEES,FINES,GPC
WALSALL COUNCIL,http://opendatacommunities.org/id/metropolitan-district-council/walsall ,30/06/2021,ECONOMY & ENVIRONMENT,MUSIC MARK,12/04/2021,H59620210414XSDLMDBDB-1,1128.00,MUSIC HUB FOREST ARTS-FEES & LICENCES,"ORGANIZATIONS, MEMBERSHIP",GPC
WALSALL COUNCIL,http://opendatacommunities.org/id/metropolitan-district-council/walsall ,30/06/2021,CHILDRENS SERVICES,AMZNMKTPLACE,12/04/2021,H59620210414XXUOHWKCD-1,85.96,LOOKED AFTER CHILDRENS SOCIAL -EVENTS & VISUAL ARTS,MISCELLANEOUS AND SPECIALTY RETAIL STORES,GPC
WALSALL COUNCIL,http://opendatacommunities.org/id/metropolitan-district-council/walsall ,30/06/2021,CHILDRENS SERVICES,ALDI 42 772,12/04/2021,H59620210414ZDPZCJUXH-1,8.00,REDRUTH ROAD-FOOD & DRINK SUPPLIES,GROCERY STORES AND SUPERMARKETS,GPC
WALSALL COUNCIL,http://opendatacommunities.org/id/metropolitan-district-council/walsall ,30/06/2021,CHILDRENS SERVICES,ALDI 42 772,12/04/2021,H59620210414ZDPZCJUXH-2,89.10,REDRUTH ROAD-FOOD & DRINK SUPPLIES,GROCERY STORES AND SUPERMARKETS,GPC
WALSALL COUNCIL,http://opendatacommunities.org/id/metropolitan-district-council/walsall ,30/06/2021,RESOURCES AND TRANSFORMATION,AMZ*ARTDISCOUNT,12/04/2021,H59620210414ZWXLQXOSG-1,48.57,YEI ESF FUNDING-MATERIALS,"GAME, TOY, AND HOBBY SHOPS",GPC
WALSALL COUNCIL,http://opendatacommunities.org/id/metropolitan-district-council/walsall ,30/06/2021,RESOURCES AND TRANSFORMATION,AMZ*ARTDISCOUNT,12/04/2021,H59620210414ZWXLQXOSG-2,48.56,YEI (IMPACT) PROGRAMME-MATERIALS,"GAME, TOY, AND HOBBY SHOPS",GPC
WALSALL COUNCIL,http://opendatacommunities.org/id/metropolitan-district-council/walsall ,30/06/2021,ECONOMY & ENVIRONMENT,HOBBYCRAFT TRADING LIMITE,12/04/2021,H59620210415IWZQIJFRQ-1,26.00,EMERGENCY PLANNING-MATERIALS,"ARTIST SUPPLY STORES, CRAFT SHOPS",GPC
WALSALL COUNCIL,http://opendatacommunities.org/id/metropolitan-district-council/walsall ,30/06/2021,RESOURCES AND TRANSFORMATION,WWW.SCC.COM,12/04/2021,H59620210416PWOXTUASF-1,207.54,RECHARGEABLE EQUIPMENT-COMPUTER EQUIPMENT,"COMPUTERS, COMPUTER PERIPHERAL EQUIPMENT, SOFTWARE",GPC
WALSALL COUNCIL,http://opendatacommunities.org/id/metropolitan-district-council/walsall ,30/06/2021,CHILDRENS SERVICES,ARGOS LTD,13/04/2021,H59620210415CBEWAUUXD-1,206.95,TRANSITION AND LEAVING CARE PL-CARE LEAVERS MTCE PAYMENTS,DISCOUNT STORES,GPC
WALSALL COUNCIL,http://opendatacommunities.org/id/metropolitan-district-council/walsall ,30/06/2021,ECONOMY & ENVIRONMENT,AMZNMKTPLACE,13/04/2021,H59620210415EISBKTMRM-1,136.04,EMERGENCY PLANNING-STATIONERY & GENERAL OFFICE SU,MISCELLANEOUS AND SPECIALTY RETAIL STORES,GPC
WALSALL COUNCIL,http://opendatacommunities.org/id/metropolitan-district-council/walsall ,30/06/2021,ECONOMY & ENVIRONMENT,TOOLSTATION LTD,13/04/2021,H59620210415EMRKPQNPB-1,3.23,INFRASTRUCTURE MAINTENANCE-MATERIALS,LUMBER & BUILDING MATERIALS STORES,GPC
WALSALL COUNCIL,http://opendatacommunities.org/id/metropolitan-district-council/walsall ,30/06/2021,CHILDRENS SERVICES,ADOBE ACROPRO SUBS,13/04/2021,H59620210415EZWEVLPEU-1,17.18,ADMINISTRATIVE SUPPLIES-STATIONERY & GENERAL OFFICE SU,COMPUTER SOFTWARE STORES,GPC
WALSALL COUNCIL,http://opendatacommunities.org/id/metropolitan-district-council/walsall ,30/06/2021,CHILDRENS SERVICES,TESCO STORES 6161,13/04/2021,H59620210415FSKUFWGGG-1,1.68,"43A HILTON ROAD, WILLENHALL-FOOD & DRINK SUPPLIES",GROCERY STORES AND SUPERMARKETS,GPC
WALSALL COUNCIL,http://opendatacommunities.org/id/metropolitan-district-council/walsall ,30/06/2021,CHILDRENS SERVICES,TESCO STORES 6161,13/04/2021,H59620210415FSKUFWGGG-2,8.50,"43A HILTON ROAD, WILLENHALL-FOOD & DRINK SUPPLIES",GROCERY STORES AND SUPERMARKETS,GPC
WALSALL COUNCIL,http://opendatacommunities.org/id/metropolitan-district-council/walsall ,30/06/2021,CHILDRENS SERVICES,B&M 710 FENTON,13/04/2021,H59620210415GUYIJEEFR-1,2.00,ADOLESCENT SERVICE-MATERIALS,MISCELLANEOUS GENERAL MERCHANDISE,GPC
WALSALL COUNCIL,http://opendatacommunities.org/id/metropolitan-district-council/walsall ,30/06/2021,CHILDRENS SERVICES,TESCO STORES 6481,13/04/2021,H59620210415HAGCYNIFE-1,6.00,ADOLESCENT SERVICE-FOOD & DRINK SUPPLIES,GROCERY STORES AND SUPERMARKETS,GPC
WALSALL COUNCIL,http://opendatacommunities.org/id/metropolitan-district-council/walsall ,30/06/2021,ECONOMY & ENVIRONMENT,MIDLANDCHILLED.CO.,13/04/2021,H59620210415HOIQWFCBA-1,48.40,BLOXWICH ACTIVE LIVING CENTRE-FOOD & DRINK SUPPLIES,MOTOR FREIGHT CARRIERS,GPC
WALSALL COUNCIL,http://opendatacommunities.org/id/metropolitan-district-council/walsall ,30/06/2021,ECONOMY & ENVIRONMENT,MIDLANDCHILLED.CO.,13/04/2021,H59620210415HOIQWFCBA-2,358.18,BLOXWICH ACTIVE LIVING CENTRE-FOOD & DRINK SUPPLIES,MOTOR FREIGHT CARRIERS,GPC
WALSALL COUNCIL,http://opendatacommunities.org/id/metropolitan-district-council/walsall ,30/06/2021,RESOURCES AND TRANSFORMATION,AMZNMKTPLACE,13/04/2021,H59620210415IDRLCGPJX-1,22.00,CENTRAL OFFICE ACCOMMODATION-OPERATIONAL MAINTENANCE,MISCELLANEOUS AND SPECIALTY RETAIL STORES,GPC
WALSALL COUNCIL,http://opendatacommunities.org/id/metropolitan-district-council/walsall ,30/06/2021,CHILDRENS SERVICES,BT.COM BUSINESS BP,13/04/2021,H59620210415JEQHDEOGY-1,110.64,ADMINISTRATIVE SUPPLIES-LANDLINE PHONES,TELECOMMUNICATION SERVICES,GPC
WALSALL COUNCIL,http://opendatacommunities.org/id/metropolitan-district-council/walsall ,30/06/2021,ECONOMY & ENVIRONMENT,AMAZON.CO.UK*M438C50C4 AM,13/04/2021,H59620210415KDEJIAACE-1,10.49,WALSALL ARENA AND ARTS CENTRE-STATIONERY & GENERAL OFFICE SU,MISCELLANEOUS AND SPECIALTY RETAIL STORES,GPC
WALSALL COUNCIL,http://opendatacommunities.org/id/metropolitan-district-council/walsall ,30/06/2021,RESOURCES AND TRANSFORMATION,123 REG LTD,13/04/2021,H59620210415LJGPDHAYT-1,115.12,APPLICATIONS-COMPUTER EQUIPMENT,COMPUTER NETWORK/INFORMATION SERVICES,GPC
WALSALL COUNCIL,http://opendatacommunities.org/id/metropolitan-district-council/walsall ,30/06/2021,ECONOMY & ENVIRONMENT,IOMA CLOTHING CO LTD,13/04/2021,H59620210415MODVEKQXU-1,135.66,WALSALL GALA SWIMMING AND FITN-CLOTHING & LAUNDRY,MENS AND WOMENS CLOTHING STORES,GPC
WALSALL COUNCIL,http://opendatacommunities.org/id/metropolitan-district-council/walsall ,30/06/2021,ECONOMY & ENVIRONMENT,DTR HYGIENE LTD,13/04/2021,H59620210415NKVHTWUKS-1,226.80,BLOXWICH LIBRARY-PURCHASE OF FURNITURE & EQUIPM,"SPECIALTY CLEANING, POLISHING, AND SANITATION",GPC
WALSALL COUNCIL,http://opendatacommunities.org/id/metropolitan-district-council/walsall ,30/06/2021,ECONOMY & ENVIRONMENT,AMAZON.CO.UK*M448G60R4 AM,13/04/2021,H59620210415NRGCKKRKU-1,10.49,WALSALL ARENA AND ARTS CENTRE-STATIONERY & GENERAL OFFICE SU,MISCELLANEOUS AND SPECIALTY RETAIL STORES,GPC
WALSALL COUNCIL,http://opendatacommunities.org/id/metropolitan-district-council/walsall ,30/06/2021,RESOURCES AND TRANSFORMATION,POST OFFICE COUNTER,13/04/2021,H59620210415ODJAWWXXH-1,3.43,YEI ESF FUNDING-POSTAGES & COURIER SERVICES,POSTAL SERVICES - GOVERNMENT ONLY,GPC
WALSALL COUNCIL,http://opendatacommunities.org/id/metropolitan-district-council/walsall ,30/06/2021,RESOURCES AND TRANSFORMATION,POST OFFICE COUNTER,13/04/2021,H59620210415ODJAWWXXH-2,3.42,YEI (IMPACT) PROGRAMME-POSTAGES & COURIER SERVICES,POSTAL SERVICES - GOVERNMENT ONLY,GPC
WALSALL COUNCIL,http://opendatacommunities.org/id/metropolitan-district-council/walsall ,30/06/2021,ECONOMY & ENVIRONMENT,MIDLANDCHILLED.CO.,13/04/2021,H59620210415OESKEOOBA-1,29.30,BLOXWICH ACTIVE LIVING CENTRE-FOOD & DRINK SUPPLIES,MOTOR FREIGHT CARRIERS,GPC
WALSALL COUNCIL,http://opendatacommunities.org/id/metropolitan-district-council/walsall ,30/06/2021,ECONOMY & ENVIRONMENT,MIDLANDCHILLED.CO.,13/04/2021,H59620210415OESKEOOBA-2,213.36,BLOXWICH ACTIVE LIVING CENTRE-FOOD & DRINK SUPPLIES,MOTOR FREIGHT CARRIERS,GPC
WALSALL COUNCIL,http://opendatacommunities.org/id/metropolitan-district-council/walsall ,30/06/2021,CHILDRENS SERVICES,TRAINLINE,13/04/2021,H59620210415PWNLTCMCI-1,-10.40,SAFEGUARDING & FAMILY SUPPORT-OFFICERS & STAFF PUBLIC TRANSP,PASSENGER RAILWAYS,GPC
WALSALL COUNCIL,http://opendatacommunities.org/id/metropolitan-district-council/walsall ,30/06/2021,CHILDRENS SERVICES,WEST MIDLAND CARD,13/04/2021,H59620210415QNPPICTQW-1,4.60,TRANSITION AND LEAVING CARE PL-OFFICERS & STAFF PUBLIC TRANSP,BUS LINES,GPC
WALSALL COUNCIL,http://opendatacommunities.org/id/metropolitan-district-council/walsall ,30/06/2021,CHILDRENS SERVICES,POST OFFICE COUNTER,13/04/2021,H59620210415RZVYYLLBM-1,2.25,LOOKED AFTER CHILDRENS SOCIAL -POSTAGES & COURIER SERVICES,POSTAL SERVICES - GOVERNMENT ONLY,GPC
WALSALL COUNCIL,http://opendatacommunities.org/id/metropolitan-district-council/walsall ,30/06/2021,RESOURCES AND TRANSFORMATION,WWW.MIB.ORG.UK,13/04/2021,H59620210415SLHILEOIR-1,4.50,INSURANCE & LOSS CONTROL-PROFESSIONAL FEES & SERVICES,PROFESSIONAL SERVICES,GPC
WALSALL COUNCIL,http://opendatacommunities.org/id/metropolitan-district-council/walsall ,30/06/2021,ECONOMY & ENVIRONMENT,WM MORRISONS STORE,13/04/2021,H59620210415SPYGKEGHQ-1,12.00,WALSALL GALA SWIMMING AND FITN-MATERIALS,GROCERY STORES AND SUPERMARKETS,GPC
WALSALL COUNCIL,http://opendatacommunities.org/id/metropolitan-district-council/walsall ,30/06/2021,CHILDRENS SERVICES,POST OFFICE COUNTER,13/04/2021,H59620210415SRNPNFLEI-1,9.54,FAMILY PLACEMENTS-POSTAGES & COURIER SERVICES,POSTAL SERVICES - GOVERNMENT ONLY,GPC
WALSALL COUNCIL,http://opendatacommunities.org/id/metropolitan-district-council/walsall ,30/06/2021,CHILDRENS SERVICES,TRAINLINE,13/04/2021,H59620210415TGCHPHPSI-1,38.39,LOOKED AFTER CHILDRENS SOCIAL -OFFICERS & STAFF PUBLIC TRANSP,PASSENGER RAILWAYS,GPC
WALSALL COUNCIL,http://opendatacommunities.org/id/metropolitan-district-council/walsall ,30/06/2021,CHILDRENS SERVICES,WEST MIDLAND CARD,13/04/2021,H59620210415TWECMSSYI-1,3.00,TRANSITION AND LEAVING CARE PL-OFFICERS & STAFF PUBLIC TRANSP,BUS LINES,GPC
WALSALL COUNCIL,http://opendatacommunities.org/id/metropolitan-district-council/walsall ,30/06/2021,CHILDRENS SERVICES,METRO WALSALL,13/04/2021,H59620210415VAWOJLTJN-1,114.00,ACCOMMODATION SERVICES MANAGEM-BED & BREAKFAST PAYMENTS,"HOTELS, MOTELS, RESORTS",GPC
WALSALL COUNCIL,http://opendatacommunities.org/id/metropolitan-district-council/walsall ,30/06/2021,CHILDRENS SERVICES,CURRYS ONLINE,13/04/2021,H59620210415VSJGLMUGJ-1,82.78,DAISY SERVICE PROGRAMME-PURCHASE OF FURNITURE & EQUIPM,ELECTRONIC SALES,GPC
WALSALL COUNCIL,http://opendatacommunities.org/id/metropolitan-district-council/walsall ,30/06/2021,CHILDRENS SERVICES,WICKES BUILDING,13/04/2021,H59620210415VSKQIOLYJ-1,11.20,WALSALL WOOD PRIMARY SCHOOL-OPERATIONAL MAINTENANCE,LUMBER & BUILDING MATERIALS STORES,GPC
WALSALL COUNCIL,http://opendatacommunities.org/id/metropolitan-district-council/walsall ,30/06/2021,CHILDRENS SERVICES,ASDA,13/04/2021,H59620210415WWBQJAGPA-1,22.00,"43A HILTON ROAD, WILLENHALL-RESIDENTS PERSONAL EXPENSES-AL",GROCERY STORES AND SUPERMARKETS,GPC
WALSALL COUNCIL,http://opendatacommunities.org/id/metropolitan-district-council/walsall ,30/06/2021,RESOURCES AND TRANSFORMATION,CHICKEN JOES LTD,13/04/2021,H59620210415YOKCCYIKK-1,-12.00,CATERING - SCHOOLS-FOOD & DRINK SUPPLIES,CATERERS,GPC
WALSALL COUNCIL,http://opendatacommunities.org/id/metropolitan-district-council/walsall ,30/06/2021,RESOURCES AND TRANSFORMATION,DNN CORP,13/04/2021,H59620210415YYSKYBDLD-1,109.52,APPLICATIONS-COMPUTER EQUIPMENT,DIGITAL GOODS - APPLICATIONS (EXCLUDES GAMES),GPC
WALSALL COUNCIL,http://opendatacommunities.org/id/metropolitan-district-council/walsall ,30/06/2021,RESOURCES AND TRANSFORMATION,WWW.SCC.COM,13/04/2021,H59620210424QCERIDCOT-1,629.06,RECHARGEABLE EQUIPMENT-COMPUTER EQUIPMENT,"COMPUTERS, COMPUTER PERIPHERAL EQUIPMENT, SOFTWARE",GPC
WALSALL COUNCIL,http://opendatacommunities.org/id/metropolitan-district-council/walsall ,30/06/2021,ECONOMY & ENVIRONMENT,FOREIGN EXCHANGE FEE,14/04/2021,H59620210415QHUTNVSWQ-1,3.01,REGISTRAR-COMPUTER EQUIPMENT,,GPC
WALSALL COUNCIL,http://opendatacommunities.org/id/metropolitan-district-council/walsall ,30/06/2021,CHILDRENS SERVICES,POST OFFICE COUNTER,14/04/2021,H59620210416ADHUPVMER-1,20.99,FAMILY PLACEMENTS-POSTAGES & COURIER SERVICES,POSTAL SERVICES - GOVERNMENT ONLY,GPC
WALSALL COUNCIL,http://opendatacommunities.org/id/metropolitan-district-council/walsall ,30/06/2021,ECONOMY & ENVIRONMENT,COMPANIES HOUSE,14/04/2021,H59620210416BQKXGRHUY-1,1.00,POLLUTION DIVISION-FEES & LICENCES,GOVERNMENT SERVICES,GPC
WALSALL COUNCIL,http://opendatacommunities.org/id/metropolitan-district-council/walsall ,30/06/2021,CHILDRENS SERVICES,WILKO RETAIL LIMITED,14/04/2021,H59620210416BRWVGSJPV-1,65.70,WALSALL CRISIS SUPPORT SCHEME-CRISIS SUPPORT PAYMENTS,MISCELLANEOUS GENERAL MERCHANDISE,GPC
WALSALL COUNCIL,http://opendatacommunities.org/id/metropolitan-district-council/walsall ,30/06/2021,CHILDRENS SERVICES,SIM-MAYOU HARDWARE,14/04/2021,H59620210416CUWWFWQDG-1,10.00,REDRUTH ROAD-OPERATIONAL MAINTENANCE,HARDWARE STORES,GPC
WALSALL COUNCIL,http://opendatacommunities.org/id/metropolitan-district-council/walsall ,30/06/2021,ECONOMY & ENVIRONMENT,WWW.PUBLICPOLICYEXCHAN,14/04/2021,H59620210416DOLUTEEJT-1,320.40,CCTV-PROFESSIONAL FEES & SERVICES,OTHER BUSINESS SERVICES,GPC
WALSALL COUNCIL,http://opendatacommunities.org/id/metropolitan-district-council/walsall ,30/06/2021,CHILDRENS SERVICES,AMAZON MUSIC*M49QH5PZ4,14/04/2021,H59620210416DYSJFDJES-1,3.99,WALSALL CRISIS SUPPORT SCHEME-PURCHASE OF FURNITURE & EQUIPM,RECORD SHOPS,GPC
WALSALL COUNCIL,http://opendatacommunities.org/id/metropolitan-district-council/walsall ,30/06/2021,CHILDRENS SERVICES,ASDA SUPERSTORE,14/04/2021,H59620210416EKRLVFHLA-1,33.82,FOOD TECHNOLOGY/HOSPITALITY-MATERIALS,GROCERY STORES AND SUPERMARKETS,GPC
WALSALL COUNCIL,http://opendatacommunities.org/id/metropolitan-district-council/walsall ,30/06/2021,ECONOMY & ENVIRONMENT,WILKO RETAIL LIMITED,14/04/2021,H59620210416EMHNIUIKB-1,23.00,LEATHER MUSEUM-MATERIALS,MISCELLANEOUS GENERAL MERCHANDISE,GPC
WALSALL COUNCIL,http://opendatacommunities.org/id/metropolitan-district-council/walsall ,30/06/2021,ECONOMY & ENVIRONMENT,AMZNMKTPLACE,14/04/2021,H59620210416EWXOLSTCF-1,28.43,STREETLY LIBRARY-STATIONERY & GENERAL OFFICE SU,MISCELLANEOUS AND SPECIALTY RETAIL STORES,GPC
WALSALL COUNCIL,http://opendatacommunities.org/id/metropolitan-district-council/walsall ,30/06/2021,ECONOMY & ENVIRONMENT,B&M 402 - BROWNHILLS,14/04/2021,H59620210416EZMDXXPVL-1,15.48,BROWNHILLS LIBRARY-CLEANING MATERIALS,MISCELLANEOUS GENERAL MERCHANDISE,GPC
WALSALL COUNCIL,http://opendatacommunities.org/id/metropolitan-district-council/walsall ,30/06/2021,ECONOMY & ENVIRONMENT,B&M 402 - BROWNHILLS,14/04/2021,H59620210416EZMDXXPVL-2,6.48,BROWNHILLS LIBRARY-PURCHASE OF FURNITURE & EQUIPM,MISCELLANEOUS GENERAL MERCHANDISE,GPC
WALSALL COUNCIL,http://opendatacommunities.org/id/metropolitan-district-council/walsall ,30/06/2021,ECONOMY & ENVIRONMENT,AMAZON.CO.UK*M472K2PB4,14/04/2021,H59620210416FWMRGBBMW-1,46.99,BLOXWICH LIBRARY-PURCHASE OF FURNITURE & EQUIPM,OTHER DIRECT MARKETING-OTHER DIRECT MARKETERS,GPC
WALSALL COUNCIL,http://opendatacommunities.org/id/metropolitan-district-council/walsall ,30/06/2021,CHILDRENS SERVICES,NISA LOCAL,14/04/2021,H59620210416FYSRDFWEE-1,4.37,REDRUTH ROAD-FOOD & DRINK SUPPLIES,MISCELLANEOUS FOOD STORES & CONVENIENCE STORES,GPC
WALSALL COUNCIL,http://opendatacommunities.org/id/metropolitan-district-council/walsall ,30/06/2021,CHILDRENS SERVICES,HOTEL ON BOOKING.COM,14/04/2021,H59620210416GBYACRTKL-1,47.00,BED & BREAKFAST PAYMENTS-BED & BREAKFAST PAYMENTS,"HOTELS, MOTELS, RESORTS",GPC
WALSALL COUNCIL,http://opendatacommunities.org/id/metropolitan-district-council/walsall ,30/06/2021,ECONOMY & ENVIRONMENT,WWW.ENGWELD.CO.UK,14/04/2021,H59620210416GEYKTRLSM-1,26.29,FLEET-OTHER ENERGY COSTS,"FUEL DEALERS-COAL, FUEL OIL,  LIQUEFIED PETROLEUM",GPC
WALSALL COUNCIL,http://opendatacommunities.org/id/metropolitan-district-council/walsall ,30/06/2021,CHILDRENS SERVICES,AMZNMKTPLACE,14/04/2021,H59620210416HXJKEYEGO-1,9.95,CONTACT SESSIONAL STAFF-STATIONERY & GENERAL OFFICE SU,MISCELLANEOUS AND SPECIALTY RETAIL STORES,GPC
WALSALL COUNCIL,http://opendatacommunities.org/id/metropolitan-district-council/walsall ,30/06/2021,ECONOMY & ENVIRONMENT,AMZNMKTPLACE,14/04/2021,H59620210416IQLUTZXNG-1,122.04,BLOXWICH ACTIVE LIVING CENTRE-STATIONERY & GENERAL OFFICE SU,MISCELLANEOUS AND SPECIALTY RETAIL STORES,GPC
WALSALL COUNCIL,http://opendatacommunities.org/id/metropolitan-district-council/walsall ,30/06/2021,CHILDRENS SERVICES,TESCO PFS 3374,14/04/2021,H59620210416JAPFEQSOZ-1,2.50,ADOLESCENT SERVICE-OTHER EXPENSES,SERVICE STATIONS,GPC
WALSALL COUNCIL,http://opendatacommunities.org/id/metropolitan-district-council/walsall ,30/06/2021,ECONOMY & ENVIRONMENT,TIMPSON LTD,14/04/2021,H59620210416JOUVNECPD-1,10.00,LICENSING ADMINISTRATION-MATERIALS,MISCELLANEOUS AND SPECIALTY RETAIL STORES,GPC
WALSALL COUNCIL,http://opendatacommunities.org/id/metropolitan-district-council/walsall ,30/06/2021,ECONOMY & ENVIRONMENT,AMZNMKTPLACE,14/04/2021,H59620210416KPSNKEKDS-1,11.98,LIBRARY OPERATIONS - MOBILE SE-STATIONERY & GENERAL OFFICE SU,MISCELLANEOUS AND SPECIALTY RETAIL STORES,GPC
WALSALL COUNCIL,http://opendatacommunities.org/id/metropolitan-district-council/walsall ,30/06/2021,CHILDRENS SERVICES,KCJONESCONF,14/04/2021,H59620210416MTUVVHSGF-1,150.00,ADOLESCENT SERVICE-EXTERNAL TRAINING,"THEATRICAL PRODUCERS, TIC",GPC
WALSALL COUNCIL,http://opendatacommunities.org/id/metropolitan-district-council/walsall ,30/06/2021,CHILDRENS SERVICES,ARGOS LTD,14/04/2021,H59620210416NFJLZBOKG-1,281.95,SAFEGUARDING & FAMILY SUPPORT-PURCHASE OF FURNITURE & EQUIPM,DISCOUNT STORES,GPC
WALSALL COUNCIL,http://opendatacommunities.org/id/metropolitan-district-council/walsall ,30/06/2021,ECONOMY & ENVIRONMENT,AMZNMKTPLACE AMAZON.CO.UK,14/04/2021,H59620210416NMAYHWYEE-1,40.96,BLOXWICH ACTIVE LIVING CENTRE-STATIONERY & GENERAL OFFICE SU,MISCELLANEOUS AND SPECIALTY RETAIL STORES,GPC
WALSALL COUNCIL,http://opendatacommunities.org/id/metropolitan-district-council/walsall ,30/06/2021,ECONOMY & ENVIRONMENT,WWW.THEWORKS.CO.UK,14/04/2021,H59620210416OUIWYPGLP-1,9.50,LEATHER MUSEUM-MATERIALS,DISCOUNT STORES,GPC
WALSALL COUNCIL,http://opendatacommunities.org/id/metropolitan-district-council/walsall ,30/06/2021,ECONOMY & ENVIRONMENT,WWW.THEWORKS.CO.UK,14/04/2021,H59620210416OUIWYPGLP-2,3.99,LEATHER MUSEUM-MATERIALS,DISCOUNT STORES,GPC
WALSALL COUNCIL,http://opendatacommunities.org/id/metropolitan-district-council/walsall ,30/06/2021,ECONOMY & ENVIRONMENT,AMZNMKTPLACE,14/04/2021,H59620210416PIMLPPFEG-1,11.99,BLOXWICH ACTIVE LIVING CENTRE-STATIONERY & GENERAL OFFICE SU,MISCELLANEOUS AND SPECIALTY RETAIL STORES,GPC
WALSALL COUNCIL,http://opendatacommunities.org/id/metropolitan-district-council/walsall ,30/06/2021,CHILDRENS SERVICES,AMAZON.CO.UK*M47FO1GC4,14/04/2021,H59620210416PINYBYAMP-1,103.99,EARLY YEARS AND DISABILITIES S-SECTION 1/17CHILD CARE ACT 198,OTHER DIRECT MARKETING-OTHER DIRECT MARKETERS,GPC
WALSALL COUNCIL,http://opendatacommunities.org/id/metropolitan-district-council/walsall ,30/06/2021,CHILDRENS SERVICES,BLOXWICH HARDWARE,14/04/2021,H59620210416QWITJDNMH-1,54.00,SALISBURY PRIMARY SCHOOL-OPERATIONAL MAINTENANCE,HARDWARE STORES,GPC
WALSALL COUNCIL,http://opendatacommunities.org/id/metropolitan-district-council/walsall ,30/06/2021,CHILDRENS SERVICES,AMAZON.CO.UK*M460V2GI4,14/04/2021,H59620210416SPBYRCEQL-1,38.98,PUPIL PREMIUM-MATERIALS,OTHER DIRECT MARKETING-OTHER DIRECT MARKETERS,GPC
WALSALL COUNCIL,http://opendatacommunities.org/id/metropolitan-district-council/walsall ,30/06/2021,ECONOMY & ENVIRONMENT,AMAZON.CO.UK*M431D4G64,14/04/2021,H59620210416STUNNOIRE-1,18.46,CEMETERIES-STATIONERY & GENERAL OFFICE SU,OTHER DIRECT MARKETING-OTHER DIRECT MARKETERS,GPC
WALSALL COUNCIL,http://opendatacommunities.org/id/metropolitan-district-council/walsall ,30/06/2021,CHILDRENS SERVICES,NISA LOCAL,14/04/2021,H59620210416UIALQGXIV-1,1.79,REDRUTH ROAD-FOOD & DRINK SUPPLIES,MISCELLANEOUS FOOD STORES & CONVENIENCE STORES,GPC
WALSALL COUNCIL,http://opendatacommunities.org/id/metropolitan-district-council/walsall ,30/06/2021,CHILDRENS SERVICES,TESCO STORES 6161,14/04/2021,H59620210416UIXHEKYDR-1,20.00,ROUGH SLEEPING INITIATIVE GRAN-CRISIS SUPPORT PAYMENTS,GROCERY STORES AND SUPERMARKETS,GPC
WALSALL COUNCIL,http://opendatacommunities.org/id/metropolitan-district-council/walsall ,30/06/2021,CHILDRENS SERVICES,TESCO STORES 6161,14/04/2021,H59620210416UIXHEKYDR-2,13.98,ROUGH SLEEPING INITIATIVE GRAN-CRISIS SUPPORT PAYMENTS,GROCERY STORES AND SUPERMARKETS,GPC
WALSALL COUNCIL,http://opendatacommunities.org/id/metropolitan-district-council/walsall ,30/06/2021,ECONOMY & ENVIRONMENT,AMAZON.CO.UK*M40GB0GJ4,14/04/2021,H59620210416UMJLNIRQF-1,9.33,FLEET-VEHICLES REPAIRS & MAINTENANCE,OTHER DIRECT MARKETING-OTHER DIRECT MARKETERS,GPC
WALSALL COUNCIL,http://opendatacommunities.org/id/metropolitan-district-council/walsall ,30/06/2021,ECONOMY & ENVIRONMENT,MIDLANDNEWS.COM,14/04/2021,H59620210416UNSRRKJLD-1,249.84,DEVELOPMENT MANAGEMENT-SUBSCRIPTIONS,NEWS DEALERS AND NEWSSTANDS,GPC
WALSALL COUNCIL,http://opendatacommunities.org/id/metropolitan-district-council/walsall ,30/06/2021,ECONOMY & ENVIRONMENT,STRIKE ELECTRICAL DIST,14/04/2021,H59620210416VMXKGVQQS-1,10.92,LEATHER MUSEUM-MATERIALS,HOUSEHOLD APPLIANCE STORES,GPC
WALSALL COUNCIL,http://opendatacommunities.org/id/metropolitan-district-council/walsall ,30/06/2021,ECONOMY & ENVIRONMENT,AMZNMKTPLACE,14/04/2021,H59620210416XKNYSLPQQ-1,8.37,CEMETERIES-STATIONERY & GENERAL OFFICE SU,MISCELLANEOUS AND SPECIALTY RETAIL STORES,GPC
WALSALL COUNCIL,http://opendatacommunities.org/id/metropolitan-district-council/walsall ,30/06/2021,RESOURCES AND TRANSFORMATION,SCREWFIX DIRECT,14/04/2021,H59620210416XKPCPVJXW-1,54.89,ELECTORAL ADMINISTRATION-MATERIALS,LUMBER & BUILDING MATERIALS STORES,GPC
WALSALL COUNCIL,http://opendatacommunities.org/id/metropolitan-district-council/walsall ,30/06/2021,ECONOMY & ENVIRONMENT,AMZNMKTPLACE,14/04/2021,H59620210416XTZURESGV-1,34.19,BLOXWICH ACTIVE LIVING CENTRE-STATIONERY & GENERAL OFFICE SU,MISCELLANEOUS AND SPECIALTY RETAIL STORES,GPC
WALSALL COUNCIL,http://opendatacommunities.org/id/metropolitan-district-council/walsall ,30/06/2021,ECONOMY & ENVIRONMENT,AMZNMKTPLACE,14/04/2021,H59620210416XURHSBKSL-1,3.50,WALSALL GALA SWIMMING AND FITN-MATERIALS,MISCELLANEOUS AND SPECIALTY RETAIL STORES,GPC
WALSALL COUNCIL,http://opendatacommunities.org/id/metropolitan-district-council/walsall ,30/06/2021,CHILDRENS SERVICES,ARGOS LTD,14/04/2021,H59620210416YGHWJFXID-1,20.00,SAFEGUARDING & FAMILY SUPPORT-PURCHASE OF FURNITURE & EQUIPM,DISCOUNT STORES,GPC
WALSALL COUNCIL,http://opendatacommunities.org/id/metropolitan-district-council/walsall ,30/06/2021,CHILDRENS SERVICES,AMZNMKTPLACE,14/04/2021,H59620210416YWKWHGKUR-1,33.96,CONTACT SESSIONAL STAFF-STATIONERY & GENERAL OFFICE SU,MISCELLANEOUS AND SPECIALTY RETAIL STORES,GPC
WALSALL COUNCIL,http://opendatacommunities.org/id/metropolitan-district-council/walsall ,30/06/2021,CHILDRENS SERVICES,AMAZON.CO.UK*M474C3PZ4,14/04/2021,H59620210416YYFARBSSI-1,37.87,E19-MATERIALS,OTHER DIRECT MARKETING-OTHER DIRECT MARKETERS,GPC
WALSALL COUNCIL,http://opendatacommunities.org/id/metropolitan-district-council/walsall ,30/06/2021,ECONOMY & ENVIRONMENT,AMZNMKTPLACE,14/04/2021,H59620210416ZWDTOPYFR-1,359.10,CCTV-STATIONERY & GENERAL OFFICE SU,MISCELLANEOUS AND SPECIALTY RETAIL STORES,GPC
WALSALL COUNCIL,http://opendatacommunities.org/id/metropolitan-district-council/walsall ,30/06/2021,CHILDRENS SERVICES,SKY SUBSCRIPTION,14/04/2021,H59620210417DEVSHRBXC-1,58.99,"43A HILTON ROAD, WILLENHALL-RESIDENTS PERSONAL EXPENSES-AL","CABLE, SATELLITE & OTHER PAY TV AND RADIO SERVICES",GPC
WALSALL COUNCIL,http://opendatacommunities.org/id/metropolitan-district-council/walsall ,30/06/2021,ECONOMY & ENVIRONMENT,MAILCHIMP *MONTHLY,14/04/2021,H59620210417JCFYCHYAX-1,460.91,REGISTRAR-COMPUTER EQUIPMENT,DIRECT MARKETING CONTINUITY SUBSCRIPTION MERCHANTS,GPC
WALSALL COUNCIL,http://opendatacommunities.org/id/metropolitan-district-council/walsall ,30/06/2021,CHILDRENS SERVICES,AMAZON.CO.UK*M49SZ0GW4 AM,14/04/2021,H59620210417KPFDGCOEG-1,16.99,"43A HILTON ROAD, WILLENHALL-CLEANING MATERIALS",MISCELLANEOUS AND SPECIALTY RETAIL STORES,GPC
WALSALL COUNCIL,http://opendatacommunities.org/id/metropolitan-district-council/walsall ,30/06/2021,RESOURCES AND TRANSFORMATION,WWW.SCC.COM,14/04/2021,H59620210616SMRDLPWYU-1,4477.44,RECHARGEABLE EQUIPMENT-COMPUTER EQUIPMENT,"COMPUTERS, COMPUTER PERIPHERAL EQUIPMENT, SOFTWARE",GPC
WALSALL COUNCIL,http://opendatacommunities.org/id/metropolitan-district-council/walsall ,30/06/2021,CHILDRENS SERVICES,WWW.BESBIC.EU.COM,15/04/2021,H59620210417ACNMSVVEQ-1,129.60,EARLY YEARS AND DISABILITIES S-PURCHASE OF FURNITURE & EQUIPM,"HEALTH PRACTITIONERS, MEDICAL SERVICES",GPC
WALSALL COUNCIL,http://opendatacommunities.org/id/metropolitan-district-council/walsall ,30/06/2021,CHILDRENS SERVICES,WALSALL COUNCIL,15/04/2021,H59620210417BBERKWVYY-1,83.00,SAFEGUARDING & FAMILY SUPPORT-FEES & LICENCES,GOVERNMENT SERVICES,GPC
WALSALL COUNCIL,http://opendatacommunities.org/id/metropolitan-district-council/walsall ,30/06/2021,CHILDRENS SERVICES,WALSALL COUNCIL,15/04/2021,H59620210417CFKKCTLOR-1,28.00,GENERAL MANAGEMENT SUPPORT (IN-EXTERNAL LEGAL FEES,GOVERNMENT SERVICES,GPC
WALSALL COUNCIL,http://opendatacommunities.org/id/metropolitan-district-council/walsall ,30/06/2021,CHILDRENS SERVICES,WICKES PERRY BARR,15/04/2021,H59620210417CHECBHJGK-1,6.40,"43A HILTON ROAD, WILLENHALL-MATERIALS",LUMBER & BUILDING MATERIALS STORES,GPC
WALSALL COUNCIL,http://opendatacommunities.org/id/metropolitan-district-council/walsall ,30/06/2021,RESOURCES AND TRANSFORMATION,WWW.BANNERUK.COM,15/04/2021,H59620210417DNBQSBVVZ-1,12.26,CENTRALISED STATIONARY-STATIONERY & GENERAL OFFICE SU,"STATIONERY, OFFICE SUPPLIES AND WRITING PAPER",GPC
WALSALL COUNCIL,http://opendatacommunities.org/id/metropolitan-district-council/walsall ,30/06/2021,ECONOMY & ENVIRONMENT,SUNNY ELECTRICAL SUPPLIE,15/04/2021,H59620210417FFJVPBJGB-1,11.74,INFRASTRUCTURE MAINTENANCE-MATERIALS,ELECTRICAL PARTS AND EQUIPMENT,GPC
WALSALL COUNCIL,http://opendatacommunities.org/id/metropolitan-district-council/walsall ,30/06/2021,CHILDRENS SERVICES,WALSALL STN T/O,15/04/2021,H59620210417FVBCLNHUH-1,47.90,HOMELESSNESS PREVENTION STRATE-OTHER TRAVEL ALLOWANCES,PASSENGER RAILWAYS,GPC
WALSALL COUNCIL,http://opendatacommunities.org/id/metropolitan-district-council/walsall ,30/06/2021,ECONOMY & ENVIRONMENT,AMZNMKTPLACE,15/04/2021,H59620210417JBCXCJFWC-1,5.97,STREETLY LIBRARY-STATIONERY & GENERAL OFFICE SU,MISCELLANEOUS AND SPECIALTY RETAIL STORES,GPC
WALSALL COUNCIL,http://opendatacommunities.org/id/metropolitan-district-council/walsall ,30/06/2021,ECONOMY & ENVIRONMENT,J2 EFAX PLUS SERVICE,15/04/2021,H59620210417JKEJKJHYB-1,7.20,REGISTRAR-COMPUTER EQUIPMENT,DIRECT MARKETING CONTINUITY SUBSCRIPTION MERCHANTS,GPC
WALSALL COUNCIL,http://opendatacommunities.org/id/metropolitan-district-council/walsall ,30/06/2021,CHILDRENS SERVICES,HOTEL ON BOOKING.COM,15/04/2021,H59620210417KJYZDCAJG-1,501.00,BED & BREAKFAST PAYMENTS-BED & BREAKFAST PAYMENTS,"HOTELS, MOTELS, RESORTS",GPC
WALSALL COUNCIL,http://opendatacommunities.org/id/metropolitan-district-council/walsall ,30/06/2021,CHILDRENS SERVICES,AMZNMKTPLACE,15/04/2021,H59620210417LXPFBOFST-1,148.61,CONTACT SESSIONAL STAFF-STATIONERY & GENERAL OFFICE SU,MISCELLANEOUS AND SPECIALTY RETAIL STORES,GPC
WALSALL COUNCIL,http://opendatacommunities.org/id/metropolitan-district-council/walsall ,30/06/2021,ECONOMY & ENVIRONMENT,AMZNMKTPLACE,15/04/2021,H59620210417MQOYEJTJL-1,2.95,LIBRARY OPERATIONS - MOBILE SE-STATIONERY & GENERAL OFFICE SU,MISCELLANEOUS AND SPECIALTY RETAIL STORES,GPC
WALSALL COUNCIL,http://opendatacommunities.org/id/metropolitan-district-council/walsall ,30/06/2021,ECONOMY & ENVIRONMENT,AMAZON.CO.UK*M41W71V34,15/04/2021,H59620210417OAJXPWLOF-1,12.24,NEW ART GALLERY - ADMIN-STATIONERY & GENERAL OFFICE SU,OTHER DIRECT MARKETING-OTHER DIRECT MARKETERS,GPC
WALSALL COUNCIL,http://opendatacommunities.org/id/metropolitan-district-council/walsall ,30/06/2021,RESOURCES AND TRANSFORMATION,WWW.BANNERUK.COM,15/04/2021,H59620210417OHMNLGMBT-1,7.49,CENTRALISED STATIONARY-STATIONERY & GENERAL OFFICE SU,"STATIONERY, OFFICE SUPPLIES AND WRITING PAPER",GPC
WALSALL COUNCIL,http://opendatacommunities.org/id/metropolitan-district-council/walsall ,30/06/2021,RESOURCES AND TRANSFORMATION,WALSALL COUNCIL,15/04/2021,H59620210417PFESLECWX-1,17.00,RES-WALSALL WORKS-FEES & LICENCES,GOVERNMENT SERVICES,GPC
WALSALL COUNCIL,http://opendatacommunities.org/id/metropolitan-district-council/walsall ,30/06/2021,RESOURCES AND TRANSFORMATION,WALSALL COUNCIL,15/04/2021,H59620210417PWUVUKCXT-1,17.00,RES-WALSALL WORKS-FEES & LICENCES,GOVERNMENT SERVICES,GPC
WALSALL COUNCIL,http://opendatacommunities.org/id/metropolitan-district-council/walsall ,30/06/2021,ECONOMY & ENVIRONMENT,ARGOS CANNOCK,15/04/2021,H59620210417PXBJGDXJL-1,14.99,STREETLY LIBRARY-PURCHASE OF FURNITURE & EQUIPM,DISCOUNT STORES,GPC
WALSALL COUNCIL,http://opendatacommunities.org/id/metropolitan-district-council/walsall ,30/06/2021,CHILDRENS SERVICES,WWW.BROMFORD.CO.UK,15/04/2021,H59620210417QGLVRMEGP-1,388.24,WALSALL CRISIS SUPPORT SCHEME-FEES & LICENCES,GOVERNMENT SERVICES,GPC
WALSALL COUNCIL,http://opendatacommunities.org/id/metropolitan-district-council/walsall ,30/06/2021,ECONOMY & ENVIRONMENT,TFM FARM COUNTRY,15/04/2021,H59620210417RDHXSHWHJ-1,58.89,ARBORETUM-PROFESSIONAL FEES & SERVICES,AGRICULTURAL COOPERATIVES,GPC
WALSALL COUNCIL,http://opendatacommunities.org/id/metropolitan-district-council/walsall ,30/06/2021,CHILDRENS SERVICES,ALDI 772 129,15/04/2021,H59620210417STMFSBKQP-1,4.29,"43A HILTON ROAD, WILLENHALL-FOOD & DRINK SUPPLIES",GROCERY STORES AND SUPERMARKETS,GPC
WALSALL COUNCIL,http://opendatacommunities.org/id/metropolitan-district-council/walsall ,30/06/2021,CHILDRENS SERVICES,ALDI 772 129,15/04/2021,H59620210417STMFSBKQP-2,40.06,"43A HILTON ROAD, WILLENHALL-FOOD & DRINK SUPPLIES",GROCERY STORES AND SUPERMARKETS,GPC
WALSALL COUNCIL,http://opendatacommunities.org/id/metropolitan-district-council/walsall ,30/06/2021,ADULT SOCIAL CARE,POST OFFICE COUNTER,15/04/2021,H59620210417SXCPTGNYI-1,1.83,GOSCOTE-POSTAGES & COURIER SERVICES,POSTAL SERVICES - GOVERNMENT ONLY,GPC
WALSALL COUNCIL,http://opendatacommunities.org/id/metropolitan-district-council/walsall ,30/06/2021,RESOURCES AND TRANSFORMATION,WALSALL COUNCIL,15/04/2021,H59620210417TLOWRWWSP-1,17.00,RES-WALSALL WORKS-FEES & LICENCES,GOVERNMENT SERVICES,GPC
WALSALL COUNCIL,http://opendatacommunities.org/id/metropolitan-district-council/walsall ,30/06/2021,ECONOMY & ENVIRONMENT,AMAZON.CO.UK*M43951V34,15/04/2021,H59620210417UOTCEYMIZ-1,49.98,DARLASTON SWIMMING AND FITNESS-STATIONERY & GENERAL OFFICE SU,OTHER DIRECT MARKETING-OTHER DIRECT MARKETERS,GPC
WALSALL COUNCIL,http://opendatacommunities.org/id/metropolitan-district-council/walsall ,30/06/2021,RESOURCES AND TRANSFORMATION,DECORATINGDIRECT.CO.UK,15/04/2021,H59620210417USXMQFGCQ-1,-80.52,ELECTORAL ADMINISTRATION-MATERIALS,MISCELLANEOUS GENERAL MERCHANDISE,GPC
WALSALL COUNCIL,http://opendatacommunities.org/id/metropolitan-district-council/walsall ,30/06/2021,RESOURCES AND TRANSFORMATION,AMZNMKTPLACE,15/04/2021,H59620210417UYTVZKCFL-1,54.59,RECHARGEABLE EQUIPMENT-COMPUTER EQUIPMENT,MISCELLANEOUS AND SPECIALTY RETAIL STORES,GPC
WALSALL COUNCIL,http://opendatacommunities.org/id/metropolitan-district-council/walsall ,30/06/2021,CHILDRENS SERVICES,ASDA SUPERSTORE,15/04/2021,H59620210417VZKSEHGNA-1,3.49,REDRUTH ROAD-FOOD & DRINK SUPPLIES,GROCERY STORES AND SUPERMARKETS,GPC
WALSALL COUNCIL,http://opendatacommunities.org/id/metropolitan-district-council/walsall ,30/06/2021,CHILDRENS SERVICES,ASDA SUPERSTORE,15/04/2021,H59620210417VZKSEHGNA-2,45.71,REDRUTH ROAD-FOOD & DRINK SUPPLIES,GROCERY STORES AND SUPERMARKETS,GPC
WALSALL COUNCIL,http://opendatacommunities.org/id/metropolitan-district-council/walsall ,30/06/2021,ECONOMY & ENVIRONMENT,SPORTSDIRECT.COM,15/04/2021,H59620210417WOFBZUTZQ-1,133.96,COMMUNITY LIASON-CLOTHING & LAUNDRY,MENS AND WOMENS CLOTHING STORES,GPC
WALSALL COUNCIL,http://opendatacommunities.org/id/metropolitan-district-council/walsall ,30/06/2021,ECONOMY & ENVIRONMENT,WWW.PHS.CO.UK,15/04/2021,H59620210417XWIWVDRHD-1,2652.49,WALSALL ARENA AND ARTS CENTRE-PROFESSIONAL FEES & SERVICES,OTHER BUSINESS SERVICES,GPC
WALSALL COUNCIL,http://opendatacommunities.org/id/metropolitan-district-council/walsall ,30/06/2021,CHILDRENS SERVICES,ARGOS LTD,15/04/2021,H59620210417YRRFEKMEI-1,249.99,SUPPORT UNDER SECT 23 OF THE C-SUPPORT UNDER SECTION 23 OF TH,DISCOUNT STORES,GPC
WALSALL COUNCIL,http://opendatacommunities.org/id/metropolitan-district-council/walsall ,30/06/2021,ECONOMY & ENVIRONMENT,WWW.BANNERUK.COM,15/04/2021,H59620210417ZJVFBVDSK-1,7.26,CEMETERIES-STATIONERY & GENERAL OFFICE SU,"STATIONERY, OFFICE SUPPLIES AND WRITING PAPER",GPC
WALSALL COUNCIL,http://opendatacommunities.org/id/metropolitan-district-council/walsall ,30/06/2021,ADULT SOCIAL CARE,J M TURLEY LTD,15/04/2021,H59620210420BVMCKATYR-1,362.40,WEST LOCALITY TEAM-PURCHASE OF FURNITURE & EQUIPM,"EQUIPMENT, FURNITURE, AND HOME FURNISHINGS STORES ",GPC
WALSALL COUNCIL,http://opendatacommunities.org/id/metropolitan-district-council/walsall ,30/06/2021,CHILDRENS SERVICES,MCDONALDS,16/04/2021,H59620210420ABJVDDGCC-1,0.99,ADOLESCENT SERVICE-FOOD & DRINK SUPPLIES,QUICK PAYMENT SERVICE-FAST-FOOD RESTAURANTS,GPC
WALSALL COUNCIL,http://opendatacommunities.org/id/metropolitan-district-council/walsall ,30/06/2021,CHILDRENS SERVICES,AMAZON.CO.UK*M45DE6ML4,16/04/2021,H59620210420AKTXGNUQA-1,58.49,NEW LEAF PUPIL REFERAL UNIT-MATERIALS,OTHER DIRECT MARKETING-OTHER DIRECT MARKETERS,GPC
WALSALL COUNCIL,http://opendatacommunities.org/id/metropolitan-district-council/walsall ,30/06/2021,CHILDRENS SERVICES,AMAZON.CO.UK*M43FG5M34 AM,16/04/2021,H59620210420BFFXXVTVH-1,60.00,NEW LEAF PUPIL REFERAL UNIT-MATERIALS,MISCELLANEOUS AND SPECIALTY RETAIL STORES,GPC
WALSALL COUNCIL,http://opendatacommunities.org/id/metropolitan-district-council/walsall ,30/06/2021,CHILDRENS SERVICES,PARTRIDGE & PRINT,16/04/2021,H59620210420BLDBGXJJM-1,480.00,FAMILY PLACEMENTS-PUBLICITY & ADVERTISING (NON S,OTHER SCHOOLS AND EDUCATIONAL SERVICES,GPC
WALSALL COUNCIL,http://opendatacommunities.org/id/metropolitan-district-council/walsall ,30/06/2021,CHILDRENS SERVICES,PARTRIDGE & PRINT,16/04/2021,H59620210420BLDBGXJJM-2,18.00,FAMILY PLACEMENTS-PUBLICITY & ADVERTISING (NON S,OTHER SCHOOLS AND EDUCATIONAL SERVICES,GPC
WALSALL COUNCIL,http://opendatacommunities.org/id/metropolitan-district-council/walsall ,30/06/2021,CHILDRENS SERVICES,AMAZON.CO.UK*M46FA8M44,16/04/2021,H59620210420CEABWGCQW-1,58.49,NEW LEAF PUPIL REFERAL UNIT-MATERIALS,OTHER DIRECT MARKETING-OTHER DIRECT MARKETERS,GPC
WALSALL COUNCIL,http://opendatacommunities.org/id/metropolitan-district-council/walsall ,30/06/2021,CHILDRENS SERVICES,CO-OPERATIVE FOOD,16/04/2021,H59620210420CKBXWKOIN-1,5.00,ADOLESCENT SERVICE-FOOD & DRINK SUPPLIES,GROCERY STORES AND SUPERMARKETS,GPC
WALSALL COUNCIL,http://opendatacommunities.org/id/metropolitan-district-council/walsall ,30/06/2021,CHILDRENS SERVICES,SAINSBURYS S/MKT,16/04/2021,H59620210420CLBFUMAOM-1,4.40,FOOD TECHNOLOGY/HOSPITALITY-MATERIALS,GROCERY STORES AND SUPERMARKETS,GPC
WALSALL COUNCIL,http://opendatacommunities.org/id/metropolitan-district-council/walsall ,30/06/2021,RESOURCES AND TRANSFORMATION,JOHAL DAIRIES LTD,16/04/2021,H59620210420COTSVJLEW-1,49.30,CATERING - SCHOOLS-FOOD & DRINK SUPPLIES,OTHER NONDURABLE GOODS,GPC
WALSALL COUNCIL,http://opendatacommunities.org/id/metropolitan-district-council/walsall ,30/06/2021,RESOURCES AND TRANSFORMATION,AMZNMKTPLACE,16/04/2021,H59620210420DDVOGFWIK-1,10.48,YEI ESF FUNDING-CLOTHING & LAUNDRY,MISCELLANEOUS AND SPECIALTY RETAIL STORES,GPC
WALSALL COUNCIL,http://opendatacommunities.org/id/metropolitan-district-council/walsall ,30/06/2021,RESOURCES AND TRANSFORMATION,AMZNMKTPLACE,16/04/2021,H59620210420DDVOGFWIK-2,10.47,YEI (IMPACT) PROGRAMME-CLOTHING & LAUNDRY,MISCELLANEOUS AND SPECIALTY RETAIL STORES,GPC
WALSALL COUNCIL,http://opendatacommunities.org/id/metropolitan-district-council/walsall ,30/06/2021,RESOURCES AND TRANSFORMATION,JOHAL DAIRIES LTD,16/04/2021,H59620210420DKGWHWUAA-1,8.80,CATERING - SCHOOLS-FOOD & DRINK SUPPLIES,OTHER NONDURABLE GOODS,GPC
WALSALL COUNCIL,http://opendatacommunities.org/id/metropolitan-district-council/walsall ,30/06/2021,RESOURCES AND TRANSFORMATION,NEW LOOK INTERNET,16/04/2021,H59620210420EDGDNGGUN-1,33.98,YEI ESF FUNDING-CLOTHING & LAUNDRY,WOMENS READY TO WEAR STORES,GPC
WALSALL COUNCIL,http://opendatacommunities.org/id/metropolitan-district-council/walsall ,30/06/2021,RESOURCES AND TRANSFORMATION,NEW LOOK INTERNET,16/04/2021,H59620210420EDGDNGGUN-2,33.98,YEI (IMPACT) PROGRAMME-CLOTHING & LAUNDRY,WOMENS READY TO WEAR STORES,GPC
WALSALL COUNCIL,http://opendatacommunities.org/id/metropolitan-district-council/walsall ,30/06/2021,RESOURCES AND TRANSFORMATION,JOHAL DAIRIES LTD,16/04/2021,H59620210420EKUGRUMIN-1,37.75,CATERING - SCHOOLS-FOOD & DRINK SUPPLIES,OTHER NONDURABLE GOODS,GPC
WALSALL COUNCIL,http://opendatacommunities.org/id/metropolitan-district-council/walsall ,30/06/2021,CHILDRENS SERVICES,HOME BARGAINS,16/04/2021,H59620210420FKXAATKBQ-1,6.99,ADOLESCENT SERVICE-OTHER EXPENSES,HARDWARE STORES,GPC
WALSALL COUNCIL,http://opendatacommunities.org/id/metropolitan-district-council/walsall ,30/06/2021,CHILDRENS SERVICES,HOME BARGAINS,16/04/2021,H59620210420FKXAATKBQ-2,1.00,ADOLESCENT SERVICE-FOOD & DRINK SUPPLIES,HARDWARE STORES,GPC
WALSALL COUNCIL,http://opendatacommunities.org/id/metropolitan-district-council/walsall ,30/06/2021,RESOURCES AND TRANSFORMATION,JOHAL DAIRIES LTD,16/04/2021,H59620210420GBYUEHYNE-1,7.92,CATERING - SCHOOLS-FOOD & DRINK SUPPLIES,OTHER NONDURABLE GOODS,GPC
WALSALL COUNCIL,http://opendatacommunities.org/id/metropolitan-district-council/walsall ,30/06/2021,RESOURCES AND TRANSFORMATION,JOHAL DAIRIES LTD,16/04/2021,H59620210420GHZSGAAYJ-1,9.90,CATERING - SCHOOLS-FOOD & DRINK SUPPLIES,OTHER NONDURABLE GOODS,GPC
WALSALL COUNCIL,http://opendatacommunities.org/id/metropolitan-district-council/walsall ,30/06/2021,ECONOMY & ENVIRONMENT,SWIMMING TEACHERS ASSO,16/04/2021,H59620210420GJXCBBQTT-1,93.00,BLOXWICH ACTIVE LIVING CENTRE-EXTERNAL TRAINING,OTHER RECREATION SERVICES,GPC
WALSALL COUNCIL,http://opendatacommunities.org/id/metropolitan-district-council/walsall ,30/06/2021,ECONOMY & ENVIRONMENT,SWIMMING TEACHERS ASSO,16/04/2021,H59620210420GJXCBBQTT-2,93.00,DARLASTON SWIMMING AND FITNESS-EXTERNAL TRAINING,OTHER RECREATION SERVICES,GPC
WALSALL COUNCIL,http://opendatacommunities.org/id/metropolitan-district-council/walsall ,30/06/2021,ECONOMY & ENVIRONMENT,SWIMMING TEACHERS ASSO,16/04/2021,H59620210420GJXCBBQTT-3,93.00,OAK PARK ACTIVE LIVING CENTRE-EXTERNAL TRAINING,OTHER RECREATION SERVICES,GPC
WALSALL COUNCIL,http://opendatacommunities.org/id/metropolitan-district-council/walsall ,30/06/2021,ECONOMY & ENVIRONMENT,SWIMMING TEACHERS ASSO,16/04/2021,H59620210420GJXCBBQTT-4,93.00,WALSALL GALA SWIMMING AND FITN-EXTERNAL TRAINING,OTHER RECREATION SERVICES,GPC
WALSALL COUNCIL,http://opendatacommunities.org/id/metropolitan-district-council/walsall ,30/06/2021,CHILDRENS SERVICES,METRO WALSALL,16/04/2021,H59620210420IEPTCFLXT-1,190.00,ACCOMMODATION SERVICES MANAGEM-BED & BREAKFAST PAYMENTS,"HOTELS, MOTELS, RESORTS",GPC
WALSALL COUNCIL,http://opendatacommunities.org/id/metropolitan-district-council/walsall ,30/06/2021,RESOURCES AND TRANSFORMATION,JOHAL DAIRIES LTD,16/04/2021,H59620210420JLKNDQVSL-1,18.36,CATERING - SCHOOLS-FOOD & DRINK SUPPLIES,OTHER NONDURABLE GOODS,GPC
WALSALL COUNCIL,http://opendatacommunities.org/id/metropolitan-district-council/walsall ,30/06/2021,ECONOMY & ENVIRONMENT,SWIMMING TEACHERS ASSO,16/04/2021,H59620210420JWEWEMWED-1,28.00,BLOXWICH ACTIVE LIVING CENTRE-FEES & LICENCES,OTHER RECREATION SERVICES,GPC
WALSALL COUNCIL,http://opendatacommunities.org/id/metropolitan-district-council/walsall ,30/06/2021,RESOURCES AND TRANSFORMATION,JOHAL DAIRIES LTD,16/04/2021,H59620210420KJYWDFPEK-1,14.40,CATERING - SCHOOLS-FOOD & DRINK SUPPLIES,OTHER NONDURABLE GOODS,GPC
WALSALL COUNCIL,http://opendatacommunities.org/id/metropolitan-district-council/walsall ,30/06/2021,RESOURCES AND TRANSFORMATION,JOHAL DAIRIES LTD,16/04/2021,H59620210420KSHUUKGCR-1,30.60,CATERING - SCHOOLS-FOOD & DRINK SUPPLIES,OTHER NONDURABLE GOODS,GPC
WALSALL COUNCIL,http://opendatacommunities.org/id/metropolitan-district-council/walsall ,30/06/2021,CHILDRENS SERVICES,247 CARS WILLENHALL LTD,16/04/2021,H59620210420LBCEYFLXG-1,5.80,SAFEGUARDING & FAMILY SUPPORT-TAXI FARES,TAXI SERVICES,GPC
WALSALL COUNCIL,http://opendatacommunities.org/id/metropolitan-district-council/walsall ,30/06/2021,CHILDRENS SERVICES,WALSALL COUNCIL,16/04/2021,H59620210420LCVFIXMOI-1,17.00,SAFEGUARDING & FAMILY SUPPORT-FEES & LICENCES,GOVERNMENT SERVICES,GPC
WALSALL COUNCIL,http://opendatacommunities.org/id/metropolitan-district-council/walsall ,30/06/2021,RESOURCES AND TRANSFORMATION,ARTHUR BRETT CATER,16/04/2021,H59620210420LXMHIMEGP-1,23.60,CATERING - SCHOOLS-FOOD & DRINK SUPPLIES,MISCELLANEOUS FOOD STORES & CONVENIENCE STORES,GPC
WALSALL COUNCIL,http://opendatacommunities.org/id/metropolitan-district-council/walsall ,30/06/2021,RESOURCES AND TRANSFORMATION,JOHAL DAIRIES LTD,16/04/2021,H59620210420NFDRMXEEK-1,0.95,CATERING - SCHOOLS-FOOD & DRINK SUPPLIES,OTHER NONDURABLE GOODS,GPC
WALSALL COUNCIL,http://opendatacommunities.org/id/metropolitan-district-council/walsall ,30/06/2021,CHILDRENS SERVICES,W M MORRISONS.COM,16/04/2021,H59620210420NJVMDADAF-1,14.94,BLUEBELLS-FOOD & DRINK SUPPLIES,GROCERY STORES AND SUPERMARKETS,GPC
WALSALL COUNCIL,http://opendatacommunities.org/id/metropolitan-district-council/walsall ,30/06/2021,CHILDRENS SERVICES,W M MORRISONS.COM,16/04/2021,H59620210420NJVMDADAF-2,40.66,BLUEBELLS-FOOD & DRINK SUPPLIES,GROCERY STORES AND SUPERMARKETS,GPC
WALSALL COUNCIL,http://opendatacommunities.org/id/metropolitan-district-council/walsall ,30/06/2021,RESOURCES AND TRANSFORMATION,JOHAL DAIRIES LTD,16/04/2021,H59620210420NNOVLJRJK-1,21.60,CATERING - SCHOOLS-FOOD & DRINK SUPPLIES,OTHER NONDURABLE GOODS,GPC
WALSALL COUNCIL,http://opendatacommunities.org/id/metropolitan-district-council/walsall ,30/06/2021,CHILDRENS SERVICES,AMAZON.CO.UK*M44F69M04,16/04/2021,H59620210420NUGQXMCHQ-1,60.00,NEW LEAF PUPIL REFERAL UNIT-MATERIALS,OTHER DIRECT MARKETING-OTHER DIRECT MARKETERS,GPC
WALSALL COUNCIL,http://opendatacommunities.org/id/metropolitan-district-council/walsall ,30/06/2021,RESOURCES AND TRANSFORMATION,JOHAL DAIRIES LTD,16/04/2021,H59620210420OECBCQKIJ-1,70.92,CATERING - SCHOOLS-FOOD & DRINK SUPPLIES,OTHER NONDURABLE GOODS,GPC
WALSALL COUNCIL,http://opendatacommunities.org/id/metropolitan-district-council/walsall ,30/06/2021,RESOURCES AND TRANSFORMATION,JOHAL DAIRIES LTD,16/04/2021,H59620210420OQTLJFJWC-1,70.83,CATERING - SCHOOLS-FOOD & DRINK SUPPLIES,OTHER NONDURABLE GOODS,GPC
WALSALL COUNCIL,http://opendatacommunities.org/id/metropolitan-district-council/walsall ,30/06/2021,RESOURCES AND TRANSFORMATION,JOHAL DAIRIES LTD,16/04/2021,H59620210420OSPFSIJYC-1,36.55,CATERING - SCHOOLS-FOOD & DRINK SUPPLIES,OTHER NONDURABLE GOODS,GPC
WALSALL COUNCIL,http://opendatacommunities.org/id/metropolitan-district-council/walsall ,30/06/2021,CHILDRENS SERVICES,GIFFGAFF,16/04/2021,H59620210420OVCGVKMBU-1,10.00,ADMINISTRATIVE SUPPLIES-MOBILE PHONES,TELECOMMUNICATION SERVICES,GPC
WALSALL COUNCIL,http://opendatacommunities.org/id/metropolitan-district-council/walsall ,30/06/2021,CHILDRENS SERVICES,HOME BARGAINS,16/04/2021,H59620210420PDMUNMSHD-1,25.92,WALSALL WOOD PRIMARY SCHOOL-PERSONAL REQUISITES-MATERIALS,HARDWARE STORES,GPC
WALSALL COUNCIL,http://opendatacommunities.org/id/metropolitan-district-council/walsall ,30/06/2021,RESOURCES AND TRANSFORMATION,JOHAL DAIRIES LTD,16/04/2021,H59620210420PTOUPIGBT-1,34.20,CATERING - SCHOOLS-FOOD & DRINK SUPPLIES,OTHER NONDURABLE GOODS,GPC
WALSALL COUNCIL,http://opendatacommunities.org/id/metropolitan-district-council/walsall ,30/06/2021,ECONOMY & ENVIRONMENT,WILKO RETAIL LIMITED,16/04/2021,H59620210420PUIGIDPQX-1,5.00,LEATHER MUSEUM-MATERIALS,MISCELLANEOUS GENERAL MERCHANDISE,GPC
WALSALL COUNCIL,http://opendatacommunities.org/id/metropolitan-district-council/walsall ,30/06/2021,RESOURCES AND TRANSFORMATION,JOHAL DAIRIES LTD,16/04/2021,H59620210420QKUPKCJOW-1,56.49,CATERING - SCHOOLS-FOOD & DRINK SUPPLIES,OTHER NONDURABLE GOODS,GPC
WALSALL COUNCIL,http://opendatacommunities.org/id/metropolitan-district-council/walsall ,30/06/2021,RESOURCES AND TRANSFORMATION,JOHAL DAIRIES LTD,16/04/2021,H59620210420QPZQNKWKQ-1,5.81,CATERING - SCHOOLS-FOOD & DRINK SUPPLIES,OTHER NONDURABLE GOODS,GPC
WALSALL COUNCIL,http://opendatacommunities.org/id/metropolitan-district-council/walsall ,30/06/2021,RESOURCES AND TRANSFORMATION,JOHAL DAIRIES LTD,16/04/2021,H59620210420RDUOZHDEH-1,15.98,CATERING - SCHOOLS-FOOD & DRINK SUPPLIES,OTHER NONDURABLE GOODS,GPC
WALSALL COUNCIL,http://opendatacommunities.org/id/metropolitan-district-council/walsall ,30/06/2021,ECONOMY & ENVIRONMENT,STRIKE ELECTRICAL DIST,16/04/2021,H59620210420RTRTPTPRA-1,45.00,LEATHER MUSEUM-MATERIALS,HOUSEHOLD APPLIANCE STORES,GPC
WALSALL COUNCIL,http://opendatacommunities.org/id/metropolitan-district-council/walsall ,30/06/2021,RESOURCES AND TRANSFORMATION,JOHAL DAIRIES LTD,16/04/2021,H59620210420SCFUUVDTI-1,26.28,CATERING - SCHOOLS-FOOD & DRINK SUPPLIES,OTHER NONDURABLE GOODS,GPC
WALSALL COUNCIL,http://opendatacommunities.org/id/metropolitan-district-council/walsall ,30/06/2021,CHILDRENS SERVICES,TESCO STORE 3351,16/04/2021,H59620210420SFMYNVAEX-1,13.36,ADOLESCENT SERVICE-FOOD & DRINK SUPPLIES,GROCERY STORES AND SUPERMARKETS,GPC
WALSALL COUNCIL,http://opendatacommunities.org/id/metropolitan-district-council/walsall ,30/06/2021,RESOURCES AND TRANSFORMATION,JOHAL DAIRIES LTD,16/04/2021,H59620210420STFDPIXNG-1,28.93,CATERING - SCHOOLS-FOOD & DRINK SUPPLIES,OTHER NONDURABLE GOODS,GPC
WALSALL COUNCIL,http://opendatacommunities.org/id/metropolitan-district-council/walsall ,30/06/2021,ECONOMY & ENVIRONMENT,CALDMORE TIMBER 09 LTD,16/04/2021,H59620210420TCVHAHSVX-1,33.00,WALSALL ARENA AND ARTS CENTRE-PURCHASE OF FURNITURE & EQUIPM,OTHER INDUSTRIAL SUPPLIES,GPC
WALSALL COUNCIL,http://opendatacommunities.org/id/metropolitan-district-council/walsall ,30/06/2021,ECONOMY & ENVIRONMENT,CALDMORE TIMBER 09 LTD,16/04/2021,H59620210420TCVHAHSVX-2,8.50,WALSALL ARENA AND ARTS CENTRE-POSTAGES & COURIER SERVICES,OTHER INDUSTRIAL SUPPLIES,GPC
WALSALL COUNCIL,http://opendatacommunities.org/id/metropolitan-district-council/walsall ,30/06/2021,RESOURCES AND TRANSFORMATION,JOHAL DAIRIES LTD,16/04/2021,H59620210420TIDGUIQGL-1,17.09,CATERING - SCHOOLS-FOOD & DRINK SUPPLIES,OTHER NONDURABLE GOODS,GPC
WALSALL COUNCIL,http://opendatacommunities.org/id/metropolitan-district-council/walsall ,30/06/2021,RESOURCES AND TRANSFORMATION,POST OFFICE COUNTER,16/04/2021,H59620210420TVDWXPZVH-1,3.43,YEI ESF FUNDING-POSTAGES & COURIER SERVICES,POSTAL SERVICES - GOVERNMENT ONLY,GPC
WALSALL COUNCIL,http://opendatacommunities.org/id/metropolitan-district-council/walsall ,30/06/2021,RESOURCES AND TRANSFORMATION,POST OFFICE COUNTER,16/04/2021,H59620210420TVDWXPZVH-2,3.42,YEI (IMPACT) PROGRAMME-POSTAGES & COURIER SERVICES,POSTAL SERVICES - GOVERNMENT ONLY,GPC
WALSALL COUNCIL,http://opendatacommunities.org/id/metropolitan-district-council/walsall ,30/06/2021,ECONOMY & ENVIRONMENT,DIRECT SUPPLY,16/04/2021,H59620210420UHJLFMWHC-1,47.99,GROUNDS-MATERIALS,MOTOR VEHICLE SUPPLIES AND NEW PARTS,GPC
WALSALL COUNCIL,http://opendatacommunities.org/id/metropolitan-district-council/walsall ,30/06/2021,RESOURCES AND TRANSFORMATION,JOHAL DAIRIES LTD,16/04/2021,H59620210420UMDCJDUUV-1,73.62,CATERING - SCHOOLS-FOOD & DRINK SUPPLIES,OTHER NONDURABLE GOODS,GPC
WALSALL COUNCIL,http://opendatacommunities.org/id/metropolitan-district-council/walsall ,30/06/2021,RESOURCES AND TRANSFORMATION,JOHAL DAIRIES LTD,16/04/2021,H59620210420UOUWRRSWP-1,15.96,CATERING - SCHOOLS-FOOD & DRINK SUPPLIES,OTHER NONDURABLE GOODS,GPC
WALSALL COUNCIL,http://opendatacommunities.org/id/metropolitan-district-council/walsall ,30/06/2021,RESOURCES AND TRANSFORMATION,JOHAL DAIRIES LTD,16/04/2021,H59620210420VHXTSVVND-1,53.10,CATERING - SCHOOLS-FOOD & DRINK SUPPLIES,OTHER NONDURABLE GOODS,GPC
WALSALL COUNCIL,http://opendatacommunities.org/id/metropolitan-district-council/walsall ,30/06/2021,RESOURCES AND TRANSFORMATION,JOHAL DAIRIES LTD,16/04/2021,H59620210420VOGQOYBHK-1,8.87,CATERING - SCHOOLS-FOOD & DRINK SUPPLIES,OTHER NONDURABLE GOODS,GPC
WALSALL COUNCIL,http://opendatacommunities.org/id/metropolitan-district-council/walsall ,30/06/2021,RESOURCES AND TRANSFORMATION,JOHAL DAIRIES LTD,16/04/2021,H59620210420VXELMYTCE-1,1.98,CATERING - SCHOOLS-FOOD & DRINK SUPPLIES,OTHER NONDURABLE GOODS,GPC
WALSALL COUNCIL,http://opendatacommunities.org/id/metropolitan-district-council/walsall ,30/06/2021,CHILDRENS SERVICES,247 CARS WILLENHALL LTD,16/04/2021,H59620210420WCVBXFMEO-1,6.10,SAFEGUARDING & FAMILY SUPPORT-TAXI FARES,TAXI SERVICES,GPC
WALSALL COUNCIL,http://opendatacommunities.org/id/metropolitan-district-council/walsall ,30/06/2021,RESOURCES AND TRANSFORMATION,JOHAL DAIRIES LTD,16/04/2021,H59620210420WLLOJIOJE-1,2.85,CATERING - SCHOOLS-FOOD & DRINK SUPPLIES,OTHER NONDURABLE GOODS,GPC
WALSALL COUNCIL,http://opendatacommunities.org/id/metropolitan-district-council/walsall ,30/06/2021,CHILDRENS SERVICES,TESCO STORE 3351,16/04/2021,H59620210420WNQHSGWOT-1,1.00,ADOLESCENT SERVICE-FOOD & DRINK SUPPLIES,GROCERY STORES AND SUPERMARKETS,GPC
WALSALL COUNCIL,http://opendatacommunities.org/id/metropolitan-district-council/walsall ,30/06/2021,RESOURCES AND TRANSFORMATION,JOHAL DAIRIES LTD,16/04/2021,H59620210420WPWBCHJAO-1,23.76,CATERING - SCHOOLS-FOOD & DRINK SUPPLIES,OTHER NONDURABLE GOODS,GPC
WALSALL COUNCIL,http://opendatacommunities.org/id/metropolitan-district-council/walsall ,30/06/2021,RESOURCES AND TRANSFORMATION,JOHAL DAIRIES LTD,16/04/2021,H59620210420XBEEDXKVZ-1,13.86,CATERING - SCHOOLS-FOOD & DRINK SUPPLIES,OTHER NONDURABLE GOODS,GPC
WALSALL COUNCIL,http://opendatacommunities.org/id/metropolitan-district-council/walsall ,30/06/2021,ECONOMY & ENVIRONMENT,AMZNMKTPLACE,16/04/2021,H59620210420XKZYHVGSO-1,75.87,BLOXWICH ACTIVE LIVING CENTRE-STATIONERY & GENERAL OFFICE SU,MISCELLANEOUS AND SPECIALTY RETAIL STORES,GPC
WALSALL COUNCIL,http://opendatacommunities.org/id/metropolitan-district-council/walsall ,30/06/2021,CHILDRENS SERVICES,247 CARS WILLENHALL LTD,16/04/2021,H59620210420XOLXPGLTK-1,14.60,SAFEGUARDING & FAMILY SUPPORT-TAXI FARES,TAXI SERVICES,GPC
WALSALL COUNCIL,http://opendatacommunities.org/id/metropolitan-district-council/walsall ,30/06/2021,CHILDRENS SERVICES,PREMIER INN 44536475,16/04/2021,H59620210420XWOXUEDHE-1,258.00,SUPPORT UNDER SECT 23 OF THE C-SUPPORT UNDER SECTION 23 OF TH,PREMIER INN,GPC
WALSALL COUNCIL,http://opendatacommunities.org/id/metropolitan-district-council/walsall ,30/06/2021,CHILDRENS SERVICES,GEN REGISTER OFFICE,16/04/2021,H59620210420YUHJLLFPU-1,11.00,LOOKED AFTER CHILDRENS SOCIAL -FEES & LICENCES,GOVERNMENT SERVICES,GPC
WALSALL COUNCIL,http://opendatacommunities.org/id/metropolitan-district-council/walsall ,30/06/2021,RESOURCES AND TRANSFORMATION,POST OFFICE COUNTER,16/04/2021,H59620210420ZLEPMBWNX-1,3.43,YEI ESF FUNDING-POSTAGES & COURIER SERVICES,POSTAL SERVICES - GOVERNMENT ONLY,GPC
WALSALL COUNCIL,http://opendatacommunities.org/id/metropolitan-district-council/walsall ,30/06/2021,RESOURCES AND TRANSFORMATION,POST OFFICE COUNTER,16/04/2021,H59620210420ZLEPMBWNX-2,3.42,YEI (IMPACT) PROGRAMME-POSTAGES & COURIER SERVICES,POSTAL SERVICES - GOVERNMENT ONLY,GPC
WALSALL COUNCIL,http://opendatacommunities.org/id/metropolitan-district-council/walsall ,30/06/2021,CHILDRENS SERVICES,AMAZON.CO.UK*M42FV9MA4,16/04/2021,H59620210420ZLMZXOQVJ-1,58.49,NEW LEAF PUPIL REFERAL UNIT-MATERIALS,OTHER DIRECT MARKETING-OTHER DIRECT MARKETERS,GPC
WALSALL COUNCIL,http://opendatacommunities.org/id/metropolitan-district-council/walsall ,30/06/2021,RESOURCES AND TRANSFORMATION,ARTHUR BRETT CATER,16/04/2021,H59620210420ZVBXZQFYY-1,19.03,CATERING - SCHOOLS-FOOD & DRINK SUPPLIES,MISCELLANEOUS FOOD STORES & CONVENIENCE STORES,GPC
WALSALL COUNCIL,http://opendatacommunities.org/id/metropolitan-district-council/walsall ,30/06/2021,ECONOMY & ENVIRONMENT,AMZNMKTPLACE,16/04/2021,H59620210420ZYCVWRTJY-1,6.85,STREETLY LIBRARY-STATIONERY & GENERAL OFFICE SU,MISCELLANEOUS AND SPECIALTY RETAIL STORES,GPC
WALSALL COUNCIL,http://opendatacommunities.org/id/metropolitan-district-council/walsall ,30/06/2021,CHILDRENS SERVICES,WWW.BRENTGOV.UK,16/04/2021,H59620210421RLDODWHTL-1,-13.50,GENERAL MANAGEMENT SUPPORT (IN-FEES & LICENCES,GOVERNMENT SERVICES,GPC
WALSALL COUNCIL,http://opendatacommunities.org/id/metropolitan-district-council/walsall ,30/06/2021,CHILDRENS SERVICES,WWW.GAME.CO.UK,17/04/2021,H59620210420AERBTPFCR-1,10.00,REDRUTH ROAD-RESIDENTS PERSONAL EXPENSES-AL,"GAME, TOY, AND HOBBY SHOPS",GPC
WALSALL COUNCIL,http://opendatacommunities.org/id/metropolitan-district-council/walsall ,30/06/2021,CHILDRENS SERVICES,B&M 262 - WILLENHALL,17/04/2021,H59620210420CQXJRSRXK-1,27.92,CONTACT SESSIONAL STAFF-PURCHASE OF FURNITURE & EQUIPM,MISCELLANEOUS GENERAL MERCHANDISE,GPC
WALSALL COUNCIL,http://opendatacommunities.org/id/metropolitan-district-council/walsall ,30/06/2021,CHILDRENS SERVICES,ARGOS LTD,17/04/2021,H59620210420INDEGSNXX-1,69.99,REDRUTH ROAD-RESIDENTS PERSONAL EXPENSES-AL,DISCOUNT STORES,GPC
WALSALL COUNCIL,http://opendatacommunities.org/id/metropolitan-district-council/walsall ,30/06/2021,CHILDRENS SERVICES,POST OFFICE COUNTER,17/04/2021,H59620210420IQRMGNSBE-1,15.30,LOOKED AFTER CHILDRENS SOCIAL -POSTAGES & COURIER SERVICES,POSTAL SERVICES - GOVERNMENT ONLY,GPC
WALSALL COUNCIL,http://opendatacommunities.org/id/metropolitan-district-council/walsall ,30/06/2021,RESOURCES AND TRANSFORMATION,HOBBYCRAFT TRADING LIMITE,17/04/2021,H59620210420JCIQAUPVO-1,6.75,YEI ESF FUNDING-MATERIALS,"ARTIST SUPPLY STORES, CRAFT SHOPS",GPC
WALSALL COUNCIL,http://opendatacommunities.org/id/metropolitan-district-council/walsall ,30/06/2021,RESOURCES AND TRANSFORMATION,HOBBYCRAFT TRADING LIMITE,17/04/2021,H59620210420JCIQAUPVO-2,6.75,YEI (IMPACT) PROGRAMME-MATERIALS,"ARTIST SUPPLY STORES, CRAFT SHOPS",GPC
WALSALL COUNCIL,http://opendatacommunities.org/id/metropolitan-district-council/walsall ,30/06/2021,ECONOMY & ENVIRONMENT,WM MORRISONS STORE,17/04/2021,H59620210420JUQVJJSHW-1,19.00,WILLENHALL LIBRARY-STATIONERY & GENERAL OFFICE SU,GROCERY STORES AND SUPERMARKETS,GPC
WALSALL COUNCIL,http://opendatacommunities.org/id/metropolitan-district-council/walsall ,30/06/2021,ECONOMY & ENVIRONMENT,AMZ*AMAZON.CO.UK,17/04/2021,H59620210420NESDIQAMY-1,-16.83,BLOXWICH ACTIVE LIVING CENTRE-STATIONERY & GENERAL OFFICE SU,MISCELLANEOUS AND SPECIALTY RETAIL STORES,GPC
WALSALL COUNCIL,http://opendatacommunities.org/id/metropolitan-district-council/walsall ,30/06/2021,ECONOMY & ENVIRONMENT,SIM-MAYOU HARDWARE,17/04/2021,H59620210420YWCYBHSKE-1,34.00,INFRASTRUCTURE MAINTENANCE-MATERIALS,HARDWARE STORES,GPC
WALSALL COUNCIL,http://opendatacommunities.org/id/metropolitan-district-council/walsall ,30/06/2021,CHILDRENS SERVICES,B&M RETAIL LTD,18/04/2021,H59620210420HRQLVFOMR-1,4.98,TRANSITION AND LEAVING CARE SU-MATERIALS,MISCELLANEOUS GENERAL MERCHANDISE,GPC
WALSALL COUNCIL,http://opendatacommunities.org/id/metropolitan-district-council/walsall ,30/06/2021,RESOURCES AND TRANSFORMATION,AMZNMKTPLACE,18/04/2021,H59620210420LQDNPSFOY-1,93.60,RECHARGEABLE EQUIPMENT-STATIONERY & GENERAL OFFICE SU,MISCELLANEOUS AND SPECIALTY RETAIL STORES,GPC
WALSALL COUNCIL,http://opendatacommunities.org/id/metropolitan-district-council/walsall ,30/06/2021,CHILDRENS SERVICES,WWW.GAME.CO.UK,18/04/2021,H59620210420LZTFRWAFY-1,5.00,REDRUTH ROAD-RESIDENTS PERSONAL EXPENSES-AL,"GAME, TOY, AND HOBBY SHOPS",GPC
WALSALL COUNCIL,http://opendatacommunities.org/id/metropolitan-district-council/walsall ,30/06/2021,CHILDRENS SERVICES,AMAZON.CO.UK*M446E6BO4,18/04/2021,H59620210420PHCCONJWS-1,27.57,"43A HILTON ROAD, WILLENHALL-RESIDENTS PERSONAL EXPENSES-AL",OTHER DIRECT MARKETING-OTHER DIRECT MARKETERS,GPC
WALSALL COUNCIL,http://opendatacommunities.org/id/metropolitan-district-council/walsall ,30/06/2021,CHILDRENS SERVICES,WILKO RETAIL LIMITED,18/04/2021,H59620210420QNBLJBQVK-1,10.25,WALSALL WOOD PRIMARY SCHOOL-PERSONAL REQUISITES-MATERIALS,MISCELLANEOUS GENERAL MERCHANDISE,GPC
WALSALL COUNCIL,http://opendatacommunities.org/id/metropolitan-district-council/walsall ,30/06/2021,CHILDRENS SERVICES,SMYTHSTOYS.COM,18/04/2021,H59620210420TTWNMQKUR-1,59.97,E19-MATERIALS,"GAME, TOY, AND HOBBY SHOPS",GPC
WALSALL COUNCIL,http://opendatacommunities.org/id/metropolitan-district-council/walsall ,30/06/2021,RESOURCES AND TRANSFORMATION,AMZNMKTPLACE,18/04/2021,H59620210420UBSWFRKHY-1,50.40,RECHARGEABLE EQUIPMENT-STATIONERY & GENERAL OFFICE SU,MISCELLANEOUS AND SPECIALTY RETAIL STORES,GPC
WALSALL COUNCIL,http://opendatacommunities.org/id/metropolitan-district-council/walsall ,30/06/2021,CHILDRENS SERVICES,SMYTHSTOYS.COM,18/04/2021,H59620210420VQMJPVAHP-1,59.97,E19-MATERIALS,"GAME, TOY, AND HOBBY SHOPS",GPC
WALSALL COUNCIL,http://opendatacommunities.org/id/metropolitan-district-council/walsall ,30/06/2021,CHILDRENS SERVICES,AMZNMKTPLACE,18/04/2021,H59620210420YXGLYYFHC-1,74.78,E19-MATERIALS,MISCELLANEOUS AND SPECIALTY RETAIL STORES,GPC
WALSALL COUNCIL,http://opendatacommunities.org/id/metropolitan-district-council/walsall ,30/06/2021,CHILDRENS SERVICES,AMZNMKTPLACE,18/04/2021,H59620210420YXGLYYFHC-2,10.49,E19-STATIONERY & GENERAL OFFICE SU,MISCELLANEOUS AND SPECIALTY RETAIL STORES,GPC
WALSALL COUNCIL,http://opendatacommunities.org/id/metropolitan-district-council/walsall ,30/06/2021,CHILDRENS SERVICES,POUNDSTRETCHER 504,19/04/2021,H59620210421AOVWKUIBR-1,26.95,"43A HILTON ROAD, WILLENHALL-RESIDENTS PERSONAL EXPENSES-AL",VARIETY STORES,GPC
WALSALL COUNCIL,http://opendatacommunities.org/id/metropolitan-district-council/walsall ,30/06/2021,CHILDRENS SERVICES,HOTEL AT BOOKING.COM,19/04/2021,H59620210421BCMMJQDTD-1,1596.00,SAFEGUARDING & FAMILY SUPPORT-ACCOMMODATION AND RELATED COST,"HOTELS, MOTELS, RESORTS",GPC
WALSALL COUNCIL,http://opendatacommunities.org/id/metropolitan-district-council/walsall ,30/06/2021,CHILDRENS SERVICES,SAINSBURYS S/MKTS,19/04/2021,H59620210421CRLEHBYYJ-1,7.20,MARY ELLIOTT SCHOOL-FOOD & DRINK SUPPLIES,GROCERY STORES AND SUPERMARKETS,GPC
WALSALL COUNCIL,http://opendatacommunities.org/id/metropolitan-district-council/walsall ,30/06/2021,ECONOMY & ENVIRONMENT,TOOLSTATION LTD,19/04/2021,H59620210421CUGIFOWLY-1,25.50,NAG - MAINTENANCE-MATERIALS,LUMBER & BUILDING MATERIALS STORES,GPC
WALSALL COUNCIL,http://opendatacommunities.org/id/metropolitan-district-council/walsall ,30/06/2021,ECONOMY & ENVIRONMENT,TOOLSTATION LTD,19/04/2021,H59620210421CUPXWETFQ-1,8.74,INFRASTRUCTURE MAINTENANCE-MATERIALS,LUMBER & BUILDING MATERIALS STORES,GPC
WALSALL COUNCIL,http://opendatacommunities.org/id/metropolitan-district-council/walsall ,30/06/2021,CHILDRENS SERVICES,PAYPAL *SAVEMYEXAMS,19/04/2021,H59620210421DJCYPLRFE-1,60.00,LITERACY-SUBSCRIPTIONS,"SCHOOLS, ELEMENTARY AND SECONDARY",GPC
WALSALL COUNCIL,http://opendatacommunities.org/id/metropolitan-district-council/walsall ,30/06/2021,CHILDRENS SERVICES,ALLPAY *LONGHURST GROUP,19/04/2021,H59620210421DOCHUOYHK-1,393.60,HOMELESSNESS PREVENTION STRATE-FEES & LICENCES,"ORGANIZATIONS, CHARITABLE AND SOCIAL SERVICE",GPC
WALSALL COUNCIL,http://opendatacommunities.org/id/metropolitan-district-council/walsall ,30/06/2021,CHILDRENS SERVICES,AMZNMKTPLACE,19/04/2021,H59620210421EEFCRAPME-1,21.58,PUPIL PREMIUM-MATERIALS,MISCELLANEOUS AND SPECIALTY RETAIL STORES,GPC
WALSALL COUNCIL,http://opendatacommunities.org/id/metropolitan-district-council/walsall ,30/06/2021,CHILDRENS SERVICES,WWW.WMCA.ORG.UK,19/04/2021,H59620210421ERSLACLGH-1,34.50,VIRTUAL SCHOOL - CENTRAL PUPIL-OTHER EXPENSES,LOCAL AND SUBURBAN COMMUTER TRANSPORTATION,GPC
WALSALL COUNCIL,http://opendatacommunities.org/id/metropolitan-district-council/walsall ,30/06/2021,ECONOMY & ENVIRONMENT,WWW.BANNERUK.COM,19/04/2021,H59620210421EUFXMDOVO-1,21.15,LIBRARY OPERATIONS CENTRAL-STATIONERY & GENERAL OFFICE SU,"STATIONERY, OFFICE SUPPLIES AND WRITING PAPER",GPC
WALSALL COUNCIL,http://opendatacommunities.org/id/metropolitan-district-council/walsall ,30/06/2021,CHILDRENS SERVICES,ASDA STORES,19/04/2021,H59620210421FIMRFDNQP-1,2.90,NEW LEAF PUPIL REFERAL UNIT-FOOD & DRINK SUPPLIES,GROCERY STORES AND SUPERMARKETS,GPC
WALSALL COUNCIL,http://opendatacommunities.org/id/metropolitan-district-council/walsall ,30/06/2021,CHILDRENS SERVICES,TESCO STORES 6161,19/04/2021,H59620210421FLJENXJPZ-1,2.70,FOOD TECHNOLOGY/HOSPITALITY-MATERIALS,GROCERY STORES AND SUPERMARKETS,GPC
WALSALL COUNCIL,http://opendatacommunities.org/id/metropolitan-district-council/walsall ,30/06/2021,CHILDRENS SERVICES,TESCO STORES 6161,19/04/2021,H59620210421FLJENXJPZ-2,20.00,FOOD TECHNOLOGY/HOSPITALITY-MATERIALS,GROCERY STORES AND SUPERMARKETS,GPC
WALSALL COUNCIL,http://opendatacommunities.org/id/metropolitan-district-council/walsall ,30/06/2021,CHILDRENS SERVICES,AMZNMKTPLACE,19/04/2021,H59620210421FPBCBQETO-1,24.99,NEW LEAF PUPIL REFERAL UNIT-MATERIALS,MISCELLANEOUS AND SPECIALTY RETAIL STORES,GPC
WALSALL COUNCIL,http://opendatacommunities.org/id/metropolitan-district-council/walsall ,30/06/2021,CHILDRENS SERVICES,WALSALL COUNCIL,19/04/2021,H59620210421GDCMUZMJK-1,42.22,ST JOHNS C.E. PRIMARY SCHOOL-POLICE CHECKS,GOVERNMENT SERVICES,GPC
WALSALL COUNCIL,http://opendatacommunities.org/id/metropolitan-district-council/walsall ,30/06/2021,RESOURCES AND TRANSFORMATION,BLAKEMORE FOODSERVICE,19/04/2021,H59620210421HHVHNFQSO-1,774.22,CATERING - SCHOOLS-FOOD & DRINK SUPPLIES,CATERERS,GPC
WALSALL COUNCIL,http://opendatacommunities.org/id/metropolitan-district-council/walsall ,30/06/2021,RESOURCES AND TRANSFORMATION,BLAKEMORE FOODSERVICE,19/04/2021,H59620210421HHVHNFQSO-2,4.27,CATERING - MANAGEMENT-FOOD & DRINK SUPPLIES,CATERERS,GPC
WALSALL COUNCIL,http://opendatacommunities.org/id/metropolitan-district-council/walsall ,30/06/2021,ECONOMY & ENVIRONMENT,WILKO RETAIL LIMITED,19/04/2021,H59620210421IXWJVFJRO-1,10.00,LEATHER MUSEUM-MATERIALS,MISCELLANEOUS GENERAL MERCHANDISE,GPC
WALSALL COUNCIL,http://opendatacommunities.org/id/metropolitan-district-council/walsall ,30/06/2021,RESOURCES AND TRANSFORMATION,BLAKEMORE FOODSERVICE,19/04/2021,H59620210421JDUHOCWQD-1,547.36,CATERING - SCHOOLS-FOOD & DRINK SUPPLIES,CATERERS,GPC
WALSALL COUNCIL,http://opendatacommunities.org/id/metropolitan-district-council/walsall ,30/06/2021,CHILDRENS SERVICES,CURRYS ONLINE,19/04/2021,H59620210421JTUQWOZRD-1,494.00,VIRTUAL SCHOOL - CENTRAL PUPIL-COMPUTER EQUIPMENT,ELECTRONIC SALES,GPC
WALSALL COUNCIL,http://opendatacommunities.org/id/metropolitan-district-council/walsall ,30/06/2021,CHILDRENS SERVICES,AMZNMKTPLACE,19/04/2021,H59620210421JXBGLRCQU-1,17.98,INITIAL RESPONSE SERVICE TEAM -PURCHASE OF FURNITURE & EQUIPM,MISCELLANEOUS AND SPECIALTY RETAIL STORES,GPC
WALSALL COUNCIL,http://opendatacommunities.org/id/metropolitan-district-council/walsall ,30/06/2021,ECONOMY & ENVIRONMENT,AMZNMKTPLACE,19/04/2021,H59620210421KQHHEEEHK-1,24.86,REGISTRAR-STATIONERY & GENERAL OFFICE SU,MISCELLANEOUS AND SPECIALTY RETAIL STORES,GPC
WALSALL COUNCIL,http://opendatacommunities.org/id/metropolitan-district-council/walsall ,30/06/2021,ADULT SOCIAL CARE,WWW.BANNERUK.COM,19/04/2021,H59620210421LAECKBTYN-1,73.10,GOSCOTE-STATIONERY & GENERAL OFFICE SU,"STATIONERY, OFFICE SUPPLIES AND WRITING PAPER",GPC
WALSALL COUNCIL,http://opendatacommunities.org/id/metropolitan-district-council/walsall ,30/06/2021,CHILDRENS SERVICES,PAYPAL *SUNDEALALTD,19/04/2021,H59620210421LHSCVRBWJ-1,72.00,ST FRANCIS OF ASSISI CATHOLIC -OPERATIONAL MAINTENANCE,OTHER DURABLE GOODS,GPC
WALSALL COUNCIL,http://opendatacommunities.org/id/metropolitan-district-council/walsall ,30/06/2021,CHILDRENS SERVICES,AMZNMKTPLACE,19/04/2021,H59620210421LLVFFTOKE-1,8.15,ADMINISTRATIVE SUPPLIES-MATERIALS,MISCELLANEOUS AND SPECIALTY RETAIL STORES,GPC
WALSALL COUNCIL,http://opendatacommunities.org/id/metropolitan-district-council/walsall ,30/06/2021,CHILDRENS SERVICES,ASDA SUPERSTORE,19/04/2021,H59620210421LTWPVHILE-1,14.00,ADOLESCENT SERVICE-OTHER EXPENSES,GROCERY STORES AND SUPERMARKETS,GPC
WALSALL COUNCIL,http://opendatacommunities.org/id/metropolitan-district-council/walsall ,30/06/2021,CHILDRENS SERVICES,AMZNMKTPLACE,19/04/2021,H59620210421MBCCLDKTU-1,66.05,E19-MATERIALS,MISCELLANEOUS AND SPECIALTY RETAIL STORES,GPC
WALSALL COUNCIL,http://opendatacommunities.org/id/metropolitan-district-council/walsall ,30/06/2021,CHILDRENS SERVICES,ASDA GROCERIES ONLINE,19/04/2021,H59620210421MCJKWENVJ-1,45.79,BREAKFAST CLUB-MATERIALS,GROCERY STORES AND SUPERMARKETS,GPC
WALSALL COUNCIL,http://opendatacommunities.org/id/metropolitan-district-council/walsall ,30/06/2021,CHILDRENS SERVICES,WM MORRISONS STORE,19/04/2021,H59620210421MJGKCMGJX-1,4.00,ADOLESCENT SERVICE-FOOD & DRINK SUPPLIES,GROCERY STORES AND SUPERMARKETS,GPC
WALSALL COUNCIL,http://opendatacommunities.org/id/metropolitan-district-council/walsall ,30/06/2021,RESOURCES AND TRANSFORMATION,ASDA SUPERSTORE,19/04/2021,H59620210421MOOBNXRJY-1,25.00,CATERING - SCHOOLS-FOOD & DRINK SUPPLIES,GROCERY STORES AND SUPERMARKETS,GPC
WALSALL COUNCIL,http://opendatacommunities.org/id/metropolitan-district-council/walsall ,30/06/2021,ECONOMY & ENVIRONMENT,B & Q 1276,19/04/2021,H59620210421NFEZUUQUX-1,45.38,WALSALL OUTDOOR PURSUITS-OPERATIONAL MAINTENANCE,HOME SUPPLY WAREHOUSE STORES,GPC
WALSALL COUNCIL,http://opendatacommunities.org/id/metropolitan-district-council/walsall ,30/06/2021,CHILDRENS SERVICES,ASDA SUPERSTORE,19/04/2021,H59620210421NSHUSDNHP-1,16.00,REDRUTH ROAD-PURCHASE OF FURNITURE & EQUIPM,GROCERY STORES AND SUPERMARKETS,GPC
WALSALL COUNCIL,http://opendatacommunities.org/id/metropolitan-district-council/walsall ,30/06/2021,ECONOMY & ENVIRONMENT,WWW.MEDSCOPE.CO.UK,19/04/2021,H59620210421NYQZHUEBG-1,188.89,WALSALL ARENA AND ARTS CENTRE-CLEANING MATERIALS,DENTAL/LABORATORY/MEDICAL EQUIPMENT & SUPPLIES,GPC
WALSALL COUNCIL,http://opendatacommunities.org/id/metropolitan-district-council/walsall ,30/06/2021,ADULT SOCIAL CARE,WWW.BANNERUK.COM,19/04/2021,H59620210421NYTKJKARI-1,218.78,GOSCOTE-STATIONERY & GENERAL OFFICE SU,"STATIONERY, OFFICE SUPPLIES AND WRITING PAPER",GPC
WALSALL COUNCIL,http://opendatacommunities.org/id/metropolitan-district-council/walsall ,30/06/2021,CHILDRENS SERVICES,AMZNMKTPLACE,19/04/2021,H59620210421OGZWELJTB-1,29.80,PUPIL PREMIUM-MATERIALS,MISCELLANEOUS AND SPECIALTY RETAIL STORES,GPC
WALSALL COUNCIL,http://opendatacommunities.org/id/metropolitan-district-council/walsall ,30/06/2021,RESOURCES AND TRANSFORMATION,FACEBK 7BRNLZAA42,19/04/2021,H59620210421OWJOJOJVO-1,6.09,YEI ESF FUNDING-PUBLICITY & ADVERTISING (NON S,ADVERTISING SERVICES,GPC
WALSALL COUNCIL,http://opendatacommunities.org/id/metropolitan-district-council/walsall ,30/06/2021,RESOURCES AND TRANSFORMATION,FACEBK 7BRNLZAA42,19/04/2021,H59620210421OWJOJOJVO-2,6.09,YEI (IMPACT) PROGRAMME-PUBLICITY & ADVERTISING (NON S,ADVERTISING SERVICES,GPC
WALSALL COUNCIL,http://opendatacommunities.org/id/metropolitan-district-council/walsall ,30/06/2021,RESOURCES AND TRANSFORMATION,BLAKEMORE FOODSERVICE,19/04/2021,H59620210421PKKXDVWFJ-1,-547.04,CATERING - SCHOOLS-FOOD & DRINK SUPPLIES,CATERERS,GPC
WALSALL COUNCIL,http://opendatacommunities.org/id/metropolitan-district-council/walsall ,30/06/2021,CHILDRENS SERVICES,WALSALL COUNCIL,19/04/2021,H59620210421PVYCLFRXR-1,42.22,ST FRANCIS OF ASSISI CATHOLIC -POLICE CHECKS,GOVERNMENT SERVICES,GPC
WALSALL COUNCIL,http://opendatacommunities.org/id/metropolitan-district-council/walsall ,30/06/2021,RESOURCES AND TRANSFORMATION,WALSALL COUNCIL,19/04/2021,H59620210421PXYPQAWMI-1,39.00,CHARGING & PAYMENTS-FEES & LICENCES,GOVERNMENT SERVICES,GPC
WALSALL COUNCIL,http://opendatacommunities.org/id/metropolitan-district-council/walsall ,30/06/2021,CHILDRENS SERVICES,AMZNMKTPLACE,19/04/2021,H59620210421QDECIRLKN-1,107.96,CHUCKERY PRIMARY SCHOOL-GROUNDS MAINTENANCE,MISCELLANEOUS AND SPECIALTY RETAIL STORES,GPC
WALSALL COUNCIL,http://opendatacommunities.org/id/metropolitan-district-council/walsall ,30/06/2021,ECONOMY & ENVIRONMENT,WWW.TROPICANAFITNESS.C,19/04/2021,H59620210421QQOAUUOSP-1,125.37,OAK PARK ACTIVE LIVING CENTRE-FOOD & DRINK SUPPLIES,MISCELLANEOUS FOOD STORES & CONVENIENCE STORES,GPC
WALSALL COUNCIL,http://opendatacommunities.org/id/metropolitan-district-council/walsall ,30/06/2021,CHILDRENS SERVICES,W M MORRISONS.COM,19/04/2021,H59620210421QSQCUUIWH-1,17.52,PELSALL VILLAGE SCHOOL-FOOD & DRINK SUPPLIES,GROCERY STORES AND SUPERMARKETS,GPC
WALSALL COUNCIL,http://opendatacommunities.org/id/metropolitan-district-council/walsall ,30/06/2021,CHILDRENS SERVICES,W M MORRISONS.COM,19/04/2021,H59620210421QSQCUUIWH-2,48.88,PELSALL VILLAGE SCHOOL-FOOD & DRINK SUPPLIES,GROCERY STORES AND SUPERMARKETS,GPC
WALSALL COUNCIL,http://opendatacommunities.org/id/metropolitan-district-council/walsall ,30/06/2021,ECONOMY & ENVIRONMENT,PP*GLMS,19/04/2021,H59620210421RHUICOHNZ-1,192.00,"NAG - MAINTENANCE-LEASING, HIRE & RENTAL OF EQUI","AUTOMOTIVE PARTS, ACCESSORIES STORES",GPC
WALSALL COUNCIL,http://opendatacommunities.org/id/metropolitan-district-council/walsall ,30/06/2021,CHILDRENS SERVICES,ASDA GROCERIES ONLINE,19/04/2021,H59620210421RWXXCILJI-1,-7.75,BREAKFAST CLUB-MATERIALS,GROCERY STORES AND SUPERMARKETS,GPC
WALSALL COUNCIL,http://opendatacommunities.org/id/metropolitan-district-council/walsall ,30/06/2021,RESOURCES AND TRANSFORMATION,BLAKEMORE FOODSERVICE,19/04/2021,H59620210421SLHKHMWGC-1,20.22,CATERING - SCHOOLS-FOOD & DRINK SUPPLIES,CATERERS,GPC
WALSALL COUNCIL,http://opendatacommunities.org/id/metropolitan-district-council/walsall ,30/06/2021,CHILDRENS SERVICES,ASDA SUPERSTORE,19/04/2021,H59620210421TRWKCESEI-1,1.59,REDRUTH ROAD-FOOD & DRINK SUPPLIES,GROCERY STORES AND SUPERMARKETS,GPC
WALSALL COUNCIL,http://opendatacommunities.org/id/metropolitan-district-council/walsall ,30/06/2021,CHILDRENS SERVICES,ASDA SUPERSTORE,19/04/2021,H59620210421TRWKCESEI-2,32.21,REDRUTH ROAD-FOOD & DRINK SUPPLIES,GROCERY STORES AND SUPERMARKETS,GPC
WALSALL COUNCIL,http://opendatacommunities.org/id/metropolitan-district-council/walsall ,30/06/2021,CHILDRENS SERVICES,WINDMILL SPECIAL NEEDS,19/04/2021,H59620210421TTIUSFEQX-1,777.00,FAMILY PLACEMENTS-PROFESSIONAL FEES & SERVICES,"HEALTH PRACTITIONERS, MEDICAL SERVICES",GPC
WALSALL COUNCIL,http://opendatacommunities.org/id/metropolitan-district-council/walsall ,30/06/2021,CHILDRENS SERVICES,WINDMILL SPECIAL NEEDS,19/04/2021,H59620210421TTIUSFEQX-2,54.00,FAMILY PLACEMENTS-PROFESSIONAL FEES & SERVICES,"HEALTH PRACTITIONERS, MEDICAL SERVICES",GPC
WALSALL COUNCIL,http://opendatacommunities.org/id/metropolitan-district-council/walsall ,30/06/2021,CHILDRENS SERVICES,B & Q 1276,19/04/2021,H59620210421UDCVAQACC-1,74.98,"43A HILTON ROAD, WILLENHALL-PURCHASE OF FURNITURE & EQUIPM",HOME SUPPLY WAREHOUSE STORES,GPC
WALSALL COUNCIL,http://opendatacommunities.org/id/metropolitan-district-council/walsall ,30/06/2021,CHILDRENS SERVICES,AMZNMKTPLACE,19/04/2021,H59620210421UHTKDNHYV-1,37.48,E19-MATERIALS,MISCELLANEOUS AND SPECIALTY RETAIL STORES,GPC
WALSALL COUNCIL,http://opendatacommunities.org/id/metropolitan-district-council/walsall ,30/06/2021,CHILDRENS SERVICES,WILKO RETAIL LIMITED,19/04/2021,H59620210421UICYGYGOL-1,24.00,"43A HILTON ROAD, WILLENHALL-RESIDENTS PERSONAL EXPENSES-AL",MISCELLANEOUS GENERAL MERCHANDISE,GPC
WALSALL COUNCIL,http://opendatacommunities.org/id/metropolitan-district-council/walsall ,30/06/2021,CHILDRENS SERVICES,WHSMITH.CO.UK,19/04/2021,H59620210421VIDAOOQOO-1,135.99,LITERACY-LIBRARY BOOKS,"OFFICE, SCHOOL SUPPLY, AND STATIONERY STORES",GPC
WALSALL COUNCIL,http://opendatacommunities.org/id/metropolitan-district-council/walsall ,30/06/2021,CHILDRENS SERVICES,W M MORRISONS.COM,19/04/2021,H59620210421WLBTOFNIJ-1,11.28,COMMUNITY FOCUSED EXTENDED SCH-MATERIALS,GROCERY STORES AND SUPERMARKETS,GPC
WALSALL COUNCIL,http://opendatacommunities.org/id/metropolitan-district-council/walsall ,30/06/2021,CHILDRENS SERVICES,W M MORRISONS.COM,19/04/2021,H59620210421WLBTOFNIJ-2,39.43,COMMUNITY FOCUSED EXTENDED SCH-MATERIALS,GROCERY STORES AND SUPERMARKETS,GPC
WALSALL COUNCIL,http://opendatacommunities.org/id/metropolitan-district-council/walsall ,30/06/2021,CHILDRENS SERVICES,W M MORRISONS.COM,19/04/2021,H59620210421WLBTOFNIJ-3,7.47,NURTURE GROUP-MATERIALS,GROCERY STORES AND SUPERMARKETS,GPC
WALSALL COUNCIL,http://opendatacommunities.org/id/metropolitan-district-council/walsall ,30/06/2021,CHILDRENS SERVICES,ALDI 42 772,19/04/2021,H59620210421XDCKOXXUC-1,7.49,REDRUTH ROAD-FOOD & DRINK SUPPLIES,GROCERY STORES AND SUPERMARKETS,GPC
WALSALL COUNCIL,http://opendatacommunities.org/id/metropolitan-district-council/walsall ,30/06/2021,CHILDRENS SERVICES,ALDI 42 772,19/04/2021,H59620210421XDCKOXXUC-2,91.24,REDRUTH ROAD-FOOD & DRINK SUPPLIES,GROCERY STORES AND SUPERMARKETS,GPC
WALSALL COUNCIL,http://opendatacommunities.org/id/metropolitan-district-council/walsall ,30/06/2021,RESOURCES AND TRANSFORMATION,BLAKEMORE FOODSERVICE,19/04/2021,H59620210421YANLEXUZL-1,66.22,CATERING - SCHOOLS-FOOD & DRINK SUPPLIES,CATERERS,GPC
WALSALL COUNCIL,http://opendatacommunities.org/id/metropolitan-district-council/walsall ,30/06/2021,RESOURCES AND TRANSFORMATION,ALDI 772 129,19/04/2021,H59620210421YKMJJYGFU-1,2.09,CATERING - SCHOOLS-OTHER EXPENSES,GROCERY STORES AND SUPERMARKETS,GPC
WALSALL COUNCIL,http://opendatacommunities.org/id/metropolitan-district-council/walsall ,30/06/2021,CHILDRENS SERVICES,ESKY ESKYUK,19/04/2021,H59620210421YVXIFQWDM-1,683.66,SAFEGUARDING & FAMILY SUPPORT-OTHER TRAVEL ALLOWANCES,TRAVEL AGENCIES AND TOUR OPERATORS,GPC
WALSALL COUNCIL,http://opendatacommunities.org/id/metropolitan-district-council/walsall ,30/06/2021,ECONOMY & ENVIRONMENT,PREMIER INN44533745,19/04/2021,H59620210422LVPLMZIYC-1,39.00,NAG - TEMPORARY EXHIBITIONS-HOTEL ACCOMMODATION-EMPLOYEES,PREMIER INN,GPC
WALSALL COUNCIL,http://opendatacommunities.org/id/metropolitan-district-council/walsall ,30/06/2021,ECONOMY & ENVIRONMENT,PREMIER INN44533745,19/04/2021,H59620210422VLTUERQRR-1,39.00,NAG - TEMPORARY EXHIBITIONS-HOTEL ACCOMMODATION-EMPLOYEES,PREMIER INN,GPC
WALSALL COUNCIL,http://opendatacommunities.org/id/metropolitan-district-council/walsall ,30/06/2021,RESOURCES AND TRANSFORMATION,WWW.SCC.COM,19/04/2021,H59620210423TNBSYWLQH-1,410.92,RECHARGEABLE EQUIPMENT-COMPUTER EQUIPMENT,"COMPUTERS, COMPUTER PERIPHERAL EQUIPMENT, SOFTWARE",GPC
WALSALL COUNCIL,http://opendatacommunities.org/id/metropolitan-district-council/walsall ,30/06/2021,ECONOMY & ENVIRONMENT,POST OFFICE COUNTER,20/04/2021,H59620210422BDSUGMWJO-1,34.78,NAG - TEMPORARY EXHIBITIONS-POSTAGES & COURIER SERVICES,POSTAL SERVICES - GOVERNMENT ONLY,GPC
WALSALL COUNCIL,http://opendatacommunities.org/id/metropolitan-district-council/walsall ,30/06/2021,RESOURCES AND TRANSFORMATION,ARTHUR BRETT CATER,20/04/2021,H59620210422BDTXVFCLW-1,64.00,CATERING - SCHOOLS-FOOD & DRINK SUPPLIES,MISCELLANEOUS FOOD STORES & CONVENIENCE STORES,GPC
WALSALL COUNCIL,http://opendatacommunities.org/id/metropolitan-district-council/walsall ,30/06/2021,RESOURCES AND TRANSFORMATION,ARTHUR BRETT CATER,20/04/2021,H59620210422BGPFJVSPC-1,23.60,CATERING - SCHOOLS-FOOD & DRINK SUPPLIES,MISCELLANEOUS FOOD STORES & CONVENIENCE STORES,GPC
WALSALL COUNCIL,http://opendatacommunities.org/id/metropolitan-district-council/walsall ,30/06/2021,CHILDRENS SERVICES,THE HORSE JUMP COMPANY,20/04/2021,H59620210422BJQDLITBJ-1,273.60,ICT LEARNING RESOURCES-PURCHASE OF FURNITURE & EQUIPM,SPORTING GOODS STORES,GPC
WALSALL COUNCIL,http://opendatacommunities.org/id/metropolitan-district-council/walsall ,30/06/2021,CHILDRENS SERVICES,C.E.F. (ALDRIDGE),20/04/2021,H59620210422BUVNVNARB-1,54.72,OAKWOOD SCHOOL-OPERATIONAL MAINTENANCE,LUMBER & BUILDING MATERIALS STORES,GPC
WALSALL COUNCIL,http://opendatacommunities.org/id/metropolitan-district-council/walsall ,30/06/2021,CHILDRENS SERVICES,POST OFFICE COUNTER,20/04/2021,H59620210422BYHGBGKMM-1,283.00,CHILDREN'S COMMISSIONING-POSTAGES & COURIER SERVICES,POSTAL SERVICES - GOVERNMENT ONLY,GPC
WALSALL COUNCIL,http://opendatacommunities.org/id/metropolitan-district-council/walsall ,30/06/2021,ADULT SOCIAL CARE,AMZNMKTPLACE,20/04/2021,H59620210422CCLDVHNMX-1,41.56,GOSCOTE-STATIONERY & GENERAL OFFICE SU,MISCELLANEOUS AND SPECIALTY RETAIL STORES,GPC
WALSALL COUNCIL,http://opendatacommunities.org/id/metropolitan-district-council/walsall ,30/06/2021,ECONOMY & ENVIRONMENT,DVLA VEHICLE TAX,20/04/2021,H59620210422CGNECDGNS-1,142.50,FLEET-LICENCES FOR VEHICLES,TAX PAYMENTS,GPC
WALSALL COUNCIL,http://opendatacommunities.org/id/metropolitan-district-council/walsall ,30/06/2021,ECONOMY & ENVIRONMENT,DVLA VEHICLE TAX,20/04/2021,H59620210422CVGMHJTEC-1,277.50,FLEET-LICENCES FOR VEHICLES,TAX PAYMENTS,GPC
WALSALL COUNCIL,http://opendatacommunities.org/id/metropolitan-district-council/walsall ,30/06/2021,RESOURCES AND TRANSFORMATION,ARTHUR BRETT CATER,20/04/2021,H59620210422DBYDMSRPL-1,25.86,CATERING - SCHOOLS-FOOD & DRINK SUPPLIES,MISCELLANEOUS FOOD STORES & CONVENIENCE STORES,GPC
WALSALL COUNCIL,http://opendatacommunities.org/id/metropolitan-district-council/walsall ,30/06/2021,RESOURCES AND TRANSFORMATION,NOBISCO LIMITED,20/04/2021,H59620210422DFKJUUEQC-1,99.50,CATERING - SCHOOLS-FOOD & DRINK SUPPLIES,OTHER INDUSTRIAL SUPPLIES,GPC
WALSALL COUNCIL,http://opendatacommunities.org/id/metropolitan-district-council/walsall ,30/06/2021,CHILDRENS SERVICES,AMAZON.CO.UK*M49IW9644,20/04/2021,H59620210422DGLPUKNJK-1,29.98,TRADED WORKFORCE DEVELOPMENT-STATIONERY & GENERAL OFFICE SU,OTHER DIRECT MARKETING-OTHER DIRECT MARKETERS,GPC
WALSALL COUNCIL,http://opendatacommunities.org/id/metropolitan-district-council/walsall ,30/06/2021,CHILDRENS SERVICES,WWW.PARENTMAIL.CO.,20/04/2021,H59620210422DLTHRNPNF-1,15.00,REDRUTH ROAD-FOOD & DRINK SUPPLIES,OTHER SCHOOLS AND EDUCATIONAL SERVICES,GPC
WALSALL COUNCIL,http://opendatacommunities.org/id/metropolitan-district-council/walsall ,30/06/2021,CHILDRENS SERVICES,WWW.GREENSTAT.CO.UK,20/04/2021,H59620210422DRGYCZWTO-1,60.73,ADMINISTRATIVE SUPPLIES-STATIONERY & GENERAL OFFICE SU,"OFFICE, SCHOOL SUPPLY, AND STATIONERY STORES",GPC
WALSALL COUNCIL,http://opendatacommunities.org/id/metropolitan-district-council/walsall ,30/06/2021,RESOURCES AND TRANSFORMATION,ARTHUR BRETT CATER,20/04/2021,H59620210422DWVCJGKYC-1,41.43,CATERING - SCHOOLS-FOOD & DRINK SUPPLIES,MISCELLANEOUS FOOD STORES & CONVENIENCE STORES,GPC
WALSALL COUNCIL,http://opendatacommunities.org/id/metropolitan-district-council/walsall ,30/06/2021,CHILDRENS SERVICES,CITY OF WOLVERHAMPTON,20/04/2021,H59620210422DXTSVDIAB-1,16.00,SAFEGUARDING & FAMILY SUPPORT-FEES & LICENCES,GOVERNMENT SERVICES,GPC
WALSALL COUNCIL,http://opendatacommunities.org/id/metropolitan-district-council/walsall ,30/06/2021,RESOURCES AND TRANSFORMATION,ARTHUR BRETT CATER,20/04/2021,H59620210422EAJMGHHQS-1,103.12,CATERING - SCHOOLS-FOOD & DRINK SUPPLIES,MISCELLANEOUS FOOD STORES & CONVENIENCE STORES,GPC
WALSALL COUNCIL,http://opendatacommunities.org/id/metropolitan-district-council/walsall ,30/06/2021,RESOURCES AND TRANSFORMATION,ARTHUR BRETT CATER,20/04/2021,H59620210422EDYUJUHNG-1,69.60,CATERING - SCHOOLS-FOOD & DRINK SUPPLIES,MISCELLANEOUS FOOD STORES & CONVENIENCE STORES,GPC
WALSALL COUNCIL,http://opendatacommunities.org/id/metropolitan-district-council/walsall ,30/06/2021,ECONOMY & ENVIRONMENT,DTR HYGIENE LTD,20/04/2021,H59620210422ELIQDYJII-1,121.80,BLOXWICH LIBRARY-PURCHASE OF FURNITURE & EQUIPM,"SPECIALTY CLEANING, POLISHING, AND SANITATION",GPC
WALSALL COUNCIL,http://opendatacommunities.org/id/metropolitan-district-council/walsall ,30/06/2021,RESOURCES AND TRANSFORMATION,ARTHUR BRETT CATER,20/04/2021,H59620210422EMEFACPLD-1,22.56,CATERING - SCHOOLS-FOOD & DRINK SUPPLIES,MISCELLANEOUS FOOD STORES & CONVENIENCE STORES,GPC
WALSALL COUNCIL,http://opendatacommunities.org/id/metropolitan-district-council/walsall ,30/06/2021,CHILDRENS SERVICES,G A NICHOLAS,20/04/2021,H59620210422EVGQFZZOE-1,76.80,ROSEDALE C.E. PRIMARY SCHOOL-CLEANING MATERIALS,ELECTRICAL PARTS AND EQUIPMENT,GPC
WALSALL COUNCIL,http://opendatacommunities.org/id/metropolitan-district-council/walsall ,30/06/2021,CHILDRENS SERVICES,ALDI 772 129,20/04/2021,H59620210422FFHCRJKGH-1,10.81,"43A HILTON ROAD, WILLENHALL-FOOD & DRINK SUPPLIES",GROCERY STORES AND SUPERMARKETS,GPC
WALSALL COUNCIL,http://opendatacommunities.org/id/metropolitan-district-council/walsall ,30/06/2021,RESOURCES AND TRANSFORMATION,ARTHUR BRETT CATER,20/04/2021,H59620210422FHZUJTGVR-1,67.53,CATERING - SCHOOLS-FOOD & DRINK SUPPLIES,MISCELLANEOUS FOOD STORES & CONVENIENCE STORES,GPC
WALSALL COUNCIL,http://opendatacommunities.org/id/metropolitan-district-council/walsall ,30/06/2021,RESOURCES AND TRANSFORMATION,ARTHUR BRETT CATER,20/04/2021,H59620210422FLRBCJHDZ-1,26.32,CATERING - SCHOOLS-FOOD & DRINK SUPPLIES,MISCELLANEOUS FOOD STORES & CONVENIENCE STORES,GPC
WALSALL COUNCIL,http://opendatacommunities.org/id/metropolitan-district-council/walsall ,30/06/2021,ECONOMY & ENVIRONMENT,SCREWFIX DIRECT,20/04/2021,H59620210422FNLUQOLGK-1,123.40,DEPOT-MATERIALS,LUMBER & BUILDING MATERIALS STORES,GPC
WALSALL COUNCIL,http://opendatacommunities.org/id/metropolitan-district-council/walsall ,30/06/2021,RESOURCES AND TRANSFORMATION,ARTHUR BRETT CATER,20/04/2021,H59620210422FVIKCEWJL-1,19.87,CATERING - SCHOOLS-FOOD & DRINK SUPPLIES,MISCELLANEOUS FOOD STORES & CONVENIENCE STORES,GPC
WALSALL COUNCIL,http://opendatacommunities.org/id/metropolitan-district-council/walsall ,30/06/2021,ECONOMY & ENVIRONMENT,DVLA VEHICLE TAX,20/04/2021,H59620210422FXHKNHHWG-1,107.50,FLEET-LICENCES FOR VEHICLES,TAX PAYMENTS,GPC
WALSALL COUNCIL,http://opendatacommunities.org/id/metropolitan-district-council/walsall ,30/06/2021,CHILDRENS SERVICES,AMZNMKTPLACE,20/04/2021,H59620210422GLYLEWIUM-1,21.43,E19-LIBRARY BOOKS,MISCELLANEOUS AND SPECIALTY RETAIL STORES,GPC
WALSALL COUNCIL,http://opendatacommunities.org/id/metropolitan-district-council/walsall ,30/06/2021,CHILDRENS SERVICES,AMZNMKTPLACE,20/04/2021,H59620210422GLYLEWIUM-2,37.23,E19-MATERIALS,MISCELLANEOUS AND SPECIALTY RETAIL STORES,GPC
WALSALL COUNCIL,http://opendatacommunities.org/id/metropolitan-district-council/walsall ,30/06/2021,RESOURCES AND TRANSFORMATION,ARTHUR BRETT CATER,20/04/2021,H59620210422GMBWTFTHR-1,90.08,CATERING - SCHOOLS-FOOD & DRINK SUPPLIES,MISCELLANEOUS FOOD STORES & CONVENIENCE STORES,GPC
WALSALL COUNCIL,http://opendatacommunities.org/id/metropolitan-district-council/walsall ,30/06/2021,CHILDRENS SERVICES,AMZNMKTPLACE,20/04/2021,H59620210422GPGGCGHPT-1,32.96,ICT LEARNING RESOURCES-PURCHASE OF FURNITURE & EQUIPM,MISCELLANEOUS AND SPECIALTY RETAIL STORES,GPC
WALSALL COUNCIL,http://opendatacommunities.org/id/metropolitan-district-council/walsall ,30/06/2021,RESOURCES AND TRANSFORMATION,ARTHUR BRETT CATER,20/04/2021,H59620210422GSRPGJENC-1,68.71,CATERING - SCHOOLS-FOOD & DRINK SUPPLIES,MISCELLANEOUS FOOD STORES & CONVENIENCE STORES,GPC
WALSALL COUNCIL,http://opendatacommunities.org/id/metropolitan-district-council/walsall ,30/06/2021,CHILDRENS SERVICES,AMAZON.CO.UK*M42JD26G4,20/04/2021,H59620210422HGXYMWXES-1,19.96,CURRICULUM STOCK-LIBRARY BOOKS,OTHER DIRECT MARKETING-OTHER DIRECT MARKETERS,GPC
WALSALL COUNCIL,http://opendatacommunities.org/id/metropolitan-district-council/walsall ,30/06/2021,RESOURCES AND TRANSFORMATION,ARTHUR BRETT CATER,20/04/2021,H59620210422HJKOXROYE-1,33.61,CATERING - SCHOOLS-FOOD & DRINK SUPPLIES,MISCELLANEOUS FOOD STORES & CONVENIENCE STORES,GPC
WALSALL COUNCIL,http://opendatacommunities.org/id/metropolitan-district-council/walsall ,30/06/2021,RESOURCES AND TRANSFORMATION,ARTHUR BRETT CATER,20/04/2021,H59620210422HJPIOQJHJ-1,17.40,CATERING - SCHOOLS-FOOD & DRINK SUPPLIES,MISCELLANEOUS FOOD STORES & CONVENIENCE STORES,GPC
WALSALL COUNCIL,http://opendatacommunities.org/id/metropolitan-district-council/walsall ,30/06/2021,RESOURCES AND TRANSFORMATION,NOBISCO LIMITED,20/04/2021,H59620210422HMKWNWQBM-1,144.00,CATERING - SCHOOLS-FOOD & DRINK SUPPLIES,OTHER INDUSTRIAL SUPPLIES,GPC
WALSALL COUNCIL,http://opendatacommunities.org/id/metropolitan-district-council/walsall ,30/06/2021,CHILDRENS SERVICES,PAYPAL *GROUPONINTE,20/04/2021,H59620210422HQALXFJML-1,271.93,ST FRANCIS OF ASSISI CATHOLIC -OPERATIONAL MAINTENANCE,DISCOUNT STORES,GPC
WALSALL COUNCIL,http://opendatacommunities.org/id/metropolitan-district-council/walsall ,30/06/2021,CHILDRENS SERVICES,APT ONLINE TRAINING,20/04/2021,H59620210422HQHCCDCGX-1,1152.00,SAFEGUARDING FAMILIES PROTECTI-EXTERNAL TRAINING,COMPUTER SOFTWARE STORES,GPC
WALSALL COUNCIL,http://opendatacommunities.org/id/metropolitan-district-council/walsall ,30/06/2021,RESOURCES AND TRANSFORMATION,NOBISCO LIMITED,20/04/2021,H59620210422HZYJWSPGU-1,67.26,CATERING - SCHOOLS-FOOD & DRINK SUPPLIES,OTHER INDUSTRIAL SUPPLIES,GPC
WALSALL COUNCIL,http://opendatacommunities.org/id/metropolitan-district-council/walsall ,30/06/2021,RESOURCES AND TRANSFORMATION,ARTHUR BRETT CATER,20/04/2021,H59620210422INWWIFQUU-1,68.68,CATERING - SCHOOLS-FOOD & DRINK SUPPLIES,MISCELLANEOUS FOOD STORES & CONVENIENCE STORES,GPC
WALSALL COUNCIL,http://opendatacommunities.org/id/metropolitan-district-council/walsall ,30/06/2021,CHILDRENS SERVICES,ASDA,20/04/2021,H59620210422IPMQFVGDT-1,0.20,ACCOMMODATION SERVICES MANAGEM-FOOD & DRINK SUPPLIES,GROCERY STORES AND SUPERMARKETS,GPC
WALSALL COUNCIL,http://opendatacommunities.org/id/metropolitan-district-council/walsall ,30/06/2021,CHILDRENS SERVICES,ASDA,20/04/2021,H59620210422IPMQFVGDT-2,108.79,ACCOMMODATION SERVICES MANAGEM-FOOD & DRINK SUPPLIES,GROCERY STORES AND SUPERMARKETS,GPC
WALSALL COUNCIL,http://opendatacommunities.org/id/metropolitan-district-council/walsall ,30/06/2021,RESOURCES AND TRANSFORMATION,ARTHUR BRETT CATER,20/04/2021,H59620210422IRKTOVUZE-1,113.86,CATERING - SCHOOLS-FOOD & DRINK SUPPLIES,MISCELLANEOUS FOOD STORES & CONVENIENCE STORES,GPC
WALSALL COUNCIL,http://opendatacommunities.org/id/metropolitan-district-council/walsall ,30/06/2021,CHILDRENS SERVICES,PAYPAL *ASDASTORESL,20/04/2021,H59620210422IWPEBKHXG-1,120.00,SAFEGUARDING-MATERIALS,DEPARTMENT STORES,GPC
WALSALL COUNCIL,http://opendatacommunities.org/id/metropolitan-district-council/walsall ,30/06/2021,CHILDRENS SERVICES,PAYPAL *ASDASTORESL,20/04/2021,H59620210422IWPEBKHXG-2,188.50,SAFEGUARDING-MATERIALS,DEPARTMENT STORES,GPC
WALSALL COUNCIL,http://opendatacommunities.org/id/metropolitan-district-council/walsall ,30/06/2021,CHILDRENS SERVICES,WWW.INSECTLORE-EUROPE.CO,20/04/2021,H59620210422JDQBQEJHY-1,117.97,EYFS-MATERIALS,DIRECT MARKETING CATALOG MERCHANTS,GPC
WALSALL COUNCIL,http://opendatacommunities.org/id/metropolitan-district-council/walsall ,30/06/2021,RESOURCES AND TRANSFORMATION,ARTHUR BRETT CATER,20/04/2021,H59620210422JFEEMNQVY-1,60.77,CATERING - SCHOOLS-FOOD & DRINK SUPPLIES,MISCELLANEOUS FOOD STORES & CONVENIENCE STORES,GPC
WALSALL COUNCIL,http://opendatacommunities.org/id/metropolitan-district-council/walsall ,30/06/2021,RESOURCES AND TRANSFORMATION,ARTHUR BRETT CATER,20/04/2021,H59620210422JNFXGUCPK-1,81.24,CATERING - SCHOOLS-FOOD & DRINK SUPPLIES,MISCELLANEOUS FOOD STORES & CONVENIENCE STORES,GPC
WALSALL COUNCIL,http://opendatacommunities.org/id/metropolitan-district-council/walsall ,30/06/2021,CHILDRENS SERVICES,ALLPAY *ACCORD HOUSING AS,20/04/2021,H59620210422KPIVBNODY-1,91.89,YOUNG PERSONS HOMELESS SERVICE-ACCOMMODATION AND RELATED COST,"ORGANIZATIONS, CHARITABLE AND SOCIAL SERVICE",GPC
WALSALL COUNCIL,http://opendatacommunities.org/id/metropolitan-district-council/walsall ,30/06/2021,RESOURCES AND TRANSFORMATION,ARTHUR BRETT CATER,20/04/2021,H59620210422KRJRLZJMI-1,60.38,CATERING - SCHOOLS-FOOD & DRINK SUPPLIES,MISCELLANEOUS FOOD STORES & CONVENIENCE STORES,GPC
WALSALL COUNCIL,http://opendatacommunities.org/id/metropolitan-district-council/walsall ,30/06/2021,CHILDRENS SERVICES,UCL BUSINESS PLC,20/04/2021,H59620210422LBBJHYLNU-1,120.00,SEN-STATIONERY & GENERAL OFFICE SU,"CONSULTING, MANAGEMENT, AND PR SERVICES",GPC
WALSALL COUNCIL,http://opendatacommunities.org/id/metropolitan-district-council/walsall ,30/06/2021,RESOURCES AND TRANSFORMATION,ARTHUR BRETT CATER,20/04/2021,H59620210422LTIWDJDOB-1,65.83,CATERING - SCHOOLS-FOOD & DRINK SUPPLIES,MISCELLANEOUS FOOD STORES & CONVENIENCE STORES,GPC
WALSALL COUNCIL,http://opendatacommunities.org/id/metropolitan-district-council/walsall ,30/06/2021,RESOURCES AND TRANSFORMATION,NOBISCO LIMITED,20/04/2021,H59620210422MBGGZDIWQ-1,2.52,CATERING - SCHOOLS-FOOD & DRINK SUPPLIES,OTHER INDUSTRIAL SUPPLIES,GPC
WALSALL COUNCIL,http://opendatacommunities.org/id/metropolitan-district-council/walsall ,30/06/2021,RESOURCES AND TRANSFORMATION,ARTHUR BRETT CATER,20/04/2021,H59620210422MDRKIOKTN-1,17.96,CATERING - SCHOOLS-FOOD & DRINK SUPPLIES,MISCELLANEOUS FOOD STORES & CONVENIENCE STORES,GPC
WALSALL COUNCIL,http://opendatacommunities.org/id/metropolitan-district-council/walsall ,30/06/2021,RESOURCES AND TRANSFORMATION,NOBISCO LIMITED,20/04/2021,H59620210422MMKENJCJN-1,59.36,CATERING - SCHOOLS-FOOD & DRINK SUPPLIES,OTHER INDUSTRIAL SUPPLIES,GPC
WALSALL COUNCIL,http://opendatacommunities.org/id/metropolitan-district-council/walsall ,30/06/2021,RESOURCES AND TRANSFORMATION,ARTHUR BRETT CATER,20/04/2021,H59620210422MOIAODYRE-1,27.27,CATERING - SCHOOLS-FOOD & DRINK SUPPLIES,MISCELLANEOUS FOOD STORES & CONVENIENCE STORES,GPC
WALSALL COUNCIL,http://opendatacommunities.org/id/metropolitan-district-council/walsall ,30/06/2021,RESOURCES AND TRANSFORMATION,ARTHUR BRETT CATER,20/04/2021,H59620210422NHPDRPLSU-1,10.42,CATERING - SCHOOLS-FOOD & DRINK SUPPLIES,MISCELLANEOUS FOOD STORES & CONVENIENCE STORES,GPC
WALSALL COUNCIL,http://opendatacommunities.org/id/metropolitan-district-council/walsall ,30/06/2021,ECONOMY & ENVIRONMENT,STRIKE ELECTRICAL DIST,20/04/2021,H59620210422NLQSHQZPA-1,5.52,LEATHER MUSEUM-MATERIALS,HOUSEHOLD APPLIANCE STORES,GPC
WALSALL COUNCIL,http://opendatacommunities.org/id/metropolitan-district-council/walsall ,30/06/2021,RESOURCES AND TRANSFORMATION,ARTHUR BRETT CATER,20/04/2021,H59620210422OOYNATVNB-1,67.61,CATERING - SCHOOLS-FOOD & DRINK SUPPLIES,MISCELLANEOUS FOOD STORES & CONVENIENCE STORES,GPC
WALSALL COUNCIL,http://opendatacommunities.org/id/metropolitan-district-council/walsall ,30/06/2021,ECONOMY & ENVIRONMENT,J2 EFAX PLUS SERVICE,20/04/2021,H59620210422PQPGSPQCS-1,7.20,REGISTRAR-COMPUTER EQUIPMENT,DIRECT MARKETING CONTINUITY SUBSCRIPTION MERCHANTS,GPC
WALSALL COUNCIL,http://opendatacommunities.org/id/metropolitan-district-council/walsall ,30/06/2021,RESOURCES AND TRANSFORMATION,POST OFFICE COUNTER,20/04/2021,H59620210422PYOVLYHBN-1,3.43,YEI ESF FUNDING-POSTAGES & COURIER SERVICES,POSTAL SERVICES - GOVERNMENT ONLY,GPC
WALSALL COUNCIL,http://opendatacommunities.org/id/metropolitan-district-council/walsall ,30/06/2021,RESOURCES AND TRANSFORMATION,POST OFFICE COUNTER,20/04/2021,H59620210422PYOVLYHBN-2,3.42,YEI (IMPACT) PROGRAMME-POSTAGES & COURIER SERVICES,POSTAL SERVICES - GOVERNMENT ONLY,GPC
WALSALL COUNCIL,http://opendatacommunities.org/id/metropolitan-district-council/walsall ,30/06/2021,RESOURCES AND TRANSFORMATION,ARTHUR BRETT CATER,20/04/2021,H59620210422QLENCPONE-1,82.63,CATERING - SCHOOLS-FOOD & DRINK SUPPLIES,MISCELLANEOUS FOOD STORES & CONVENIENCE STORES,GPC
WALSALL COUNCIL,http://opendatacommunities.org/id/metropolitan-district-council/walsall ,30/06/2021,CHILDRENS SERVICES,PAYPAL *BIGLIFEJOUR,20/04/2021,H59620210422QREHRQTHE-1,24.25,SOCIOLOGY & CRIMINOLOGY-MATERIALS,BOOK STORES,GPC
WALSALL COUNCIL,http://opendatacommunities.org/id/metropolitan-district-council/walsall ,30/06/2021,RESOURCES AND TRANSFORMATION,ARTHUR BRETT CATER,20/04/2021,H59620210422QSOWCXEBQ-1,232.74,CATERING - SCHOOLS-FOOD & DRINK SUPPLIES,MISCELLANEOUS FOOD STORES & CONVENIENCE STORES,GPC
WALSALL COUNCIL,http://opendatacommunities.org/id/metropolitan-district-council/walsall ,30/06/2021,RESOURCES AND TRANSFORMATION,ARTHUR BRETT CATER,20/04/2021,H59620210422RLEMQXMPB-1,53.60,CATERING - SCHOOLS-FOOD & DRINK SUPPLIES,MISCELLANEOUS FOOD STORES & CONVENIENCE STORES,GPC
WALSALL COUNCIL,http://opendatacommunities.org/id/metropolitan-district-council/walsall ,30/06/2021,RESOURCES AND TRANSFORMATION,ARTHUR BRETT CATER,20/04/2021,H59620210422RVAVDNXMY-1,119.92,CATERING - SCHOOLS-FOOD & DRINK SUPPLIES,MISCELLANEOUS FOOD STORES & CONVENIENCE STORES,GPC
WALSALL COUNCIL,http://opendatacommunities.org/id/metropolitan-district-council/walsall ,30/06/2021,CHILDRENS SERVICES,AMZNMKTPLACE,20/04/2021,H59620210422RZRXLURAC-1,15.82,PUPIL PREMIUM-MATERIALS,MISCELLANEOUS AND SPECIALTY RETAIL STORES,GPC
WALSALL COUNCIL,http://opendatacommunities.org/id/metropolitan-district-council/walsall ,30/06/2021,RESOURCES AND TRANSFORMATION,ARTHUR BRETT CATER,20/04/2021,H59620210422SHRJCGDRM-1,27.12,CATERING - SCHOOLS-FOOD & DRINK SUPPLIES,MISCELLANEOUS FOOD STORES & CONVENIENCE STORES,GPC
WALSALL COUNCIL,http://opendatacommunities.org/id/metropolitan-district-council/walsall ,30/06/2021,RESOURCES AND TRANSFORMATION,ARTHUR BRETT CATER,20/04/2021,H59620210422TFFTKNRIR-1,11.64,CATERING - SCHOOLS-FOOD & DRINK SUPPLIES,MISCELLANEOUS FOOD STORES & CONVENIENCE STORES,GPC
WALSALL COUNCIL,http://opendatacommunities.org/id/metropolitan-district-council/walsall ,30/06/2021,RESOURCES AND TRANSFORMATION,NOBISCO LIMITED,20/04/2021,H59620210422TUUBQMKYR-1,107.76,CATERING - SCHOOLS-FOOD & DRINK SUPPLIES,OTHER INDUSTRIAL SUPPLIES,GPC
WALSALL COUNCIL,http://opendatacommunities.org/id/metropolitan-district-council/walsall ,30/06/2021,ECONOMY & ENVIRONMENT,WWW.BANNERUK.COM,20/04/2021,H59620210422TWAHZUBQS-1,146.22,WALSALL ARENA AND ARTS CENTRE-STATIONERY & GENERAL OFFICE SU,"STATIONERY, OFFICE SUPPLIES AND WRITING PAPER",GPC
WALSALL COUNCIL,http://opendatacommunities.org/id/metropolitan-district-council/walsall ,30/06/2021,RESOURCES AND TRANSFORMATION,ARTHUR BRETT CATER,20/04/2021,H59620210422TXUADBKHJ-1,33.78,CATERING - SCHOOLS-FOOD & DRINK SUPPLIES,MISCELLANEOUS FOOD STORES & CONVENIENCE STORES,GPC
WALSALL COUNCIL,http://opendatacommunities.org/id/metropolitan-district-council/walsall ,30/06/2021,RESOURCES AND TRANSFORMATION,ARTHUR BRETT CATER,20/04/2021,H59620210422TYCMEJFSE-1,39.11,CATERING - SCHOOLS-FOOD & DRINK SUPPLIES,MISCELLANEOUS FOOD STORES & CONVENIENCE STORES,GPC
WALSALL COUNCIL,http://opendatacommunities.org/id/metropolitan-district-council/walsall ,30/06/2021,ECONOMY & ENVIRONMENT,DVLA VEHICLE TAX,20/04/2021,H59620210422TYYBFFWNB-1,107.50,FLEET-LICENCES FOR VEHICLES,TAX PAYMENTS,GPC
WALSALL COUNCIL,http://opendatacommunities.org/id/metropolitan-district-council/walsall ,30/06/2021,CHILDRENS SERVICES,ALLPAY *WHG,20/04/2021,H59620210422UCSMIHKVN-1,103.67,HOMELESSNESS PREVENTION STRATE-OTHER EMPLOYEES FEES & EXPENSE,"ORGANIZATIONS, CHARITABLE AND SOCIAL SERVICE",GPC
WALSALL COUNCIL,http://opendatacommunities.org/id/metropolitan-district-council/walsall ,30/06/2021,ECONOMY & ENVIRONMENT,DVLA VEHICLE TAX,20/04/2021,H59620210422UDUVZTXKL-1,277.50,FLEET-LICENCES FOR VEHICLES,TAX PAYMENTS,GPC
WALSALL COUNCIL,http://opendatacommunities.org/id/metropolitan-district-council/walsall ,30/06/2021,ECONOMY & ENVIRONMENT,DVLA VEHICLE TAX,20/04/2021,H59620210422UFWUSCPJJ-1,562.50,FLEET-LICENCES FOR VEHICLES,TAX PAYMENTS,GPC
WALSALL COUNCIL,http://opendatacommunities.org/id/metropolitan-district-council/walsall ,30/06/2021,ECONOMY & ENVIRONMENT,DVLA VEHICLE TAX,20/04/2021,H59620210422VVRICXBFW-1,277.50,FLEET-LICENCES FOR VEHICLES,TAX PAYMENTS,GPC
WALSALL COUNCIL,http://opendatacommunities.org/id/metropolitan-district-council/walsall ,30/06/2021,RESOURCES AND TRANSFORMATION,NOBISCO LIMITED,20/04/2021,H59620210422WXMIROQWO-1,70.27,CATERING - SCHOOLS-FOOD & DRINK SUPPLIES,OTHER INDUSTRIAL SUPPLIES,GPC
WALSALL COUNCIL,http://opendatacommunities.org/id/metropolitan-district-council/walsall ,30/06/2021,RESOURCES AND TRANSFORMATION,ARTHUR BRETT CATER,20/04/2021,H59620210422XAHTPGPUJ-1,29.90,CATERING - SCHOOLS-FOOD & DRINK SUPPLIES,MISCELLANEOUS FOOD STORES & CONVENIENCE STORES,GPC
WALSALL COUNCIL,http://opendatacommunities.org/id/metropolitan-district-council/walsall ,30/06/2021,RESOURCES AND TRANSFORMATION,NOBISCO LIMITED,20/04/2021,H59620210422XEULYZJRB-1,116.34,CATERING - SCHOOLS-FOOD & DRINK SUPPLIES,OTHER INDUSTRIAL SUPPLIES,GPC
WALSALL COUNCIL,http://opendatacommunities.org/id/metropolitan-district-council/walsall ,30/06/2021,CHILDRENS SERVICES,SCHOOLGATEWA*BLUE COAT AC,20/04/2021,H59620210422XKCVZPYPE-1,15.00,REDRUTH ROAD-FOOD & DRINK SUPPLIES,"COLLEGES, UNIVERSITIES, PROFESSIONAL SCHOOLS",GPC
WALSALL COUNCIL,http://opendatacommunities.org/id/metropolitan-district-council/walsall ,30/06/2021,ECONOMY & ENVIRONMENT,AMZNMKTPLACE,20/04/2021,H59620210422XLQAUILZN-1,16.48,COUNTRYSIDE MANAGEMENT - OTHER-MATERIALS,MISCELLANEOUS AND SPECIALTY RETAIL STORES,GPC
WALSALL COUNCIL,http://opendatacommunities.org/id/metropolitan-district-council/walsall ,30/06/2021,ECONOMY & ENVIRONMENT,THE POST OFFICE,20/04/2021,H59620210422XQCPOUGXF-1,27.40,NAG - TEMPORARY EXHIBITIONS-POSTAGES & COURIER SERVICES,POSTAL SERVICES - GOVERNMENT ONLY,GPC
WALSALL COUNCIL,http://opendatacommunities.org/id/metropolitan-district-council/walsall ,30/06/2021,CHILDRENS SERVICES,O2 UK PAY & GO,20/04/2021,H59620210422XUHGDBFVI-1,10.00,ADMINISTRATIVE SUPPLIES-LANDLINE PHONES,TELECOMMUNICATION SERVICES,GPC
WALSALL COUNCIL,http://opendatacommunities.org/id/metropolitan-district-council/walsall ,30/06/2021,RESOURCES AND TRANSFORMATION,ARTHUR BRETT CATER,20/04/2021,H59620210422YAEZBBITI-1,0.89,CATERING - SCHOOLS-FOOD & DRINK SUPPLIES,MISCELLANEOUS FOOD STORES & CONVENIENCE STORES,GPC
WALSALL COUNCIL,http://opendatacommunities.org/id/metropolitan-district-council/walsall ,30/06/2021,CHILDRENS SERVICES,AMZNMKTPLACE,20/04/2021,H59620210422YFRVVWFTB-1,79.90,STUDENT SUPPORT & MENTORING-MEDICAL REQUISITES-MATERIALS,MISCELLANEOUS AND SPECIALTY RETAIL STORES,GPC
WALSALL COUNCIL,http://opendatacommunities.org/id/metropolitan-district-council/walsall ,30/06/2021,RESOURCES AND TRANSFORMATION,ARTHUR BRETT CATER,20/04/2021,H59620210422YNVLPOMOW-1,43.72,CATERING - SCHOOLS-FOOD & DRINK SUPPLIES,MISCELLANEOUS FOOD STORES & CONVENIENCE STORES,GPC
WALSALL COUNCIL,http://opendatacommunities.org/id/metropolitan-district-council/walsall ,30/06/2021,CHILDRENS SERVICES,POST OFFICE COUNTER,20/04/2021,H59620210422YOODWHRUY-1,6.85,SAFEGUARDING & FAMILY SUPPORT-POSTAGES & COURIER SERVICES,POSTAL SERVICES - GOVERNMENT ONLY,GPC
WALSALL COUNCIL,http://opendatacommunities.org/id/metropolitan-district-council/walsall ,30/06/2021,RESOURCES AND TRANSFORMATION,ARTHUR BRETT CATER,20/04/2021,H59620210422YUHOXPJIT-1,70.70,CATERING - SCHOOLS-FOOD & DRINK SUPPLIES,MISCELLANEOUS FOOD STORES & CONVENIENCE STORES,GPC
WALSALL COUNCIL,http://opendatacommunities.org/id/metropolitan-district-council/walsall ,30/06/2021,ECONOMY & ENVIRONMENT,AMZNMKTPLACE AMAZON.CO.UK,20/04/2021,H59620210423AHOXWNKEB-1,20.98,COUNTRYSIDE MANAGEMENT - OTHER-MATERIALS,MISCELLANEOUS AND SPECIALTY RETAIL STORES,GPC
WALSALL COUNCIL,http://opendatacommunities.org/id/metropolitan-district-council/walsall ,30/06/2021,CHILDRENS SERVICES,AMAZON.CO.UK*M44U19DN4 AM,20/04/2021,H59620210423TZDITLITN-1,10.75,EARLY YEARS DEPARTMENT-LIBRARY BOOKS,MISCELLANEOUS AND SPECIALTY RETAIL STORES,GPC
WALSALL COUNCIL,http://opendatacommunities.org/id/metropolitan-district-council/walsall ,30/06/2021,CHILDRENS SERVICES,TVLICENSING.CO.UK,20/04/2021,H59620210423UMQJIQQVB-1,159.00,ADMINISTRATIVE SUPPLIES-LICENCES FOR EQUIPMENT,"CONSULTING, MANAGEMENT, AND PR SERVICES",GPC
WALSALL COUNCIL,http://opendatacommunities.org/id/metropolitan-district-council/walsall ,30/06/2021,CHILDRENS SERVICES,ASDA,21/04/2021,H59620210423ACSWIJTTA-1,22.50,WALSALL CRISIS SUPPORT SCHEME-FOOD & DRINK SUPPLIES,GROCERY STORES AND SUPERMARKETS,GPC
WALSALL COUNCIL,http://opendatacommunities.org/id/metropolitan-district-council/walsall ,30/06/2021,RESOURCES AND TRANSFORMATION,BLAKEMORE FOODSERVICE,21/04/2021,H59620210423BLDOPCNUB-1,400.92,CATERING - SCHOOLS-FOOD & DRINK SUPPLIES,CATERERS,GPC
WALSALL COUNCIL,http://opendatacommunities.org/id/metropolitan-district-council/walsall ,30/06/2021,RESOURCES AND TRANSFORMATION,BLAKEMORE FOODSERVICE,21/04/2021,H59620210423BLDOPCNUB-2,29.77,CATERING - SCHOOLS-FOOD & DRINK SUPPLIES,CATERERS,GPC
WALSALL COUNCIL,http://opendatacommunities.org/id/metropolitan-district-council/walsall ,30/06/2021,ECONOMY & ENVIRONMENT,AMZNMKTPLACE,21/04/2021,H59620210423CHCEPMIMD-1,55.30,COUNTRYSIDE MANAGEMENT - OTHER-PURCHASE OF FURNITURE & EQUIPM,MISCELLANEOUS AND SPECIALTY RETAIL STORES,GPC
WALSALL COUNCIL,http://opendatacommunities.org/id/metropolitan-district-council/walsall ,30/06/2021,ECONOMY & ENVIRONMENT,WWW.BANNERUK.COM,21/04/2021,H59620210423CJEYAWJUW-1,44.02,WALSALL GALA SWIMMING AND FITN-STATIONERY & GENERAL OFFICE SU,"STATIONERY, OFFICE SUPPLIES AND WRITING PAPER",GPC
WALSALL COUNCIL,http://opendatacommunities.org/id/metropolitan-district-council/walsall ,30/06/2021,RESOURCES AND TRANSFORMATION,BLAKEMORE FOODSERVICE,21/04/2021,H59620210423CLEVHGMFH-1,322.09,CATERING - SCHOOLS-FOOD & DRINK SUPPLIES,CATERERS,GPC
WALSALL COUNCIL,http://opendatacommunities.org/id/metropolitan-district-council/walsall ,30/06/2021,RESOURCES AND TRANSFORMATION,BLAKEMORE FOODSERVICE,21/04/2021,H59620210423CLEVHGMFH-2,164.97,CATERING - SCHOOLS-FOOD & DRINK SUPPLIES,CATERERS,GPC
WALSALL COUNCIL,http://opendatacommunities.org/id/metropolitan-district-council/walsall ,30/06/2021,RESOURCES AND TRANSFORMATION,BLAKEMORE FOODSERVICE,21/04/2021,H59620210423CRDPMXHDF-1,291.96,CATERING - SCHOOLS-FOOD & DRINK SUPPLIES,CATERERS,GPC
WALSALL COUNCIL,http://opendatacommunities.org/id/metropolitan-district-council/walsall ,30/06/2021,RESOURCES AND TRANSFORMATION,BLAKEMORE FOODSERVICE,21/04/2021,H59620210423CRDPMXHDF-2,9.92,CATERING - SCHOOLS-FOOD & DRINK SUPPLIES,CATERERS,GPC
WALSALL COUNCIL,http://opendatacommunities.org/id/metropolitan-district-council/walsall ,30/06/2021,CHILDRENS SERVICES,AMAZON.CO.UK*M48L13SN4,21/04/2021,H59620210423CSCHDVPJW-1,24.00,MILLFIELD PRIMARY SCHOOL-MATERIALS,OTHER DIRECT MARKETING-OTHER DIRECT MARKETERS,GPC
WALSALL COUNCIL,http://opendatacommunities.org/id/metropolitan-district-council/walsall ,30/06/2021,RESOURCES AND TRANSFORMATION,BLAKEMORE FOODSERVICE,21/04/2021,H59620210423DLQOCFZNW-1,46.42,CATERING - SCHOOLS-FOOD & DRINK SUPPLIES,CATERERS,GPC
WALSALL COUNCIL,http://opendatacommunities.org/id/metropolitan-district-council/walsall ,30/06/2021,RESOURCES AND TRANSFORMATION,BLAKEMORE FOODSERVICE,21/04/2021,H59620210423DUCJYOGFW-1,462.54,CATERING - SCHOOLS-FOOD & DRINK SUPPLIES,CATERERS,GPC
WALSALL COUNCIL,http://opendatacommunities.org/id/metropolitan-district-council/walsall ,30/06/2021,RESOURCES AND TRANSFORMATION,BLAKEMORE FOODSERVICE,21/04/2021,H59620210423DUCJYOGFW-2,39.69,CATERING - SCHOOLS-FOOD & DRINK SUPPLIES,CATERERS,GPC
